date,department/service,beneficiary,amount,summary of purpose,category,transaction number
01.10.2017,CHILDREN'S SERVICES,DODS PARLIAMENTARY COMMUNICATIONS LTD,526.5,MANAGEMENT,TRAINING,5902269613
01.10.2017,COMMUNITIES,THAMES REACH EMPOLYMENT ACADEMY,677.6,NO RECOURSE TO PUBLIC FUNDS,ACCOMMODATION CHARGES,5902269509
01.10.2017,ENVIRONMENT DIRECTORATE,R J MOTORS LIMITED,353.87,COMMERCIAL VEH CTRL A/C,VEHICLE REPAIRS & MAINTENANCE,5902270015
01.10.2017,ENVIRONMENT DIRECTORATE,PERFORMANCE CHEMICALS LTD,532.5,ESTATE CLEANING-GENERAL,MATERIALS,5902270235
01.10.2017,ENVIRONMENT DIRECTORATE,IMPERIAL POLYTHENE PRODUCTS LTD,"1,160.70",MANAGEMENT TEAM,MATERIALS,5902270158
01.10.2017,ENVIRONMENT DIRECTORATE,KENT COUNTY COUNCIL - LASER,886.46,SANDGATE STREET,ELECTRICITY,5902269664
01.10.2017,HOUSING,PRB ESTATES LTD,"186,514.64",PRBE,MANUAL CREDITORS,2102724305
01.10.2017,LEISURE DIRECTORATE,ALDO RINALDI,"2,400.00",ARTS SERVICES,CONSULTANTS SERVICES,5902269762
01.10.2017,LEISURE DIRECTORATE,NPOWER,896.2,BLUE ANCHOR LIBRARY,ELECTRICITY,5902270315
01.10.2017,LEISURE DIRECTORATE,NPOWER,557.33,NUNHEAD LIBRARY,ELECTRICITY,5902269855
01.10.2017,MODERNISATION HGF,NPOWER LTD,612.62,CURLEW HOUSE,ELECTRICITY,5902269955
01.10.2017,PLANNING AND TRANSPORT,SOUTHWARK NEWSPAPER LTD,504,DEVELOPMENT CONTROL ADMINSTRATION,MARKETING & PUBLICITY SERVICES,5902270232
02.10.2017,CHIEF EXECUTIVE'S OFFICE,J C CONSULTANT SERVICES LTD,"8,000.00",CHIEF EXEC'S OFFICE,GRANTS,5902266746
02.10.2017,CHILDREN'S SERVICES,INTERSERVE HEALTHCARE,374.15,HOME 2 SCHOOL TRANSPORT,AGENCY STAFF,5902269874
02.10.2017,CHILDREN'S SERVICES,EAST DULWICH EST T&RA,452.5,PRIMARY ACHIEVEMENT,REFRESHMENTS FOR MEETINGS,5902270204
02.10.2017,CHILDREN'S SERVICES,WRIXONCARE SEVICES,"2,164.04",RESIDENTIAL,OTHER PAYMENTS FOR CLIENTS,5902270490
02.10.2017,COMMUNITIES,AUDITEL RENTAL & SERVICE LTD,950,COMMUNITY COUNCILS TEAM,EQUIPMENT PURCHASE & REPAIR,5902270258
02.10.2017,COMMUNITIES,AUDITEL RENTAL & SERVICE LTD,"2,025.00",COMMUNITY COUNCILS TEAM,EQUIPMENT PURCHASE & REPAIR,5902270258
02.10.2017,CUSTOMER EXPERIENCE HGF,PECK AND COMPANY,"8,913.91",CORONER'S COURT,LEGAL & COURT FEES,INTERNATIONAL PAYMENT
02.10.2017,ENVIRONMENT AND LEISURE,PERFECT CIRCLE JV LTD,"2,137.50",CAPITAL PS (LEISURE),CONSTRUCTION FEES - QUANTITY SURVEYOR,5902269966
02.10.2017,ENVIRONMENT DIRECTORATE,FIVEWAYS MUNICIPAL VEHICLE HIRE LTD,725,COMMERCIAL VEH CTRL A/C,HIRED VEHICLES,5902270071
02.10.2017,ENVIRONMENT DIRECTORATE,GO PRO CHEMICALS LTD,647.1,ESTATES (CENTRAL),MATERIALS,5902269864
02.10.2017,ENVIRONMENT DIRECTORATE,GO PRO CHEMICALS LTD,"1,595.79",ESTATES (CENTRAL),MATERIALS,5902270001
02.10.2017,F & C S EXCLUDING CORPORATE BUDGETS,J C CONSULTANT SERVICES LTD,"-8,000.00",PAYMENTS CONTROL,OFFICE EXPENSES,2102728497
02.10.2017,MODERNISATION HGF,WEST ASSOCIATES,500,OCCUPATIONAL ASSESSMENT,CONSULTANTS SERVICES,5902269959
03.10.2017,ADULT SOCIAL CARE,CHOICE SUPPORT,480,APPOINTEESHIPS,OTHER PAYMENTS FOR CLIENTS,2102728441
03.10.2017,ADULT SOCIAL CARE,EQUINOX CARE,"1,090.20",APPOINTEESHIPS,OTHER PAYMENTS FOR CLIENTS,2102728437
03.10.2017,ADULT SOCIAL CARE,HEXAGON HOUSING ASSOCIATION LTD,537.08,APPOINTEESHIPS,OTHER PAYMENTS FOR CLIENTS,2102728431
03.10.2017,ADULT SOCIAL CARE,RIGHT SUPPORT MANAGEMENT LTD,500,APPOINTEESHIPS,OTHER PAYMENTS FOR CLIENTS,2102728433
03.10.2017,ADULT SOCIAL CARE,METRO HOMECARE LTD,340,APPOINTEESHIPS,OTHER PAYMENTS FOR CLIENTS,2102728445
03.10.2017,ADULT SOCIAL CARE,REDACTED PERSONAL DATA,320,APPOINTEESHIPS,OTHER PAYMENTS FOR CLIENTS,2102728430
03.10.2017,ADULT SOCIAL CARE,LONDON CYRENIANS HOUSING LTD,600,APPOINTEESHIPS,OTHER PAYMENTS FOR CLIENTS,2102728442
03.10.2017,ADULT SOCIAL CARE,ELIZABETH PETERS CARE HOMES LTD,280,APPOINTEESHIPS,OTHER PAYMENTS FOR CLIENTS,2102728440
03.10.2017,ADULT SOCIAL CARE,POP INN CAFE,560,APPOINTEESHIPS,OTHER PAYMENTS FOR CLIENTS,2102728449
03.10.2017,ADULT SOCIAL CARE,AGE UK LEWISHAM & SOUTHWARK,"53,000.00",LOCAL COMMUNITY OFFER,EXTERNAL AGENCIES AND BODIES,5902270568
03.10.2017,ADULT SOCIAL CARE,SWK DISABLEMENT ASSN,"20,000.00",LOCAL COMMUNITY OFFER,EXTERNAL AGENCIES AND BODIES,5902270583
03.10.2017,ADULT SOCIAL CARE,SOUTHWARK PENSIONERS CENTRE,"7,075.00",LOCAL COMMUNITY OFFER,EXTERNAL AGENCIES AND BODIES,5902270586
03.10.2017,ADULT SOCIAL CARE,SOUTHWARK PENSIONERS CENTRE,"12,500.00",LOCAL COMMUNITY OFFER,EXTERNAL AGENCIES AND BODIES,5902270585
03.10.2017,ADULT SOCIAL CARE,LEONARD CHESHIRE DISABILITY,"22,500.00",LOCAL COMMUNITY OFFER,EXTERNAL AGENCIES AND BODIES,5902270596
03.10.2017,ADULT SOCIAL CARE,LONDON CARE LTD,538.2,MEM LTS 65+,HOMECARE - C&V,2102728353
03.10.2017,ADULT SOCIAL CARE,LONDON CARE LTD,567.54,MEM LTS 65+,HOMECARE - C&V,2102728397
03.10.2017,ADULT SOCIAL CARE,FIRST CHOICE SOCIAL CARE & HOUSING,"1,351.84",MEM LTS 65+,HOMECARE - SPOT,2102728275
03.10.2017,ADULT SOCIAL CARE,YOUTH GRACES (UK) LTD,675.64,MEM LTS 65+,HOMECARE - C&V,2102728155
03.10.2017,ADULT SOCIAL CARE,YOUTH GRACES (UK) LTD,261.98,MEM LTS 65+,HOMECARE - SPOT,2102728184
03.10.2017,ADULT SOCIAL CARE,LONDON CARE LTD,294.29,MH LTS 18-64,HOMECARE - C&V,2102728393
03.10.2017,ADULT SOCIAL CARE,LONDON CARE LTD,504.49,MH LTS 65+,HOMECARE - C&V,2102728362
03.10.2017,ADULT SOCIAL CARE,LONDON CARE LTD,798.71,MH LTS 65+,HOMECARE - C&V,2102728334
03.10.2017,ADULT SOCIAL CARE,LONDON CARE LTD,891.28,MH LTS 65+,HOMECARE - C&V,2102728384
03.10.2017,ADULT SOCIAL CARE,CARE DIRECT UK LTD,372.33,MH LTS 65+,HOMECARE - SPOT,2102728319
03.10.2017,ADULT SOCIAL CARE,YOUTH GRACES (UK) LTD,263.16,MH LTS 65+,HOMECARE - SPOT,2102728161
03.10.2017,ADULT SOCIAL CARE,LONDON CARE LTD,269.08,PHY LTS 18-64,HOMECARE - C&V,2102728363
03.10.2017,ADULT SOCIAL CARE,LONDON CARE LTD,273.21,PHY LTS 18-64,HOMECARE - C&V,2102728390
03.10.2017,ADULT SOCIAL CARE,LONDON CARE LTD,315.25,PHY LTS 18-64,HOMECARE - C&V,2102728346
03.10.2017,ADULT SOCIAL CARE,LONDON CARE LTD,332.05,PHY LTS 18-64,HOMECARE - C&V,2102728344
03.10.2017,ADULT SOCIAL CARE,LONDON CARE LTD,361.51,PHY LTS 18-64,HOMECARE - C&V,2102728381
03.10.2017,ADULT SOCIAL CARE,LONDON CARE LTD,470.68,PHY LTS 18-64,HOMECARE - C&V,2102728326
03.10.2017,ADULT SOCIAL CARE,LONDON CARE LTD,537.92,PHY LTS 18-64,HOMECARE - C&V,2102728396
03.10.2017,ADULT SOCIAL CARE,LONDON CARE LTD,605.16,PHY LTS 18-64,HOMECARE - C&V,2102728350
03.10.2017,ADULT SOCIAL CARE,LONDON CARE LTD,605.44,PHY LTS 18-64,HOMECARE - C&V,2102728351
03.10.2017,ADULT SOCIAL CARE,LONDON CARE LTD,693.55,PHY LTS 18-64,HOMECARE - C&V,2102728410
03.10.2017,ADULT SOCIAL CARE,LONDON CARE LTD,739.77,PHY LTS 18-64,HOMECARE - C&V,2102728360
03.10.2017,ADULT SOCIAL CARE,LONDON CARE LTD,756.68,PHY LTS 18-64,HOMECARE - C&V,2102728364
03.10.2017,ADULT SOCIAL CARE,LONDON CARE LTD,790.2,PHY LTS 18-64,HOMECARE - C&V,2102728347
03.10.2017,ADULT SOCIAL CARE,LONDON CARE LTD,"1,311.60",PHY LTS 18-64,HOMECARE - C&V,2102728412
03.10.2017,ADULT SOCIAL CARE,FIRST CHOICE SOCIAL CARE & HOUSING,731.08,PHY LTS 18-64,HOMECARE - C&V,2102728251
03.10.2017,ADULT SOCIAL CARE,FIRST CHOICE SOCIAL CARE & HOUSING,279.23,PHY LTS 18-64,HOMECARE - SPOT,2102728259
03.10.2017,ADULT SOCIAL CARE,FIRST CHOICE SOCIAL CARE & HOUSING,717.24,PHY LTS 18-64,HOMECARE - SPOT,2102728270
03.10.2017,ADULT SOCIAL CARE,CARE DIRECT UK LTD,727.42,PHY LTS 18-64,HOMECARE - SPOT,2102728309
03.10.2017,ADULT SOCIAL CARE,YOUTH GRACES (UK) LTD,351.64,PHY LTS 18-64,HOMECARE - C&V,2102728153
03.10.2017,ADULT SOCIAL CARE,YOUTH GRACES (UK) LTD,413.68,PHY LTS 18-64,HOMECARE - C&V,2102728192
03.10.2017,ADULT SOCIAL CARE,YOUTH GRACES (UK) LTD,255.15,PHY LTS 18-64,HOMECARE - SPOT,2102728196
03.10.2017,ADULT SOCIAL CARE,YOUTH GRACES (UK) LTD,261.98,PHY LTS 18-64,HOMECARE - SPOT,2102728205
03.10.2017,ADULT SOCIAL CARE,YOUTH GRACES (UK) LTD,434.56,PHY LTS 18-64,HOMECARE - SPOT,2102728182
03.10.2017,ADULT SOCIAL CARE,YOUTH GRACES (UK) LTD,482.72,PHY LTS 18-64,HOMECARE - SPOT,2102728208
03.10.2017,ADULT SOCIAL CARE,LONDON CARE LTD,252.17,PHY LTS 65+,HOMECARE - C&V,2102728375
03.10.2017,ADULT SOCIAL CARE,LONDON CARE LTD,302.6,PHY LTS 65+,HOMECARE - C&V,2102728355
03.10.2017,ADULT SOCIAL CARE,LONDON CARE LTD,302.64,PHY LTS 65+,HOMECARE - C&V,2102728342
03.10.2017,ADULT SOCIAL CARE,LONDON CARE LTD,340.47,PHY LTS 65+,HOMECARE - C&V,2102728352
03.10.2017,ADULT SOCIAL CARE,LONDON CARE LTD,353.08,PHY LTS 65+,HOMECARE - C&V,2102728385
03.10.2017,ADULT SOCIAL CARE,LONDON CARE LTD,353.12,PHY LTS 65+,HOMECARE - C&V,2102728380
03.10.2017,ADULT SOCIAL CARE,LONDON CARE LTD,386.76,PHY LTS 65+,HOMECARE - C&V,2102728359
03.10.2017,ADULT SOCIAL CARE,LONDON CARE LTD,390.9,PHY LTS 65+,HOMECARE - C&V,2102728336
03.10.2017,ADULT SOCIAL CARE,LONDON CARE LTD,395.18,PHY LTS 65+,HOMECARE - C&V,2102728418
03.10.2017,ADULT SOCIAL CARE,LONDON CARE LTD,424.51,PHY LTS 65+,HOMECARE - C&V,2102728333
03.10.2017,ADULT SOCIAL CARE,LONDON CARE LTD,437.06,PHY LTS 65+,HOMECARE - C&V,2102728361
03.10.2017,ADULT SOCIAL CARE,LONDON CARE LTD,437.2,PHY LTS 65+,HOMECARE - C&V,2102728368
03.10.2017,ADULT SOCIAL CARE,LONDON CARE LTD,470.96,PHY LTS 65+,HOMECARE - C&V,2102728389
03.10.2017,ADULT SOCIAL CARE,LONDON CARE LTD,470.96,PHY LTS 65+,HOMECARE - C&V,2102728395
03.10.2017,ADULT SOCIAL CARE,LONDON CARE LTD,521.4,PHY LTS 65+,HOMECARE - C&V,2102728348
03.10.2017,ADULT SOCIAL CARE,LONDON CARE LTD,537.94,PHY LTS 65+,HOMECARE - C&V,2102728386
03.10.2017,ADULT SOCIAL CARE,LONDON CARE LTD,563.34,PHY LTS 65+,HOMECARE - C&V,2102728377
03.10.2017,ADULT SOCIAL CARE,LONDON CARE LTD,571.74,PHY LTS 65+,HOMECARE - C&V,2102728329
03.10.2017,ADULT SOCIAL CARE,LONDON CARE LTD,571.84,PHY LTS 65+,HOMECARE - C&V,2102728324
03.10.2017,ADULT SOCIAL CARE,LONDON CARE LTD,575.91,PHY LTS 65+,HOMECARE - C&V,2102728413
03.10.2017,ADULT SOCIAL CARE,LONDON CARE LTD,588.44,PHY LTS 65+,HOMECARE - C&V,2102728369
03.10.2017,ADULT SOCIAL CARE,LONDON CARE LTD,588.52,PHY LTS 65+,HOMECARE - C&V,2102728327
03.10.2017,ADULT SOCIAL CARE,LONDON CARE LTD,588.56,PHY LTS 65+,HOMECARE - C&V,2102728379
03.10.2017,ADULT SOCIAL CARE,LONDON CARE LTD,588.56,PHY LTS 65+,HOMECARE - C&V,2102728382
03.10.2017,ADULT SOCIAL CARE,LONDON CARE LTD,638.8,PHY LTS 65+,HOMECARE - C&V,2102728339
03.10.2017,ADULT SOCIAL CARE,LONDON CARE LTD,689.62,PHY LTS 65+,HOMECARE - C&V,2102728408
03.10.2017,ADULT SOCIAL CARE,LONDON CARE LTD,706.14,PHY LTS 65+,HOMECARE - C&V,2102728392
03.10.2017,ADULT SOCIAL CARE,LONDON CARE LTD,731.57,PHY LTS 65+,HOMECARE - C&V,2102728417
03.10.2017,ADULT SOCIAL CARE,LONDON CARE LTD,764.99,PHY LTS 65+,HOMECARE - C&V,2102728405
03.10.2017,ADULT SOCIAL CARE,LONDON CARE LTD,790.07,PHY LTS 65+,HOMECARE - C&V,2102728387
03.10.2017,ADULT SOCIAL CARE,LONDON CARE LTD,790.3,PHY LTS 65+,HOMECARE - C&V,2102728325
03.10.2017,ADULT SOCIAL CARE,LONDON CARE LTD,865.78,PHY LTS 65+,HOMECARE - C&V,2102728340
03.10.2017,ADULT SOCIAL CARE,LONDON CARE LTD,870.22,PHY LTS 65+,HOMECARE - C&V,2102728404
03.10.2017,ADULT SOCIAL CARE,LONDON CARE LTD,874.44,PHY LTS 65+,HOMECARE - C&V,2102728394
03.10.2017,ADULT SOCIAL CARE,LONDON CARE LTD,937.5,PHY LTS 65+,HOMECARE - C&V,2102728356
03.10.2017,ADULT SOCIAL CARE,LONDON CARE LTD,950.19,PHY LTS 65+,HOMECARE - C&V,2102728367
03.10.2017,ADULT SOCIAL CARE,LONDON CARE LTD,958.52,PHY LTS 65+,HOMECARE - C&V,2102728328
03.10.2017,ADULT SOCIAL CARE,LONDON CARE LTD,958.52,PHY LTS 65+,HOMECARE - C&V,2102728338
03.10.2017,ADULT SOCIAL CARE,LONDON CARE LTD,975.24,PHY LTS 65+,HOMECARE - C&V,2102728388
03.10.2017,ADULT SOCIAL CARE,LONDON CARE LTD,"1,093.02",PHY LTS 65+,HOMECARE - C&V,2102728406
03.10.2017,ADULT SOCIAL CARE,LONDON CARE LTD,"1,135.08",PHY LTS 65+,HOMECARE - C&V,2102728323
03.10.2017,ADULT SOCIAL CARE,LONDON CARE LTD,"1,194.00",PHY LTS 65+,HOMECARE - C&V,2102728402
03.10.2017,ADULT SOCIAL CARE,LONDON CARE LTD,"1,227.28",PHY LTS 65+,HOMECARE - C&V,2102728370
03.10.2017,ADULT SOCIAL CARE,LONDON CARE LTD,"1,374.58",PHY LTS 65+,HOMECARE - C&V,2102728331
03.10.2017,ADULT SOCIAL CARE,LONDON CARE LTD,"1,387.10",PHY LTS 65+,HOMECARE - C&V,2102728372
03.10.2017,ADULT SOCIAL CARE,LONDON CARE LTD,"1,631.26",PHY LTS 65+,HOMECARE - C&V,2102728414
03.10.2017,ADULT SOCIAL CARE,LONDON CARE LTD,"1,639.46",PHY LTS 65+,HOMECARE - C&V,2102728399
03.10.2017,ADULT SOCIAL CARE,LONDON CARE LTD,"1,950.52",PHY LTS 65+,HOMECARE - C&V,2102728345
03.10.2017,ADULT SOCIAL CARE,LONDON CARE LTD,"2,161.11",PHY LTS 65+,HOMECARE - C&V,2102728358
03.10.2017,ADULT SOCIAL CARE,CARE DIRECT UK LTD,286.14,PHY LTS 65+,HOMECARE - C&V,2102728316
03.10.2017,ADULT SOCIAL CARE,CARE DIRECT UK LTD,503.34,PHY LTS 65+,HOMECARE - C&V,2102728308
03.10.2017,ADULT SOCIAL CARE,CARE DIRECT UK LTD,596.42,PHY LTS 65+,HOMECARE - C&V,2102728252
03.10.2017,ADULT SOCIAL CARE,CARE DIRECT UK LTD,272.35,PHY LTS 65+,HOMECARE - SPOT,2102728269
03.10.2017,ADULT SOCIAL CARE,CARE DIRECT UK LTD,306.83,PHY LTS 65+,HOMECARE - SPOT,2102728302
03.10.2017,ADULT SOCIAL CARE,CARE DIRECT UK LTD,372.33,PHY LTS 65+,HOMECARE - SPOT,2102728272
03.10.2017,ADULT SOCIAL CARE,CARE DIRECT UK LTD,427.49,PHY LTS 65+,HOMECARE - SPOT,2102728293
03.10.2017,ADULT SOCIAL CARE,CARE DIRECT UK LTD,472.31,PHY LTS 65+,HOMECARE - SPOT,2102728307
03.10.2017,ADULT SOCIAL CARE,CARE DIRECT UK LTD,530.92,PHY LTS 65+,HOMECARE - SPOT,2102728292
03.10.2017,ADULT SOCIAL CARE,CARE DIRECT UK LTD,551.6,PHY LTS 65+,HOMECARE - SPOT,2102728256
03.10.2017,ADULT SOCIAL CARE,CARE DIRECT UK LTD,723.98,PHY LTS 65+,HOMECARE - SPOT,2102728250
03.10.2017,ADULT SOCIAL CARE,CARE DIRECT UK LTD,723.98,PHY LTS 65+,HOMECARE - SPOT,2102728281
03.10.2017,ADULT SOCIAL CARE,YOUTH GRACES (UK) LTD,255.18,PHY LTS 65+,HOMECARE - C&V,2102728187
03.10.2017,ADULT SOCIAL CARE,YOUTH GRACES (UK) LTD,540.2,PHY LTS 65+,HOMECARE - C&V,2102728194
03.10.2017,ADULT SOCIAL CARE,YOUTH GRACES (UK) LTD,255.22,PHY LTS 65+,HOMECARE - SPOT,2102728170
03.10.2017,ADULT SOCIAL CARE,YOUTH GRACES (UK) LTD,282.66,PHY LTS 65+,HOMECARE - SPOT,2102728227
03.10.2017,ADULT SOCIAL CARE,YOUTH GRACES (UK) LTD,351.75,PHY LTS 65+,HOMECARE - SPOT,2102728188
03.10.2017,ADULT SOCIAL CARE,YOUTH GRACES (UK) LTD,396.61,PHY LTS 65+,HOMECARE - SPOT,2102728230
03.10.2017,ADULT SOCIAL CARE,YOUTH GRACES (UK) LTD,475.83,PHY LTS 65+,HOMECARE - SPOT,2102728191
03.10.2017,ADULT SOCIAL CARE,YOUTH GRACES (UK) LTD,482.72,PHY STS 65+,HOMECARE - IC,2102728154
03.10.2017,ADULT SOCIAL CARE,ROMEDICAL LTD,375.13,SAFEGUARDING TEAM,OTHER CONTRACTORS,5902270501
03.10.2017,ADULT SOCIAL CARE,ROMEDICAL LTD,393.47,SAFEGUARDING TEAM,OTHER CONTRACTORS,5902270510
03.10.2017,ADULT SOCIAL CARE,ROMEDICAL LTD,395.92,SAFEGUARDING TEAM,OTHER CONTRACTORS,5902270513
03.10.2017,ADULT SOCIAL CARE,ROMEDICAL LTD,571.89,SAFEGUARDING TEAM,OTHER CONTRACTORS,5902270509
03.10.2017,ADULT SOCIAL CARE,ROMEDICAL LTD,737.17,SAFEGUARDING TEAM,OTHER CONTRACTORS,5902270499
03.10.2017,ADULT SOCIAL CARE,ROMEDICAL LTD,751.41,SAFEGUARDING TEAM,OTHER CONTRACTORS,5902270503
03.10.2017,ADULT SOCIAL CARE,LONDON CARE LTD,437.08,SOCIAL ISOLATION,HOMECARE - C&V,2102728337
03.10.2017,ADULT SOCIAL CARE,LONDON CARE LTD,"1,143.36",SOCIAL ISOLATION,HOMECARE - C&V,2102728401
03.10.2017,ADULT SOCIAL CARE,YOUTH GRACES (UK) LTD,496.65,SOCIAL ISOLATION,HOMECARE - SPOT,2102728166
03.10.2017,ADULT SOCIAL CARE,KAIROS COMMUNITY TRUST,"4,800.00",SUB LTS 18-64,PLACEMENTS - REHAB,2102728248
03.10.2017,ADULT SOCIAL CARE,ACCESS INDEPENDENT LTD,385,TAXICARD SCHEME,EXTERNAL AGENCIES AND BODIES,5902270751
03.10.2017,ASSET MANAGEMENT,CLC CONTRACTORS LTD,"5,270.60",ADAPTATIONS,BUILDING R&M,2102728483
03.10.2017,ASSET MANAGEMENT,GAS ADVISORY SERVICES LIMITED,953.63,ENG CONTRACTS (NORTH),HEATING -DISTRICT SERVICE (CONTRACT SUM),5902270728
03.10.2017,ASSET MANAGEMENT,GAS ADVISORY SERVICES LIMITED,"2,082.25",ENG CONTRACTS (NORTH),HEATING -DISTRICT SERVICE (CONTRACT SUM),5902270741
03.10.2017,ASSET MANAGEMENT,A & E ELKINS LTD,"4,156.25",VISIBLE DIFFERENCE (SOUTH),BUILDING R&M,2102728057
03.10.2017,ASSET MANAGEMENT,BUILDTRUST LTD,"5,207.48",VOIDS (SOUTH),BUILDING R&M,2102728481
03.10.2017,ASSET MANAGEMENT,BUILDTRUST LTD,"5,729.41",VOIDS (SOUTH),BUILDING R&M,2102728482
03.10.2017,ASSET MANAGEMENT,BUILDTRUST LTD,"6,922.94",VOIDS (SOUTH),BUILDING R&M,2102728427
03.10.2017,ASSET MANAGEMENT,BUILDTRUST LTD,"7,127.10",VOIDS (SOUTH),BUILDING R&M,2102728426
03.10.2017,ASSET MANAGEMENT,BUILDTRUST LTD,"10,216.58",VOIDS (SOUTH),BUILDING R&M,2102728480
03.10.2017,CHIEF EXECUTIVE,CONWAY AECOM LTD,"19,099.60",CAPITAL PS (REGEN),CONSTRUCTION FEES  - EXTERNAL,5902270690
03.10.2017,CHILDREN AND ADULT,FAITHFUL & GOULD,"16,200.00",CAPITAL PS (SOC SERV),CONSTRUCTION FEES  - EXTERNAL,5902270555
03.10.2017,CHILDREN AND ADULT,SKOPOS FABRICS LTD,555.5,CAPITAL PS (SOC SERV),FIT-OUT,5902270705
03.10.2017,CHILDREN'S SERVICES,FLEET TUTORS,"33,318.00",ALTERNATIVE PROVISION,EXTERNAL AGENCIES AND BODIES,5902270704
03.10.2017,CHILDREN'S SERVICES,CAMBRIDGE HOUSE & TALBOT,"4,586.75",CAMBRIDGE HOUSE,EXTERNAL AGENCIES AND BODIES,5902270566
03.10.2017,CHILDREN'S SERVICES,THE CONSTABLE EDUCATIONAL TRUST,"9,810.00",CASEWORK OLA  0-8,RECOUPMENT,2102728454
03.10.2017,CHILDREN'S SERVICES,FAIRLEY HOUSE SCHOOL,"10,300.00",CASEWORK OLA  0-8,RECOUPMENT,2102728450
03.10.2017,CHILDREN'S SERVICES,LONDON STEINER SCHOOL,"5,527.89",CASEWORK OLA  0-8,CENTRAL GOVERNMENT,2102728465
03.10.2017,CHILDREN'S SERVICES,LONDON STEINER SCHOOL,"10,990.04",CASEWORK OLA  0-8,CENTRAL GOVERNMENT,2102728466
03.10.2017,CHILDREN'S SERVICES,THE COMPLETE WORKS INDEPENDENT SCHOOL,"4,515.00",CASEWORK OLA  0-8,"SCHOOLS CAPITATION, OTHER GRANTS",2102728467
03.10.2017,CHILDREN'S SERVICES,THE COMPLETE WORKS INDEPENDENT SCHOOL,"6,200.00",CASEWORK OLA  0-8,"SCHOOLS CAPITATION, OTHER GRANTS",2102728478
03.10.2017,CHILDREN'S SERVICES,ROYAL BOROUGH OF KENSINGTON & CHELSEA,"4,419.17",CASEWORK OLA  0-8,CENTRAL GOVERNMENT,2102728461
03.10.2017,CHILDREN'S SERVICES,AMBITIOUS ABOUT AUTISM,"17,915.31",CASEWORK OLA  0-8,RECOUPMENT,2102728477
03.10.2017,CHILDREN'S SERVICES,AMBITIOUS ABOUT AUTISM,"24,042.45",CASEWORK OLA  0-8,RECOUPMENT,2102728476
03.10.2017,CHILDREN'S SERVICES,THE LIVITY SCHOOL,"27,184.22",CASEWORK OLA  0-8,RECOUPMENT,2102728458
03.10.2017,CHILDREN'S SERVICES,ROSENDALE PRIMARY SCHOOL,"13,541.50",CASEWORK OLA  0-8,STATEMENTED FEES,2102728460
03.10.2017,CHILDREN'S SERVICES,WILTSHIRE COUNCIL,"4,509.17",CASEWORK OLA  0-8,STATEMENTED FEES,2102728462
03.10.2017,CHILDREN'S SERVICES,THE ANNEX PROJECT LTD,400,CASEWORK OLA  0-8,OTHER CONTRACTORS,2102728463
03.10.2017,CHILDREN'S SERVICES,1ST PLACE CHILDREN & PARENTS CENTRE,"1,257.73",CASEWORK SOUTHWARK 0-8,OTHER LOCAL AUTHORITIES,2102728456
03.10.2017,CHILDREN'S SERVICES,LOVE ABA LTD,"1,013.80",CASEWORK SOUTHWARK 0-8,CONTRIBUTION TO PROVISIONS (TP PAYMENTS),2102728470
03.10.2017,CHILDREN'S SERVICES,REDACTED PERSONAL DATA,848.5,DISABILITY & HIV,PAYMENTS TO CARERS,2102728152
03.10.2017,CHILDREN'S SERVICES,REDACTED PERSONAL DATA,299.99,DISABILITY & HIV,PAYMENTS TO CARERS,2102728144
03.10.2017,CHILDREN'S SERVICES,REDACTED PERSONAL DATA,500,DISABILITY & HIV,PAYMENTS TO CARERS,2102728139
03.10.2017,CHILDREN'S SERVICES,REDACTED PERSONAL DATA,400,DISABILITY & HIV,COMPUTER CONSUMABLES,2102728151
03.10.2017,CHILDREN'S SERVICES,REDACTED PERSONAL DATA,"1,214.99",DISABILITY & HIV,PAYMENTS TO CARERS,2102728145
03.10.2017,CHILDREN'S SERVICES,REDACTED PERSONAL DATA,300,DISABILITY & HIV,PAYMENTS TO CARERS,2102728147
03.10.2017,CHILDREN'S SERVICES,REDACTED PERSONAL DATA,886.95,DISABILITY & HIV,PAYMENTS TO CARERS,2102728142
03.10.2017,CHILDREN'S SERVICES,REDACTED PERSONAL DATA,"1,379.91",FRIENDS & FAMILY FOSTERING,ADDITIONAL PAYMENTS TO AGENCIES/CARERS,2102728133
03.10.2017,CHILDREN'S SERVICES,REDACTED PERSONAL DATA,"1,706.35",FRIENDS & FAMILY FOSTERING,PAYMENTS TO CARERS,2102728135
03.10.2017,CHILDREN'S SERVICES,REDACTED PERSONAL DATA,400,FURTHER EDUCATION SUPPORT,OTHER PAYMENTS FOR CLIENTS,2102728123
03.10.2017,CHILDREN'S SERVICES,REDACTED PERSONAL DATA,300,FURTHER EDUCATION SUPPORT,CLIENT TRANSPORT,2102728125
03.10.2017,CHILDREN'S SERVICES,REDACTED PERSONAL DATA,500,FURTHER EDUCATION SUPPORT,OTHER PAYMENTS FOR CLIENTS,2102728124
03.10.2017,CHILDREN'S SERVICES,REDACTED PERSONAL DATA,300,FURTHER EDUCATION SUPPORT,CLIENT TRANSPORT,2102728118
03.10.2017,CHILDREN'S SERVICES,HEALTHCARE & TRANSPORT SERVICES,"49,497.75",HOME 2 SCHOOL TRANSPORT,CAB FARES,5902270590
03.10.2017,CHILDREN'S SERVICES,REDACTED PERSONAL DATA,"1,218.75",NURSERY ED GRANT 2 Y Y O,GRANTS,2102728099
03.10.2017,CHILDREN'S SERVICES,REDACTED PERSONAL DATA,"1,218.75",NURSERY ED GRANT 2 Y Y O,GRANTS,2102728103
03.10.2017,CHILDREN'S SERVICES,REDACTED PERSONAL DATA,"1,218.75",NURSERY ED GRANT 2 Y Y O,GRANTS,2102728105
03.10.2017,CHILDREN'S SERVICES,TIPTOP TODDLER LTD,"2,437.50",NURSERY ED GRANT 2 Y Y O,GRANTS,2102728101
03.10.2017,CHILDREN'S SERVICES,GEORGIA LONGHURST,"1,218.75",NURSERY ED GRANT 2 Y Y O,GRANTS,2102728102
03.10.2017,CHILDREN'S SERVICES,REGAT GEBREU,"1,218.75",NURSERY ED GRANT 2 Y Y O,GRANTS,2102728100
03.10.2017,CHILDREN'S SERVICES,C FODILI,854.1,NURSERY ED GRANT 3 Y Y.0.,GRANTS,2102728089
03.10.2017,CHILDREN'S SERVICES,DEBORAH SMITH,"1,160.25",NURSERY ED GRANT 3 Y Y.0.,GRANTS,2102728090
03.10.2017,CHILDREN'S SERVICES,REDACTED PERSONAL DATA,"1,404.00",NURSERY ED GRANT 3 Y Y.0.,GRANTS,2102728088
03.10.2017,CHILDREN'S SERVICES,VEVIENNE CAMPBELL,"2,808.00",NURSERY ED GRANT 3 Y Y.0.,GRANTS,2102728098
03.10.2017,CHILDREN'S SERVICES,REDACTED PERSONAL DATA,"1,790.36",NURSERY ED GRANT 3 Y Y.0.,GRANTS,2102728097
03.10.2017,CHILDREN'S SERVICES,SAM HILLS,"4,375.80",NURSERY ED GRANT 3 Y Y.0.,GRANTS,2102728094
03.10.2017,CHILDREN'S SERVICES,PLAY AND LEARN CHILD MINDING,"1,404.00",NURSERY ED GRANT 3 Y Y.0.,GRANTS,2102728093
03.10.2017,CHILDREN'S SERVICES,GAYNOR FRANCIS,"6,961.50",NURSERY ED GRANT 3 Y Y.0.,GRANTS,2102728092
03.10.2017,CHILDREN'S SERVICES,PATRICIA IBHAHE,"2,808.00",NURSERY ED GRANT 3 Y Y.0.,GRANTS,2102728095
03.10.2017,CHILDREN'S SERVICES,MONICA LINTON,"2,320.50",NURSERY ED GRANT 3 Y Y.0.,GRANTS,2102728096
03.10.2017,CHILDREN'S SERVICES,DAWN KENDALL-KIDD,"2,503.80",NURSERY ED GRANT 3 Y Y.0.,GRANTS,2102728091
03.10.2017,CHILDREN'S SERVICES,RIVERSTON SCHOOL,270.5,PFA TEAM SOUTHWARK 9 PLUS,"SCHOOLS CAPITATION, STANDARDS FUND",2102728464
03.10.2017,CHILDREN'S SERVICES,THE CONSTABLE EDUCATIONAL TRUST,"9,810.00",PFA TEAM SOUTHWARK 9 PLUS,RECOUPMENT,2102728453
03.10.2017,CHILDREN'S SERVICES,THE COMPLETE WORKS INDEPENDENT SCHOOL,"5,600.00",PFA TEAM SOUTHWARK 9 PLUS,"SCHOOLS CAPITATION, OTHER GRANTS",2102728479
03.10.2017,CHILDREN'S SERVICES,THE COMPLETE WORKS INDEPENDENT SCHOOL,"12,259.00",PFA TEAM SOUTHWARK 9 PLUS,"SCHOOLS CAPITATION, OTHER GRANTS",2102728468
03.10.2017,CHILDREN'S SERVICES,AMBITIOUS ABOUT AUTISM,"24,042.45",PFA TEAM SOUTHWARK 9 PLUS,RECOUPMENT,2102728471
03.10.2017,CHILDREN'S SERVICES,AMBITIOUS ABOUT AUTISM,"24,042.45",PFA TEAM SOUTHWARK 9 PLUS,RECOUPMENT,2102728472
03.10.2017,CHILDREN'S SERVICES,AMBITIOUS ABOUT AUTISM,"24,042.45",PFA TEAM SOUTHWARK 9 PLUS,RECOUPMENT,2102728474
03.10.2017,CHILDREN'S SERVICES,AMBITIOUS ABOUT AUTISM,"24,042.45",PFA TEAM SOUTHWARK 9 PLUS,RECOUPMENT,2102728475
03.10.2017,CHILDREN'S SERVICES,AMBITIOUS ABOUT AUTISM,"24,042.45",PFA TEAM SOUTHWARK 9 PLUS,"SCHOOLS CAPITATION, STANDARDS FUND",2102728473
03.10.2017,CHILDREN'S SERVICES,ILDERTON MOTORVEHICLE PROJECT,"3,125.00",PFA TEAM SOUTHWARK 9 PLUS,"SCHOOLS CAPITATION, OTHER GRANTS",2102728457
03.10.2017,CHILDREN'S SERVICES,NEW COLLEGE WORCESTER,"16,327.00",PFA TEAM SOUTHWARK 9 PLUS,RECOUPMENT,2102728469
03.10.2017,CHILDREN'S SERVICES,MANDER PORTMAN WOODWARD LTD,295,PFA TEAM SOUTHWARK 9 PLUS,"SCHOOLS CAPITATION, STANDARDS FUND",2102728451
03.10.2017,CHILDREN'S SERVICES,MANDER PORTMAN WOODWARD LTD,"9,163.00",PFA TEAM SOUTHWARK 9 PLUS,"SCHOOLS CAPITATION, STANDARDS FUND",2102728452
03.10.2017,CHILDREN'S SERVICES,POTTON HOMES LTD,"12,400.00",PFA TEAM SOUTHWARK 9 PLUS,RECOUPMENT,2102728459
03.10.2017,CHILDREN'S SERVICES,KEYS GROUP PCE,"15,166.58",PFA TEAM SOUTHWARK 9 PLUS,RECOUPMENT,2102728455
03.10.2017,CHILDREN'S SERVICES,JOHN GUEST SAFEGUARDING LIMITED,400,PRIMARY ACHIEVEMENT,CONSULTANTS SERVICES,5902270023
03.10.2017,CHILDREN'S SERVICES,ALBION PRIMARY SCHOOL,"47,190.00",PUPIL PREMIUM,"SCHOOLS CAPITATION, STANDARDS FUND",5902270605
03.10.2017,CHILDREN'S SERVICES,ALFRED SALTER PRIMARY SCHOOL,"47,730.00",PUPIL PREMIUM,"SCHOOLS CAPITATION, STANDARDS FUND",5902270606
03.10.2017,CHILDREN'S SERVICES,BELLENDEN PRIMARY SCHOOL,"24,565.00",PUPIL PREMIUM,"SCHOOLS CAPITATION, STANDARDS FUND",5902270607
03.10.2017,CHILDREN'S SERVICES,BEORMUND PRIMARY SCHOOL,"9,240.00",PUPIL PREMIUM,"SCHOOLS CAPITATION, STANDARDS FUND",5902270608
03.10.2017,CHILDREN'S SERVICES,BESSEMER GRANGE PRIMARY SCHOOL,"45,210.00",PUPIL PREMIUM,"SCHOOLS CAPITATION, STANDARDS FUND",5902270609
03.10.2017,CHILDREN'S SERVICES,BETHLEM & MAUDSLEY HOSPITAL SCHOOL,"1,636.25",PUPIL PREMIUM,"SCHOOLS CAPITATION, STANDARDS FUND",5902270610
03.10.2017,CHILDREN'S SERVICES,BOUCHER C OF E PRIMARY SCHOOL,"20,130.00",PUPIL PREMIUM,"SCHOOLS CAPITATION, STANDARDS FUND",5902270611
03.10.2017,CHILDREN'S SERVICES,BRUNSWICK PARK PRIMARY SCHOOL,"81,800.00",PUPIL PREMIUM,"SCHOOLS CAPITATION, STANDARDS FUND",5902270612
03.10.2017,CHILDREN'S SERVICES,CAMELOT PRIMARY SCHOOL,"62,515.00",PUPIL PREMIUM,"SCHOOLS CAPITATION, STANDARDS FUND",5902270613
03.10.2017,CHILDREN'S SERVICES,CHARLES DICKENS PRIMARY SCHOOL,"49,605.00",PUPIL PREMIUM,"SCHOOLS CAPITATION, STANDARDS FUND",5902270614
03.10.2017,CHILDREN'S SERVICES,CHARLOTTE  SHARMAN PRIMARY SCHOOL,"43,305.00",PUPIL PREMIUM,"SCHOOLS CAPITATION, STANDARDS FUND",5902270615
03.10.2017,CHILDREN'S SERVICES,ST JOSEPHS RC JUNIOR  SCHOOL,"29,040.00",PUPIL PREMIUM,"SCHOOLS CAPITATION, STANDARDS FUND",5902270616
03.10.2017,CHILDREN'S SERVICES,ST JOSEPHS CATHOLIC INFANTS SCHOOL,"13,860.00",PUPIL PREMIUM,"SCHOOLS CAPITATION, STANDARDS FUND",5902270617
03.10.2017,CHILDREN'S SERVICES,ST JUDES CHURCH OF ENGLAND PRIMARY,"11,220.00",PUPIL PREMIUM,"SCHOOLS CAPITATION, STANDARDS FUND",5902270618
03.10.2017,CHILDREN'S SERVICES,CHERRY GARDEN SCHOOL,"10,560.00",PUPIL PREMIUM,"SCHOOLS CAPITATION, STANDARDS FUND",5902270619
03.10.2017,CHILDREN'S SERVICES,COBOURG PRIMARY SCHOOL,"54,780.00",PUPIL PREMIUM,"SCHOOLS CAPITATION, STANDARDS FUND",5902270620
03.10.2017,CHILDREN'S SERVICES,COMBER GROVE PRIMARY SCHOOL,"33,990.00",PUPIL PREMIUM,"SCHOOLS CAPITATION, STANDARDS FUND",5902270621
03.10.2017,CHILDREN'S SERVICES,CRAMPTON PRIMARY SCHOOL,"26,320.00",PUPIL PREMIUM,"SCHOOLS CAPITATION, STANDARDS FUND",5902270622
03.10.2017,CHILDREN'S SERVICES,CRAWFORD PRIMARY SCHOOL,"69,115.00",PUPIL PREMIUM,"SCHOOLS CAPITATION, STANDARDS FUND",5902270623
03.10.2017,CHILDREN'S SERVICES,DOG KENNEL HILL PRIMARY SCHOOL,"36,300.00",PUPIL PREMIUM,"SCHOOLS CAPITATION, STANDARDS FUND",5902270624
03.10.2017,CHILDREN'S SERVICES,DULWICH VILLAGE CE INFANTS SCHOOL,"8,090.00",PUPIL PREMIUM,"SCHOOLS CAPITATION, STANDARDS FUND",5902270625
03.10.2017,CHILDREN'S SERVICES,GOODRICH PRIMARY SCHOOL,"50,950.00",PUPIL PREMIUM,"SCHOOLS CAPITATION, STANDARDS FUND",5902270626
03.10.2017,CHILDREN'S SERVICES,GRANGE PRIMARY SCHOOL,"62,700.00",PUPIL PREMIUM,"SCHOOLS CAPITATION, STANDARDS FUND",5902270627
03.10.2017,CHILDREN'S SERVICES,ENGLISH MARTYRS RC PRIMARY SCHOOL,"42,975.00",PUPIL PREMIUM,"SCHOOLS CAPITATION, STANDARDS FUND",5902270628
03.10.2017,CHILDREN'S SERVICES,EVELINA HOSPITAL SCHOOL,"1,870.00",PUPIL PREMIUM,"SCHOOLS CAPITATION, STANDARDS FUND",5902270629
03.10.2017,CHILDREN'S SERVICES,PHOENIX PRIMARY SCHOOL,"62,115.00",PUPIL PREMIUM,"SCHOOLS CAPITATION, STANDARDS FUND",5902270630
03.10.2017,CHILDREN'S SERVICES,FRIARS PRIMARY SCHOOL,"23,100.00",PUPIL PREMIUM,"SCHOOLS CAPITATION, STANDARDS FUND",5902270631
03.10.2017,CHILDREN'S SERVICES,HEBER PRIMARY SCHOOL,"23,100.00",PUPIL PREMIUM,"SCHOOLS CAPITATION, STANDARDS FUND",5902270632
03.10.2017,CHILDREN'S SERVICES,HOLLYDALE PRIMARY SCHOOL,"38,280.00",PUPIL PREMIUM,"SCHOOLS CAPITATION, STANDARDS FUND",5902270633
03.10.2017,CHILDREN'S SERVICES,ILDERTON PRIMARY SCHOOL,"53,235.00",PUPIL PREMIUM,"SCHOOLS CAPITATION, STANDARDS FUND",5902270634
03.10.2017,CHILDREN'S SERVICES,IVYDALE PRIMARY SCHOOL,"42,450.00",PUPIL PREMIUM,"SCHOOLS CAPITATION, STANDARDS FUND",5902270635
03.10.2017,CHILDREN'S SERVICES,JOHN RUSKIN PRIMARY SCHOOL,"66,000.00",PUPIL PREMIUM,"SCHOOLS CAPITATION, STANDARDS FUND",5902270636
03.10.2017,CHILDREN'S SERVICES,KEYWORTH PRIMARY SCHOOL,"57,090.00",PUPIL PREMIUM,"SCHOOLS CAPITATION, STANDARDS FUND",5902270637
03.10.2017,CHILDREN'S SERVICES,DULWICH WOOD PRIMARY SCHOOL,"34,650.00",PUPIL PREMIUM,"SCHOOLS CAPITATION, STANDARDS FUND",5902270638
03.10.2017,CHILDREN'S SERVICES,LYNDHURST PRIMARY SCHOOL,"38,425.00",PUPIL PREMIUM,"SCHOOLS CAPITATION, STANDARDS FUND",5902270639
03.10.2017,CHILDREN'S SERVICES,HAYMERLE SCHOOL,"22,770.00",PUPIL PREMIUM,"SCHOOLS CAPITATION, STANDARDS FUND",5902270640
03.10.2017,CHILDREN'S SERVICES,HIGHSHORE SCHOOL,"15,290.00",PUPIL PREMIUM,"SCHOOLS CAPITATION, STANDARDS FUND",5902270641
03.10.2017,CHILDREN'S SERVICES,MICHAEL FARADAY PRIMARY SCHOOL,"61,485.00",PUPIL PREMIUM,"SCHOOLS CAPITATION, STANDARDS FUND",5902270642
03.10.2017,CHILDREN'S SERVICES,NOTRE DAME RC GIRLS SCHOOL,"79,256.25",PUPIL PREMIUM,"SCHOOLS CAPITATION, STANDARDS FUND",5902270643
03.10.2017,CHILDREN'S SERVICES,OLIVER GOLDSMITH PRIMARY SCHOOL,"68,310.00",PUPIL PREMIUM,"SCHOOLS CAPITATION, STANDARDS FUND",5902270644
03.10.2017,CHILDREN'S SERVICES,PETER HILLS CE SCHOOL,"23,505.00",PUPIL PREMIUM,"SCHOOLS CAPITATION, STANDARDS FUND",5902270645
03.10.2017,CHILDREN'S SERVICES,PILGRIM'S WAY PRIMARY SCHOOL,"35,310.00",PUPIL PREMIUM,"SCHOOLS CAPITATION, STANDARDS FUND",5902270646
03.10.2017,CHILDREN'S SERVICES,RIVERSIDE PRIMARY SCHOOL,"60,865.00",PUPIL PREMIUM,"SCHOOLS CAPITATION, STANDARDS FUND",5902270647
03.10.2017,CHILDREN'S SERVICES,ROBERT BROWNING PRIMARY SCHOOL,"46,200.00",PUPIL PREMIUM,"SCHOOLS CAPITATION, STANDARDS FUND",5902270648
03.10.2017,CHILDREN'S SERVICES,ROTHERHITHE PRIMARY SCHOOL,"86,460.00",PUPIL PREMIUM,"SCHOOLS CAPITATION, STANDARDS FUND",5902270649
03.10.2017,CHILDREN'S SERVICES,RYE OAK PRIMARY SCHOOL,"59,070.00",PUPIL PREMIUM,"SCHOOLS CAPITATION, STANDARDS FUND",5902270650
03.10.2017,CHILDREN'S SERVICES,SNOWSFIELDS PRIMARY SCHOOL,"25,740.00",PUPIL PREMIUM,"SCHOOLS CAPITATION, STANDARDS FUND",5902270651
03.10.2017,CHILDREN'S SERVICES,SOUTHWARK PARK PRIMARY SCHOOL,"47,110.00",PUPIL PREMIUM,"SCHOOLS CAPITATION, STANDARDS FUND",5902270652
03.10.2017,CHILDREN'S SERVICES,SPA SCHOOL,"9,116.25",PUPIL PREMIUM,"SCHOOLS CAPITATION, STANDARDS FUND",5902270653
03.10.2017,CHILDREN'S SERVICES,ST ANTHONYS RC SCHOOL,"17,450.00",PUPIL PREMIUM,"SCHOOLS CAPITATION, STANDARDS FUND",5902270654
03.10.2017,CHILDREN'S SERVICES,ST FRANCESCA CABRINI PRIMARY SCHOOL,"42,900.00",PUPIL PREMIUM,"SCHOOLS CAPITATION, STANDARDS FUND",5902270655
03.10.2017,CHILDREN'S SERVICES,ST FRANCIS'S RC PRIMARY SCHOOL,"34,980.00",PUPIL PREMIUM,"SCHOOLS CAPITATION, STANDARDS FUND",5902270656
03.10.2017,CHILDREN'S SERVICES,ST GEORGES RC SCHOOL,"31,495.00",PUPIL PREMIUM,"SCHOOLS CAPITATION, STANDARDS FUND",5902270657
03.10.2017,CHILDREN'S SERVICES,ST GEORGES CE SCHOOL,"17,305.00",PUPIL PREMIUM,"SCHOOLS CAPITATION, STANDARDS FUND",5902270658
03.10.2017,CHILDREN'S SERVICES,ST JAMES CE SCHOOL,"85,430.00",PUPIL PREMIUM,"SCHOOLS CAPITATION, STANDARDS FUND",5902270659
03.10.2017,CHILDREN'S SERVICES,ST JAMES THE GREAT RC SCHOOL,"22,440.00",PUPIL PREMIUM,"SCHOOLS CAPITATION, STANDARDS FUND",5902270660
03.10.2017,CHILDREN'S SERVICES,ST JOHNS WALWORTH CE SCHOOL,"22,440.00",PUPIL PREMIUM,"SCHOOLS CAPITATION, STANDARDS FUND",5902270661
03.10.2017,CHILDREN'S SERVICES,ST JOHNS & ST CLEMENTS CE SCHOOL,"24,630.00",PUPIL PREMIUM,"SCHOOLS CAPITATION, STANDARDS FUND",5902270662
03.10.2017,CHILDREN'S SERVICES,THE ST THOMAS THE APOSTLE COLLEGE,"67,320.00",PUPIL PREMIUM,"SCHOOLS CAPITATION, STANDARDS FUND",5902270663
03.10.2017,CHILDREN'S SERVICES,ST JOHNS RC PRIMARY SCHOOL,"28,710.00",PUPIL PREMIUM,"SCHOOLS CAPITATION, STANDARDS FUND",5902270664
03.10.2017,CHILDREN'S SERVICES,ST JOSEPHS CATHOLIC SCHOOL,"22,255.00",PUPIL PREMIUM,"SCHOOLS CAPITATION, STANDARDS FUND",5902270665
03.10.2017,CHILDREN'S SERVICES,ST JOSEPHS RC PRIMARY SCHOOL,"25,410.00",PUPIL PREMIUM,"SCHOOLS CAPITATION, STANDARDS FUND",5902270666
03.10.2017,CHILDREN'S SERVICES,ST JOSEPHS CATHOLIC PRIMARY SCHOOL,"20,420.00",PUPIL PREMIUM,"SCHOOLS CAPITATION, STANDARDS FUND",5902270667
03.10.2017,CHILDREN'S SERVICES,ST MARY MAGDALENE CE SCHOOL,"25,845.00",PUPIL PREMIUM,"SCHOOLS CAPITATION, STANDARDS FUND",5902270668
03.10.2017,CHILDREN'S SERVICES,ST PAULS CE SCHOOL,"43,560.00",PUPIL PREMIUM,"SCHOOLS CAPITATION, STANDARDS FUND",5902270669
03.10.2017,CHILDREN'S SERVICES,ST PETERS CE SCHOOL,"26,545.00",PUPIL PREMIUM,"SCHOOLS CAPITATION, STANDARDS FUND",5902270670
03.10.2017,CHILDREN'S SERVICES,ST SAVIOURS & ST OLAVES SCHOOL,"67,554.00",PUPIL PREMIUM,"SCHOOLS CAPITATION, STANDARDS FUND",5902270671
03.10.2017,CHILDREN'S SERVICES,SURREY SQUARE JUNIOR SCHOOL,"51,810.00",PUPIL PREMIUM,"SCHOOLS CAPITATION, STANDARDS FUND",5902270672
03.10.2017,CHILDREN'S SERVICES,CATHEDRAL SCHOOL OF ST SAVIOUR & MARY,"12,025.00",PUPIL PREMIUM,"SCHOOLS CAPITATION, STANDARDS FUND",5902270673
03.10.2017,CHILDREN'S SERVICES,TOWER BRIDGE PRIMARY SCHOOL,"33,330.00",PUPIL PREMIUM,"SCHOOLS CAPITATION, STANDARDS FUND",5902270674
03.10.2017,CHILDREN'S SERVICES,TOWNSEND PRIMARY SCHOOL,"31,350.00",PUPIL PREMIUM,"SCHOOLS CAPITATION, STANDARDS FUND",5902270675
03.10.2017,CHILDREN'S SERVICES,TUKE SCHOOL,"7,672.50",PUPIL PREMIUM,"SCHOOLS CAPITATION, STANDARDS FUND",5902270676
03.10.2017,CHILDREN'S SERVICES,VICTORY SCHOOL,"21,780.00",PUPIL PREMIUM,"SCHOOLS CAPITATION, STANDARDS FUND",5902270677
03.10.2017,CHILDREN'S SERVICES,SOUTHWARK INCLUSIVE LEARNING SERVICE,"18,233.00",PUPIL PREMIUM,"SCHOOLS CAPITATION, STANDARDS FUND",5902270678
03.10.2017,CHILDREN'S SERVICES,PURPLE PEBBLES(CHILD CARE) SERVICES,-959.74,S24 CLA,EXTERNAL AGENCIES AND BODIES,2102720629
03.10.2017,CHILDREN'S SERVICES,PURPLE PEBBLES(CHILD CARE) SERVICES,-540,S24 CLA,EXTERNAL AGENCIES AND BODIES,2102720391
03.10.2017,CHILDREN'S SERVICES,PURPLE PEBBLES(CHILD CARE) SERVICES,325,S24 CLA,EXTERNAL AGENCIES AND BODIES,5902270496
03.10.2017,CHILDREN'S SERVICES,PURPLE PEBBLES(CHILD CARE) SERVICES,"1,284.29",S24 CLA,EXTERNAL AGENCIES AND BODIES,5902270495
03.10.2017,CHILDREN'S SERVICES,FUTURE FOUNDATIONS LTD,"5,446.28",SEMI INDEPENDENT,EXTERNAL AGENCIES AND BODIES,5902270497
03.10.2017,CHILDREN'S SERVICES,REDACTED PERSONAL DATA,300,UNIVERSITY SUPPORT,CLIENT TRANSPORT,2102728126
03.10.2017,CHILDREN'S SERVICES,REDACTED PERSONAL DATA,700,UNIVERSITY SUPPORT,OTHER PAYMENTS FOR CLIENTS,2102728127
03.10.2017,COMMISSIONING & CENTRAL,LOOK AHEAD CARE AND SUPPORT LTD,"26,000.00",SUPPORTING PEOPLE,EXTERNAL AGENCIES AND BODIES,5902270739
03.10.2017,COMMUNITIES,ABOUT THIS VAN,"1,870.00",COMMUNITY COUNCILS TEAM,DELIVERY CHARGES,5902269922
03.10.2017,COMMUNITIES,COMMUNITY SOUTHWARK,"105,932.50",CVS & VOLUNTEERING,GRANTS,5902270500
03.10.2017,COMMUNITIES,COMMUNITY SOUTHWARK,"30,000.00",HEALTHWATCH,GRANTS,5902270542
03.10.2017,COMMUNITIES,KENNINGTON PARK HSE MGMT CO-OP,"4,598.00",KENNINGTON PK CO-OP,M&M ALLOWANCE CO-OPS,5902270212
03.10.2017,COMMUNITIES,KENNINGTON PARK HSE MGMT CO-OP,"16,092.00",KENNINGTON PK CO-OP,M&M ALLOWANCE CO-OPS,5902270213
03.10.2017,COMMUNITIES,SOUTHWARK CITIZENS ADVICE,"96,550.00",LEGAL GRANTS,EXTERNAL AGENCIES AND BODIES,5902270735
03.10.2017,COMMUNITIES,ADVISING LONDON,"18,000.00",LEGAL GRANTS,EXTERNAL AGENCIES AND BODIES,5902270737
03.10.2017,COMMUNITIES,ADVISING LONDON,"78,345.00",LEGAL GRANTS,EXTERNAL AGENCIES AND BODIES,5902270719
03.10.2017,COMMUNITIES,SOUTH OF THE RIVER INVESTMENTS LTD,"1,200.00",NO RECOURSE TO PUBLIC FUNDS,ACCOMMODATION CHARGES,5902270724
03.10.2017,COMMUNITIES,SOUTH OF THE RIVER INVESTMENTS LTD,"1,500.00",NO RECOURSE TO PUBLIC FUNDS,ACCOMMODATION CHARGES,5902270720
03.10.2017,COMMUNITIES,WRAYBURN COMMUNITIES ORGANISATION LTD,"2,666.68",TENANT MGT INITITIVES,DISCRETIONARY AWARDS AND FEES,5902269836
03.10.2017,COMMUNITIES,SOUTHWARK GROUP OF TENANTS ORGANISATION,"59,662.50",TENANTS FUND,GRANTS,5902270567
03.10.2017,COMMUNITIES,ST FAITHS COMMUNITY CENTRE,"5,115.25",VCS GRANTS,GRANTS,5902270565
03.10.2017,COMMUNITIES,TIME & TALENTS ASSOCIATION,"1,067.75",VCS GRANTS,GRANTS,5902270570
03.10.2017,COMMUNITIES,TIME & TALENTS ASSOCIATION,"3,475.50",VCS GRANTS,GRANTS,5902270569
03.10.2017,COMMUNITIES,LONDON WILDLIFE TRUST,"7,968.75",VCS GRANTS,GRANTS,5902270571
03.10.2017,COMMUNITIES,SOUTHWARK CITIZENS ADVICE,"5,600.00",VCS GRANTS,GRANTS,5902270572
03.10.2017,COMMUNITIES,EAST DULWICH COMMUNITY CENTRE,"1,740.00",VCS GRANTS,GRANTS,5902270573
03.10.2017,COMMUNITIES,SOMALI INTEGRATION & DEVELOPMENT ASSOCIATION,"13,222.50",VCS GRANTS,GRANTS,5902270574
03.10.2017,COMMUNITIES,BEORMUND COMMUNITY CENTRE,"17,437.25",VCS GRANTS,GRANTS,5902270575
03.10.2017,COMMUNITIES,BEDE HSE,"3,475.50",VCS GRANTS,GRANTS,5902270576
03.10.2017,COMMUNITIES,CAMBRIDGE HOUSE & TALBOT,"3,475.50",VCS GRANTS,GRANTS,5902270577
03.10.2017,COMMUNITIES,PECAN LTD,"6,429.00",VCS GRANTS,GRANTS,5902270579
03.10.2017,COMMUNITIES,PECAN LTD,"6,863.00",VCS GRANTS,GRANTS,5902270578
03.10.2017,COMMUNITIES,SURREY DOCKS FARM PROVIDENT SOCIETY,"10,678.25",VCS GRANTS,GRANTS,5902270580
03.10.2017,COMMUNITIES,ORGANISATION OF BLIND AFRICANS & CARIBBEANS,"4,084.25",VCS GRANTS,GRANTS,5902270581
03.10.2017,COMMUNITIES,AAINA WOMEN GROUP,"8,018.25",VCS GRANTS,GRANTS,5902270582
03.10.2017,COMMUNITIES,SOUTHWARK PENSIONERS CENTRE,"28,355.25",VCS GRANTS,GRANTS,5902270584
03.10.2017,COMMUNITIES,SWK DAY CTR FOR ASYLUM SEEKERS,"11,330.25",VCS GRANTS,GRANTS,5902270588
03.10.2017,COMMUNITIES,AYLESBURY EVERY WOMAN'S CENTRE,"3,600.00",VCS GRANTS,GRANTS,5902270589
03.10.2017,COMMUNITIES,WORKING WITH MEN,"3,600.00",VCS GRANTS,GRANTS,5902270591
03.10.2017,COMMUNITIES,COOLTAN ARTS,"3,187.50",VCS GRANTS,GRANTS,5902270592
03.10.2017,COMMUNITIES,MENTAL FIGHT CLUB,"1,870.00",VCS GRANTS,GRANTS,5902270593
03.10.2017,COMMUNITIES,CRYSTAL PALACE COMM DEV TRUST,"2,264.75",VCS GRANTS,GRANTS,5902270594
03.10.2017,COMMUNITIES,LATIN AMERICAN DISABLED PEOPLE PROJECT,"4,000.00",VCS GRANTS,GRANTS,5902270595
03.10.2017,COMMUNITIES,LATIN AMERICAN WOMEN'S RIGHTS SERVICES,"3,400.00",VCS GRANTS,GRANTS,5902270597
03.10.2017,COMMUNITIES,PAXTON GREEN TIME BANK,"3,600.00",VCS GRANTS,GRANTS,5902270600
03.10.2017,COMMUNITIES,BLACKFRIARS SETTLEMENT,"5,574.75",VCS GRANTS,GRANTS,5902270601
03.10.2017,COMMUNITIES,BERMONDSEY COMMUNITY KITCHEN,"3,500.00",VCS GRANTS,GRANTS,5902270602
03.10.2017,COMMUNITIES,THE BIKE PROJECT,"3,750.00",VCS GRANTS,GRANTS,5902270603
03.10.2017,COMMUNITIES,SOUTHWARK TRAVELLERS' ACTION,"5,750.00",VCS GRANTS,GRANTS,5902270604
03.10.2017,CUSTOMER EXPERIENCE HGF,TAAKSVALE HOUSING LTD,"14,000.00",PSL PLACEMENTS,EXTERNAL AGENCIES AND BODIES,5902270682
03.10.2017,CUSTOMER EXPERIENCE HGF,TAAKSVALE HOUSING LTD,"17,500.00",PSL PLACEMENTS,EXTERNAL AGENCIES AND BODIES,5902270683
03.10.2017,ENVIRONMENT AND LEISURE,THAMES WATER UTILITIES LTD,485,CAPITAL PS (LEISURE),CONSTRUCTION MAIN CONTRACT -CERTIFICATED,5902270518
03.10.2017,ENVIRONMENT AND LEISURE,CONWAY AECOM LTD,"126,329.18",CAPITAL PS (LEISURE),CONSTRUCTION,2102728485
03.10.2017,ENVIRONMENT AND SOCIAL REGENERATION,BLACKBURNS METALS LTD,363,STORES,CREDITORS -GR/IR CLEARING ACCOUNT,5902270693
03.10.2017,ENVIRONMENT AND SOCIAL REGENERATION,BLACKBURNS METALS LTD,420,STORES,CREDITORS -GR/IR CLEARING ACCOUNT,5902270693
03.10.2017,ENVIRONMENT AND SOCIAL REGENERATION,BLACKBURNS METALS LTD,"1,035.00",STORES,CREDITORS -GR/IR CLEARING ACCOUNT,5902270693
03.10.2017,ENVIRONMENT AND SOCIAL REGENERATION,A T & T (GB LTD ),"1,540.44",STORES,CREDITORS -GR/IR CLEARING ACCOUNT,5902270694
03.10.2017,ENVIRONMENT DIRECTORATE,JACK TALBOT,500,FOOD SAFETY,LEGAL FEES & COURT COSTS,2102712758
03.10.2017,ENVIRONMENT DIRECTORATE,CONWAY AECOM LTD,"196,167.50",HIGHWAY MAINTENANCE OVERHEADS,HIGHWAYS TERM CONTRACT,2102728484
03.10.2017,ENVIRONMENT DIRECTORATE,IMPERIAL POLYTHENE PRODUCTS LTD,779.1,MANAGEMENT TEAM,MATERIALS,5902270517
03.10.2017,ENVIRONMENT DIRECTORATE,KILLGERM CHEMICALS LTD,332.43,PEST CONTROL,MATERIALS,5902270718
03.10.2017,ENVIRONMENT DIRECTORATE,BARRETTINE ENVIRONMENTAL HEALTH,290.34,PEST CONTROL,MATERIALS,5902270723
03.10.2017,ENVIRONMENT DIRECTORATE,BARRETTINE ENVIRONMENTAL HEALTH,"1,652.71",PEST CONTROL,MATERIALS,5902270725
03.10.2017,ENVIRONMENT DIRECTORATE,1ENV SOLUTIONS LTD,"1,656.99",PEST CONTROL,MATERIALS,5902270696
03.10.2017,ENVIRONMENT DIRECTORATE,A & H PEST CONTROL LTD,590,PEST CONTROL-CDN A/C,OTHER CONTRACTORS,5902270695
03.10.2017,ENVIRONMENT DIRECTORATE,1ENV SOLUTIONS LTD,348.58,PEST CONTROL-CDN A/C,MATERIALS,5902270700
03.10.2017,ENVIRONMENT DIRECTORATE,JALITE PLC,340,SIGN SHOP,MATERIALS,5902270689
03.10.2017,ENVIRONMENT DIRECTORATE,NPOWER LTD,429.65,STRUCTURES MAJOR ROADS,OTHER CONTRACTORS,5902270684
03.10.2017,F & C S EXCLUDING CORPORATE BUDGETS,JACK TALBOT,750,ANTI-FRAUD AND INVESTIGATIONS,LEGAL FEES & COURT COSTS,2102712757
03.10.2017,FINANCE & GOVERNANCE,LAND REGISTRY,461,REGENERATION,PROFESSIONAL FEES ,DIRECT DEBIT PAYMENT
03.10.2017,HOUSING,GAS ADVISORY SERVICES LIMITED,"11,894.15",PHOENIX,MANUAL CREDITORS,5902270732
03.10.2017,HOUSING,GAS ADVISORY SERVICES LIMITED,"16,832.11",PHOENIX,MANUAL CREDITORS,5902270738
03.10.2017,HOUSING HRA,POTTER RAPER AND PARTNERS,"1,590.10",CAPITAL PS (HRA),CONSTRUCTION FEES  - EXTERNAL,5902270744
03.10.2017,HOUSING HRA,CALFORD SEADEN LLP,"2,041.45",CAPITAL PS (HRA),CONSTRUCTION FEES  - EXTERNAL,5902270730
03.10.2017,HOUSING HRA,A & E ELKINS LTD,"107,236.15",CAPITAL PS (HRA),CONSTRUCTION MAIN CONTRACT -CERTIFICATED,2102728058
03.10.2017,HOUSING HRA,A & E ELKINS LTD,"191,336.86",CAPITAL PS (HRA),CONSTRUCTION MAIN CONTRACT -CERTIFICATED,2102728425
03.10.2017,HOUSING HRA,TEMPLE GROUP LTD,"3,141.25",CAPITAL PS (HRA),CONSTRUCTION FEES  - EXTERNAL,5902270745
03.10.2017,LEISURE DIRECTORATE,KENT COUNTY COUNCIL - LASER,"1,482.67",DULWICH LIBRARY,ELECTRICITY,5902270681
03.10.2017,LEISURE DIRECTORATE,THE AHOY CENTRE,345,SDM BUDGET,TRAINING,5902270498
03.10.2017,LEISURE DIRECTORATE,CASTLE WATER LTD,628.94,SDM BUDGET,WATER,5902270519
03.10.2017,MODERNISATION HGF,TMP (UK) LIMITED,575,ADVERTISING,RECRUITMENT ADVERTISING,5902270692
03.10.2017,MODERNISATION HGF,TMP (UK) LIMITED,"20,000.00",ADVERTISING,RECRUITMENT ADVERTISING,5902270697
03.10.2017,MODERNISATION HGF,EAST DULWICH EST T&RA,480,FOSTER CARERS TRAINING,GRANTS,5902270547
03.10.2017,REGENERATION,VEOLIA ES (UK)LTD,596.43,KENNINGTON WORKSHOPS,REFUSE COLLECTION CONTRACT,5902270526
03.10.2017,REGENERATION,VEOLIA ES (UK)LTD,273.74,LBS SOJOURNER TRUTH COMMUNITY CENTRE,REFUSE COLLECTION CONTRACT,5902270531
03.10.2017,REGENERATION,THE CAMDEN SOCIETY (CATERING),335,REGENERATION SOUTH - M & A,REFRESHMENTS FOR MEETINGS,5902270523
03.10.2017,REGENERATION,INITIAL WASHROOM SOLUTIONS,"1,326.01",TOWER WORKSHOPS,PREMISES CLEANING,5902270686
03.10.2017,RESIDENT SERVICES,EDF ENERGY PLC,383.87,OPERATIONS/OFFICES ACCOMMODATION,ELECTRICITY,5902270540
04.10.2017,ADULT SOCIAL CARE,REDACTED PERSONAL DATA,630,APPOINTEESHIPS,OTHER PAYMENTS FOR CLIENTS,2102729334
04.10.2017,ADULT SOCIAL CARE,GUYS & ST THOMAS NHS FOUNDATION TRUST,"5,760.00",DIR OF ASC,PROFESSIONAL FEES,5902270896
04.10.2017,ADULT SOCIAL CARE,MIHOMECARE LTD,816.96,LD LTS 18-64,HOMECARE - C&V,2102729316
04.10.2017,ADULT SOCIAL CARE,EXPERTS BY EXPERIENCE LTD,"1,972.20",LD/MH/SM MANAGEMENT,MISCELLANEOUS RECHARGES,5902270813
04.10.2017,ADULT SOCIAL CARE,MIHOMECARE LTD,476.56,MEM LTS 18-64,HOMECARE - C&V,2102729109
04.10.2017,ADULT SOCIAL CARE,MIHOMECARE LTD,"1,089.29",MEM LTS 18-64,HOMECARE - C&V,2102729282
04.10.2017,ADULT SOCIAL CARE,MIHOMECARE LTD,544.64,MEM LTS 65+,HOMECARE - C&V,2102729088
04.10.2017,ADULT SOCIAL CARE,MIHOMECARE LTD,544.64,MEM LTS 65+,HOMECARE - C&V,2102729095
04.10.2017,ADULT SOCIAL CARE,MIHOMECARE LTD,544.64,MEM LTS 65+,HOMECARE - C&V,2102729112
04.10.2017,ADULT SOCIAL CARE,YOUTH GRACES (UK) LTD,665.3,MEM LTS 65+,HOMECARE - C&V,2102729162
04.10.2017,ADULT SOCIAL CARE,YOUTH GRACES (UK) LTD,261.98,MEM LTS 65+,HOMECARE - SPOT,2102729183
04.10.2017,ADULT SOCIAL CARE,MIHOMECARE LTD,255.3,MH LTS 18-64,HOMECARE - C&V,2102729071
04.10.2017,ADULT SOCIAL CARE,MIHOMECARE LTD,468.05,MH LTS 18-64,HOMECARE - C&V,2102729055
04.10.2017,ADULT SOCIAL CARE,MIHOMECARE LTD,544.64,MH LTS 18-64,HOMECARE - C&V,2102729059
04.10.2017,ADULT SOCIAL CARE,MIHOMECARE LTD,646.76,MH LTS 18-64,HOMECARE - C&V,2102729262
04.10.2017,ADULT SOCIAL CARE,MIHOMECARE LTD,953.12,MH LTS 18-64,HOMECARE - C&V,2102729049
04.10.2017,ADULT SOCIAL CARE,REDACTED PERSONAL DATA,720.39,MH LTS 18-64,HOMECARE - SPOT,2102729140
04.10.2017,ADULT SOCIAL CARE,REDACTED PERSONAL DATA,699.3,MH LTS 18-64,DISCRETIONARY FLEXIBLE FEES & INCOME,2102729138
04.10.2017,ADULT SOCIAL CARE,PALM TREE RECOVERY CLUB,264,MH LTS 18-64,DAYCARE,2102726020
04.10.2017,ADULT SOCIAL CARE,PALM TREE RECOVERY CLUB,385,MH LTS 18-64,HOMECARE - SPOT,2102725311
04.10.2017,ADULT SOCIAL CARE,PALM TREE RECOVERY CLUB,399.96,MH LTS 18-64,HOMECARE - SPOT,2102725590
04.10.2017,ADULT SOCIAL CARE,PALM TREE RECOVERY CLUB,399.96,MH LTS 18-64,HOMECARE - SPOT,2102725770
04.10.2017,ADULT SOCIAL CARE,PALM TREE RECOVERY CLUB,492,MH LTS 18-64,HOMECARE - SPOT,2102726178
04.10.2017,ADULT SOCIAL CARE,PALM TREE RECOVERY CLUB,500,MH LTS 18-64,HOMECARE - SPOT,2102725610
04.10.2017,ADULT SOCIAL CARE,PALM TREE RECOVERY CLUB,"6,156.53",MH LTS 18-64,HOMECARE - SPOT,2102729141
04.10.2017,ADULT SOCIAL CARE,MIHOMECARE LTD,340.4,MH LTS 65+,HOMECARE - C&V,2102729056
04.10.2017,ADULT SOCIAL CARE,MIHOMECARE LTD,499.8,MH LTS 65+,HOMECARE - C&V,2102729091
04.10.2017,ADULT SOCIAL CARE,MIHOMECARE LTD,578.68,MH LTS 65+,HOMECARE - C&V,2102729115
04.10.2017,ADULT SOCIAL CARE,MIHOMECARE LTD,851,MH LTS 65+,HOMECARE - C&V,2102729068
04.10.2017,ADULT SOCIAL CARE,MIHOMECARE LTD,953.12,MH LTS 65+,HOMECARE - C&V,2102729084
04.10.2017,ADULT SOCIAL CARE,MIHOMECARE LTD,"1,021.20",MH LTS 65+,HOMECARE - C&V,2102729093
04.10.2017,ADULT SOCIAL CARE,MIHOMECARE LTD,"1,021.20",MH LTS 65+,HOMECARE - C&V,2102729100
04.10.2017,ADULT SOCIAL CARE,MIHOMECARE LTD,"1,021.20",MH LTS 65+,HOMECARE - C&V,2102729135
04.10.2017,ADULT SOCIAL CARE,MIHOMECARE LTD,"1,021.20",MH LTS 65+,HOMECARE - C&V,2102729136
04.10.2017,ADULT SOCIAL CARE,MIHOMECARE LTD,"1,038.22",MH LTS 65+,HOMECARE - C&V,2102729092
04.10.2017,ADULT SOCIAL CARE,MIHOMECARE LTD,"1,055.24",MH LTS 65+,HOMECARE - C&V,2102729081
04.10.2017,ADULT SOCIAL CARE,MIHOMECARE LTD,"1,055.24",MH LTS 65+,HOMECARE - C&V,2102729082
04.10.2017,ADULT SOCIAL CARE,MIHOMECARE LTD,"1,055.24",MH LTS 65+,HOMECARE - C&V,2102729083
04.10.2017,ADULT SOCIAL CARE,MIHOMECARE LTD,"1,055.24",MH LTS 65+,HOMECARE - C&V,2102729137
04.10.2017,ADULT SOCIAL CARE,MIHOMECARE LTD,"1,325.01",MH LTS 65+,HOMECARE - C&V,2102729067
04.10.2017,ADULT SOCIAL CARE,YOUTH GRACES (UK) LTD,263.16,MH LTS 65+,HOMECARE - SPOT,2102729193
04.10.2017,ADULT SOCIAL CARE,CICELY HAYWARD,875,OLDER PEOPLE MGMT,LEGAL FEES & COURT COSTS,2102729344
04.10.2017,ADULT SOCIAL CARE,MIHOMECARE LTD,255.3,PHY LTS 18-64,HOMECARE - C&V,2102729276
04.10.2017,ADULT SOCIAL CARE,MIHOMECARE LTD,255.3,PHY LTS 18-64,HOMECARE - C&V,2102729290
04.10.2017,ADULT SOCIAL CARE,MIHOMECARE LTD,263.83,PHY LTS 18-64,HOMECARE - C&V,2102729302
04.10.2017,ADULT SOCIAL CARE,MIHOMECARE LTD,306.36,PHY LTS 18-64,HOMECARE - C&V,2102729317
04.10.2017,ADULT SOCIAL CARE,MIHOMECARE LTD,340.4,PHY LTS 18-64,HOMECARE - C&V,2102729287
04.10.2017,ADULT SOCIAL CARE,MIHOMECARE LTD,340.4,PHY LTS 18-64,HOMECARE - C&V,2102729300
04.10.2017,ADULT SOCIAL CARE,MIHOMECARE LTD,344.67,PHY LTS 18-64,HOMECARE - C&V,2102729318
04.10.2017,ADULT SOCIAL CARE,MIHOMECARE LTD,357.44,PHY LTS 18-64,HOMECARE - C&V,2102729292
04.10.2017,ADULT SOCIAL CARE,MIHOMECARE LTD,371.55,PHY LTS 18-64,HOMECARE - C&V,2102729066
04.10.2017,ADULT SOCIAL CARE,MIHOMECARE LTD,391.48,PHY LTS 18-64,HOMECARE - C&V,2102729267
04.10.2017,ADULT SOCIAL CARE,MIHOMECARE LTD,391.48,PHY LTS 18-64,HOMECARE - C&V,2102729277
04.10.2017,ADULT SOCIAL CARE,MIHOMECARE LTD,408.48,PHY LTS 18-64,HOMECARE - C&V,2102729065
04.10.2017,ADULT SOCIAL CARE,MIHOMECARE LTD,417.01,PHY LTS 18-64,HOMECARE - C&V,2102729288
04.10.2017,ADULT SOCIAL CARE,MIHOMECARE LTD,473.68,PHY LTS 18-64,HOMECARE - C&V,2102729254
04.10.2017,ADULT SOCIAL CARE,MIHOMECARE LTD,476.56,PHY LTS 18-64,HOMECARE - C&V,2102729061
04.10.2017,ADULT SOCIAL CARE,MIHOMECARE LTD,574.43,PHY LTS 18-64,HOMECARE - C&V,2102729285
04.10.2017,ADULT SOCIAL CARE,MIHOMECARE LTD,578.68,PHY LTS 18-64,HOMECARE - C&V,2102729275
04.10.2017,ADULT SOCIAL CARE,MIHOMECARE LTD,587.21,PHY LTS 18-64,HOMECARE - C&V,2102729255
04.10.2017,ADULT SOCIAL CARE,MIHOMECARE LTD,595.72,PHY LTS 18-64,HOMECARE - C&V,2102729284
04.10.2017,ADULT SOCIAL CARE,MIHOMECARE LTD,604.21,PHY LTS 18-64,HOMECARE - C&V,2102729263
04.10.2017,ADULT SOCIAL CARE,MIHOMECARE LTD,638.25,PHY LTS 18-64,HOMECARE - C&V,2102729270
04.10.2017,ADULT SOCIAL CARE,MIHOMECARE LTD,642.51,PHY LTS 18-64,HOMECARE - C&V,2102729051
04.10.2017,ADULT SOCIAL CARE,MIHOMECARE LTD,663.8,PHY LTS 18-64,HOMECARE - C&V,2102729281
04.10.2017,ADULT SOCIAL CARE,MIHOMECARE LTD,680.8,PHY LTS 18-64,HOMECARE - C&V,2102729301
04.10.2017,ADULT SOCIAL CARE,MIHOMECARE LTD,693.57,PHY LTS 18-64,HOMECARE - C&V,2102729278
04.10.2017,ADULT SOCIAL CARE,MIHOMECARE LTD,736.13,PHY LTS 18-64,HOMECARE - C&V,2102729123
04.10.2017,ADULT SOCIAL CARE,MIHOMECARE LTD,774.41,PHY LTS 18-64,HOMECARE - C&V,2102729256
04.10.2017,ADULT SOCIAL CARE,MIHOMECARE LTD,825.48,PHY LTS 18-64,HOMECARE - C&V,2102729271
04.10.2017,ADULT SOCIAL CARE,MIHOMECARE LTD,936.12,PHY LTS 18-64,HOMECARE - C&V,2102729311
04.10.2017,ADULT SOCIAL CARE,MIHOMECARE LTD,970.16,PHY LTS 18-64,HOMECARE - C&V,2102729258
04.10.2017,ADULT SOCIAL CARE,MIHOMECARE LTD,987.16,PHY LTS 18-64,HOMECARE - C&V,2102729306
04.10.2017,ADULT SOCIAL CARE,MIHOMECARE LTD,"1,055.24",PHY LTS 18-64,HOMECARE - C&V,2102729273
04.10.2017,ADULT SOCIAL CARE,MIHOMECARE LTD,"1,072.28",PHY LTS 18-64,HOMECARE - C&V,2102729274
04.10.2017,ADULT SOCIAL CARE,MIHOMECARE LTD,"1,089.28",PHY LTS 18-64,HOMECARE - C&V,2102729266
04.10.2017,ADULT SOCIAL CARE,MIHOMECARE LTD,"1,157.36",PHY LTS 18-64,HOMECARE - C&V,2102729261
04.10.2017,ADULT SOCIAL CARE,MIHOMECARE LTD,"1,233.97",PHY LTS 18-64,HOMECARE - C&V,2102729097
04.10.2017,ADULT SOCIAL CARE,MIHOMECARE LTD,"1,289.27",PHY LTS 18-64,HOMECARE - C&V,2102729305
04.10.2017,ADULT SOCIAL CARE,MIHOMECARE LTD,"1,408.41",PHY LTS 18-64,HOMECARE - C&V,2102729315
04.10.2017,ADULT SOCIAL CARE,MIHOMECARE LTD,"1,531.80",PHY LTS 18-64,HOMECARE - C&V,2102729294
04.10.2017,ADULT SOCIAL CARE,MIHOMECARE LTD,"1,829.65",PHY LTS 18-64,HOMECARE - C&V,2102729312
04.10.2017,ADULT SOCIAL CARE,MIHOMECARE LTD,"2,127.50",PHY LTS 18-64,HOMECARE - C&V,2102729265
04.10.2017,ADULT SOCIAL CARE,MIHOMECARE LTD,"2,638.10",PHY LTS 18-64,HOMECARE - C&V,2102729279
04.10.2017,ADULT SOCIAL CARE,YOUTH GRACES (UK) LTD,351.64,PHY LTS 18-64,HOMECARE - C&V,2102729155
04.10.2017,ADULT SOCIAL CARE,YOUTH GRACES (UK) LTD,413.68,PHY LTS 18-64,HOMECARE - C&V,2102729251
04.10.2017,ADULT SOCIAL CARE,YOUTH GRACES (UK) LTD,255.15,PHY LTS 18-64,HOMECARE - SPOT,2102729165
04.10.2017,ADULT SOCIAL CARE,YOUTH GRACES (UK) LTD,261.98,PHY LTS 18-64,HOMECARE - SPOT,2102729203
04.10.2017,ADULT SOCIAL CARE,YOUTH GRACES (UK) LTD,434.56,PHY LTS 18-64,HOMECARE - SPOT,2102729210
04.10.2017,ADULT SOCIAL CARE,YOUTH GRACES (UK) LTD,482.72,PHY LTS 18-64,HOMECARE - SPOT,2102729205
04.10.2017,ADULT SOCIAL CARE,PALM TREE RECOVERY CLUB,"-6,399.36",PHY LTS 18-64,HOMECARE - C&V,2102725727
04.10.2017,ADULT SOCIAL CARE,MIHOMECARE LTD,408.48,PHY LTS 65+,HOMECARE - C&V,2102729075
04.10.2017,ADULT SOCIAL CARE,MIHOMECARE LTD,408.48,PHY LTS 65+,HOMECARE - C&V,2102729098
04.10.2017,ADULT SOCIAL CARE,MIHOMECARE LTD,408.48,PHY LTS 65+,HOMECARE - C&V,2102729099
04.10.2017,ADULT SOCIAL CARE,MIHOMECARE LTD,408.48,PHY LTS 65+,HOMECARE - C&V,2102729103
04.10.2017,ADULT SOCIAL CARE,MIHOMECARE LTD,408.48,PHY LTS 65+,HOMECARE - C&V,2102729114
04.10.2017,ADULT SOCIAL CARE,MIHOMECARE LTD,408.48,PHY LTS 65+,HOMECARE - C&V,2102729118
04.10.2017,ADULT SOCIAL CARE,MIHOMECARE LTD,408.48,PHY LTS 65+,HOMECARE - C&V,2102729124
04.10.2017,ADULT SOCIAL CARE,MIHOMECARE LTD,408.48,PHY LTS 65+,HOMECARE - C&V,2102729130
04.10.2017,ADULT SOCIAL CARE,MIHOMECARE LTD,408.48,PHY LTS 65+,HOMECARE - C&V,2102729313
04.10.2017,ADULT SOCIAL CARE,MIHOMECARE LTD,442.52,PHY LTS 65+,HOMECARE - C&V,2102729129
04.10.2017,ADULT SOCIAL CARE,MIHOMECARE LTD,476.56,PHY LTS 65+,HOMECARE - C&V,2102729304
04.10.2017,ADULT SOCIAL CARE,MIHOMECARE LTD,544.64,PHY LTS 65+,HOMECARE - C&V,2102729050
04.10.2017,ADULT SOCIAL CARE,MIHOMECARE LTD,612.72,PHY LTS 65+,HOMECARE - C&V,2102729310
04.10.2017,ADULT SOCIAL CARE,MIHOMECARE LTD,625.49,PHY LTS 65+,HOMECARE - C&V,2102729127
04.10.2017,ADULT SOCIAL CARE,MIHOMECARE LTD,646.76,PHY LTS 65+,HOMECARE - C&V,2102729309
04.10.2017,ADULT SOCIAL CARE,MIHOMECARE LTD,697.84,PHY LTS 65+,HOMECARE - C&V,2102729086
04.10.2017,ADULT SOCIAL CARE,MIHOMECARE LTD,697.84,PHY LTS 65+,HOMECARE - C&V,2102729096
04.10.2017,ADULT SOCIAL CARE,MIHOMECARE LTD,697.84,PHY LTS 65+,HOMECARE - C&V,2102729102
04.10.2017,ADULT SOCIAL CARE,MIHOMECARE LTD,697.84,PHY LTS 65+,HOMECARE - C&V,2102729119
04.10.2017,ADULT SOCIAL CARE,MIHOMECARE LTD,714.84,PHY LTS 65+,HOMECARE - C&V,2102729087
04.10.2017,ADULT SOCIAL CARE,MIHOMECARE LTD,731.88,PHY LTS 65+,HOMECARE - C&V,2102729303
04.10.2017,ADULT SOCIAL CARE,MIHOMECARE LTD,829.74,PHY LTS 65+,HOMECARE - C&V,2102729298
04.10.2017,ADULT SOCIAL CARE,MIHOMECARE LTD,885.04,PHY LTS 65+,HOMECARE - C&V,2102729062
04.10.2017,ADULT SOCIAL CARE,MIHOMECARE LTD,953.12,PHY LTS 65+,HOMECARE - C&V,2102729057
04.10.2017,ADULT SOCIAL CARE,MIHOMECARE LTD,999.93,PHY LTS 65+,HOMECARE - C&V,2102729079
04.10.2017,ADULT SOCIAL CARE,MIHOMECARE LTD,"1,046.73",PHY LTS 65+,HOMECARE - C&V,2102729077
04.10.2017,ADULT SOCIAL CARE,MIHOMECARE LTD,"1,046.74",PHY LTS 65+,HOMECARE - C&V,2102729120
04.10.2017,ADULT SOCIAL CARE,MIHOMECARE LTD,"1,050.99",PHY LTS 65+,HOMECARE - C&V,2102729090
04.10.2017,ADULT SOCIAL CARE,MIHOMECARE LTD,"1,050.99",PHY LTS 65+,HOMECARE - C&V,2102729117
04.10.2017,ADULT SOCIAL CARE,MIHOMECARE LTD,"1,055.24",PHY LTS 65+,HOMECARE - C&V,2102729078
04.10.2017,ADULT SOCIAL CARE,MIHOMECARE LTD,"1,055.24",PHY LTS 65+,HOMECARE - C&V,2102729094
04.10.2017,ADULT SOCIAL CARE,MIHOMECARE LTD,"1,055.24",PHY LTS 65+,HOMECARE - C&V,2102729128
04.10.2017,ADULT SOCIAL CARE,MIHOMECARE LTD,"1,055.24",PHY LTS 65+,HOMECARE - C&V,2102729133
04.10.2017,ADULT SOCIAL CARE,MIHOMECARE LTD,"1,089.28",PHY LTS 65+,HOMECARE - C&V,2102729264
04.10.2017,ADULT SOCIAL CARE,MIHOMECARE LTD,"1,258.48",PHY LTS 65+,HOMECARE - C&V,2102729131
04.10.2017,ADULT SOCIAL CARE,MIHOMECARE LTD,"1,259.48",PHY LTS 65+,HOMECARE - C&V,2102729089
04.10.2017,ADULT SOCIAL CARE,MIHOMECARE LTD,"1,259.48",PHY LTS 65+,HOMECARE - C&V,2102729113
04.10.2017,ADULT SOCIAL CARE,MIHOMECARE LTD,"1,263.75",PHY LTS 65+,HOMECARE - C&V,2102729280
04.10.2017,ADULT SOCIAL CARE,MIHOMECARE LTD,"1,416.92",PHY LTS 65+,HOMECARE - C&V,2102729134
04.10.2017,ADULT SOCIAL CARE,MIHOMECARE LTD,"1,455.21",PHY LTS 65+,HOMECARE - C&V,2102729076
04.10.2017,ADULT SOCIAL CARE,MIHOMECARE LTD,"1,463.73",PHY LTS 65+,HOMECARE - C&V,2102729132
04.10.2017,ADULT SOCIAL CARE,MIHOMECARE LTD,"1,587.13",PHY LTS 65+,HOMECARE - C&V,2102729125
04.10.2017,ADULT SOCIAL CARE,MIHOMECARE LTD,"1,702.00",PHY LTS 65+,HOMECARE - C&V,2102729126
04.10.2017,ADULT SOCIAL CARE,MIHOMECARE LTD,"1,923.27",PHY LTS 65+,HOMECARE - C&V,2102729110
04.10.2017,ADULT SOCIAL CARE,MIHOMECARE LTD,"2,518.96",PHY LTS 65+,HOMECARE - C&V,2102729289
04.10.2017,ADULT SOCIAL CARE,REDACTED PERSONAL DATA,267,PHY LTS 65+,PAYMENTS TO CLIENTS (DIRECT PAYMENTS),2102729139
04.10.2017,ADULT SOCIAL CARE,YOUTH GRACES (UK) LTD,555.1,PHY LTS 65+,HOMECARE - C&V,2102729169
04.10.2017,ADULT SOCIAL CARE,YOUTH GRACES (UK) LTD,255.2,PHY LTS 65+,HOMECARE - SPOT,2102729195
04.10.2017,ADULT SOCIAL CARE,YOUTH GRACES (UK) LTD,255.22,PHY LTS 65+,HOMECARE - SPOT,2102729250
04.10.2017,ADULT SOCIAL CARE,YOUTH GRACES (UK) LTD,282.66,PHY LTS 65+,HOMECARE - SPOT,2102729198
04.10.2017,ADULT SOCIAL CARE,YOUTH GRACES (UK) LTD,351.75,PHY LTS 65+,HOMECARE - SPOT,2102729234
04.10.2017,ADULT SOCIAL CARE,YOUTH GRACES (UK) LTD,503.41,PHY LTS 65+,HOMECARE - SPOT,2102729167
04.10.2017,ADULT SOCIAL CARE,YOUTH GRACES (UK) LTD,482.72,PHY STS 65+,HOMECARE - IC,2102729163
04.10.2017,ADULT SOCIAL CARE,JANE RAMSAY,"1,343.20",SAFEGUARDING TEAM,OTHER CONTRACTORS,5902270767
04.10.2017,ADULT SOCIAL CARE,APEX MEDICAL CONSULTING LTD,"9,188.55",SAFEGUARDING TEAM,OTHER CONTRACTORS,5902270754
04.10.2017,ADULT SOCIAL CARE,MIHOMECARE LTD,408.48,SOCIAL ISOLATION,HOMECARE - C&V,2102729308
04.10.2017,ADULT SOCIAL CARE,MIHOMECARE LTD,"3,948.64",SOCIAL ISOLATION,HOMECARE - C&V,2102729299
04.10.2017,ADULT SOCIAL CARE,YOUTH GRACES (UK) LTD,496.65,SOCIAL ISOLATION,HOMECARE - SPOT,2102729249
04.10.2017,ADULT SOCIAL CARE,MIHOMECARE LTD,251.06,SUB LTS 18-64,HOMECARE - C&V,2102729291
04.10.2017,ADULT SOCIAL CARE,MIHOMECARE LTD,"1,387.15",SUB LTS 18-64,HOMECARE - C&V,2102729307
04.10.2017,ADULT SOCIAL CARE,PECULIAR CARE HOMES LTD,"1,228.36",TRANSITION 14 - 18 YEARS,SECTION 17 PAYMENTS TO AGENCIES/CARERS,2102729142
04.10.2017,CENTRAL FUNCTIONS,KENT COUNTY COUNCIL - LASER,252.09,COMMERCIAL PROPERTIES,GAS,5902270878
04.10.2017,CENTRAL FUNCTIONS,FIELD FISHER WATERHOUSE,"2,023.75",COMMERCIAL PROPERTIES,PROFESSIONAL FEES,5902270804
04.10.2017,CENTRAL FUNCTIONS,STANBURY BUILDING SERVICES LTD,"2,980.00",COMMERCIAL PROPERTIES,BUILDING R&M,2102728491
04.10.2017,CENTRAL FUNCTIONS,HMCTS,"1,153.00",HOME OWNERSHIP,LEGAL FEES & COURT COSTS,5902270888
04.10.2017,CENTRAL FUNCTIONS,HAMMICKS,"1,612.00",HOME OWNERSHIP,BOOKS & PUBLICATIONS,5902270903
04.10.2017,CHIEF EXECUTIVE,FIELD FISHER WATERHOUSE,490,CAPITAL PS (REGEN),CONSTRUCTION FEES - LEGAL,5902270889
04.10.2017,CHIEF EXECUTIVE,FIELD FISHER WATERHOUSE,"81,198.45",CAPITAL PS (REGEN),CONSTRUCTION FEES - LEGAL,5902270889
04.10.2017,CHIEF EXECUTIVE,FAITHFUL & GOULD,"8,979.44",CAPITAL PS (REGEN),CONSTRUCTION FEES  - EXTERNAL,5902270758
04.10.2017,CHIEF EXECUTIVE,PROJECT CENTRE LTD,"3,425.00",CAPITAL PS (REGEN),CONSTR'N SUB CONTRACT - NON CERTIFICATED,5902270802
04.10.2017,CHIEF EXECUTIVE,MOUNTVIEW ACADEMY OF THEATRE ARTS,"782,651.66",CAPITAL PS (REGEN),CAPITAL GRANTS,5902270926
04.10.2017,CHIEF EXECUTIVE'S OFFICE,STEP AHEAD SOCIAL ENTERPRISE CIC,"35,825.00",BUSINESS SUPPORT,GRANTS,5902269136
04.10.2017,CHIEF EXECUTIVE'S OFFICE,J C CONSULTANT SERVICES LTD,"8,000.00",CHIEF EXEC'S OFFICE,GRANTS,5902270873
04.10.2017,CHIEF EXECUTIVE'S OFFICE,J C CONSULTANT SERVICES LTD,"8,500.00",CHIEF EXEC'S OFFICE,GRANTS,5902270872
04.10.2017,CHILDREN AND ADULT,PELLINGS LLP,500,CAPITAL PS (EDUCATION),CONSTRUCTION MAIN CONTRACT,5902270759
04.10.2017,CHILDREN AND ADULT,SHARPE PRITCHARD LLP,"1,682.00",CAPITAL PS (EDUCATION),CONSTRUCTION FEES - LEGAL,5902270809
04.10.2017,CHILDREN AND ADULT,SHARPE PRITCHARD LLP,"5,320.00",CAPITAL PS (EDUCATION),CONSTRUCTION FEES - LEGAL,5902270811
04.10.2017,CHILDREN AND ADULT,FAITHFUL & GOULD,936,CAPITAL PS (EDUCATION),CONSTRUCTION FEES,5902270770
04.10.2017,CHILDREN AND ADULT,FAITHFUL & GOULD,"26,296.45",CAPITAL PS (EDUCATION),CONSTRUCTION FEES,5902270765
04.10.2017,CHILDREN AND ADULT,LIBRA CONSTRUCTION SERVICES LTD,"43,271.37",CAPITAL PS (EDUCATION),CONSTRUCTION,2102728492
04.10.2017,CHILDREN AND ADULT,BEWLEY CONTRACTS (UK) LTD,"184,430.70",CAPITAL PS (EDUCATION),CONSTRUCTION,2102728493
04.10.2017,CHILDREN AND ADULT,INTERSERVE (FACILITIES MANAGEMENT),"355,145.23",CAPITAL PS (SOC SERV),CONSTRUCTION MAIN CONTRACT -CERTIFICATED,2102728495
04.10.2017,CHILDREN'S SERVICES,NEXT STEP FOSTERING SERVICES LTD,"5,412.90",AGENCY FOSTERING,EXTERNAL AGENCIES AND BODIES,2102729153
04.10.2017,CHILDREN'S SERVICES,COMPASS FOSTERING LONDON LTD,"3,720.73",AGENCY FOSTERING,EXTERNAL AGENCIES AND BODIES,2102729149
04.10.2017,CHILDREN'S SERVICES,CHILDREN FIRST FOSTERING AGENCY LTD,"-1,798.02",AGENCY FOSTERING,EXTERNAL AGENCIES AND BODIES,2102729151
04.10.2017,CHILDREN'S SERVICES,CHILDREN FIRST FOSTERING AGENCY LTD,"3,852.90",AGENCY FOSTERING,EXTERNAL AGENCIES AND BODIES,2102729148
04.10.2017,CHILDREN'S SERVICES,FOSTERING SUPPORT GROUP LTD,"4,799.76",AGENCY FOSTERING,EXTERNAL AGENCIES AND BODIES,2102729152
04.10.2017,CHILDREN'S SERVICES,REDACTED PERSONAL DATA,"2,440.34",FRIENDS & FAMILY FOSTERING,PAYMENTS TO CARERS,2102729074
04.10.2017,CHILDREN'S SERVICES,FRESH IDEAS & SOLUTIONS SERVICES CIC,"3,607.56",HOME 2 SCHOOL TRANSPORT,OTHER PAYMENTS FOR CLIENTS,5902270841
04.10.2017,CHILDREN'S SERVICES,OCTAVIA HOUSE SCHOOLS LTD,374.5,HOME 2 SCHOOL TRANSPORT,OTHER PAYMENTS FOR CLIENTS,5902270923
04.10.2017,CHILDREN'S SERVICES,MARTINA VAN DER LEIJ,485,LEGAL,LEGAL FEES & COURT COSTS,2102729358
04.10.2017,CHILDREN'S SERVICES,FRANCIS WILKINSON,325,LEGAL,LEGAL FEES & COURT COSTS,2102729347
04.10.2017,CHILDREN'S SERVICES,RICHARD HARRIS,700,LEGAL,LEGAL FEES & COURT COSTS,2102729368
04.10.2017,CHILDREN'S SERVICES,RICHARD HARRIS,700,LEGAL,LEGAL FEES & COURT COSTS,2102729369
04.10.2017,CHILDREN'S SERVICES,RICHARD HARRIS,"1,650.00",LEGAL,LEGAL FEES & COURT COSTS,2102729367
04.10.2017,CHILDREN'S SERVICES,REDACTED PERSONAL DATA,375,LEGAL,LEGAL FEES & COURT COSTS,2102729339
04.10.2017,CHILDREN'S SERVICES,A A AGENCY LTD,268.2,LEGAL,LEGAL FEES & COURT COSTS,2102729337
04.10.2017,CHILDREN'S SERVICES,A A AGENCY LTD,"2,750.00",LEGAL,LEGAL FEES & COURT COSTS,2102729336
04.10.2017,CHILDREN'S SERVICES,UNIVERSITY OF GREENWICH,"2,106.66",PARENT PARTNERSHIP,TRAINING,5902270772
04.10.2017,CHILDREN'S SERVICES,REDACTED PERSONAL DATA,264.16,RESIDENCE ORDERS,PAYMENTS TO CARERS,2102728722
04.10.2017,CHILDREN'S SERVICES,RELA SUPPORT SERVICES LTD,"3,516.00",S24 CLA,EXTERNAL AGENCIES AND BODIES,2102729147
04.10.2017,CHILDREN'S SERVICES,REDACTED PERSONAL DATA,275,SEMI INDEPENDENT,OTHER PAYMENTS FOR CLIENTS,2102729072
04.10.2017,CHILDREN'S SERVICES,REDACTED PERSONAL DATA,433.36,SPECIAL GUARDIANSHIP,PAYMENTS TO CARERS,2102728674
04.10.2017,CHILDREN'S SERVICES,REDACTED PERSONAL DATA,263.71,SPECIAL GUARDIANSHIP,PAYMENTS TO CARERS,2102728867
04.10.2017,CHILDREN'S SERVICES,REDACTED PERSONAL DATA,269.08,SPECIAL GUARDIANSHIP,PAYMENTS TO CARERS,2102728835
04.10.2017,CHILDREN'S SERVICES,REDACTED PERSONAL DATA,276.1,SPECIAL GUARDIANSHIP,PAYMENTS TO CARERS,2102728573
04.10.2017,CHILDREN'S SERVICES,REDACTED PERSONAL DATA,269.08,SPECIAL GUARDIANSHIP,PAYMENTS TO CARERS,2102728524
04.10.2017,CHILDREN'S SERVICES,REDACTED PERSONAL DATA,"-4,073.20",SPECIAL GUARDIANSHIP,PAYMENTS TO CARERS,2102728502
04.10.2017,CHILDREN'S SERVICES,REDACTED PERSONAL DATA,"5,292.34",SPECIAL GUARDIANSHIP,PAYMENTS TO CARERS,2102728504
04.10.2017,CHILDREN'S SERVICES,REDACTED PERSONAL DATA,"-2,410.87",SPECIAL GUARDIANSHIP,PAYMENTS TO CARERS,2102728508
04.10.2017,CHILDREN'S SERVICES,REDACTED PERSONAL DATA,-825.95,SPECIAL GUARDIANSHIP,PAYMENTS TO CARERS,2102728507
04.10.2017,CHILDREN'S SERVICES,REDACTED PERSONAL DATA,995.19,SPECIAL GUARDIANSHIP,PAYMENTS TO CARERS,2102728506
04.10.2017,CHILDREN'S SERVICES,REDACTED PERSONAL DATA,"3,617.39",SPECIAL GUARDIANSHIP,PAYMENTS TO CARERS,2102728505
04.10.2017,CHILDREN'S SERVICES,REDACTED PERSONAL DATA,269.08,SPECIAL GUARDIANSHIP,PAYMENTS TO CARERS,2102728521
04.10.2017,CHILDREN'S SERVICES,REDACTED PERSONAL DATA,350,SPECIAL GUARDIANSHIP,PAYMENTS TO CARERS,2102728777
04.10.2017,CHILDREN'S SERVICES,REDACTED PERSONAL DATA,-822.4,SPECIAL GUARDIANSHIP,PAYMENTS TO CARERS,2102728509
04.10.2017,CHILDREN'S SERVICES,REDACTED PERSONAL DATA,860.12,SPECIAL GUARDIANSHIP,PAYMENTS TO CARERS,2102728503
04.10.2017,CHILDREN'S SERVICES,REDACTED PERSONAL DATA,354.59,SPECIAL GUARDIANSHIP,PAYMENTS TO CARERS,2102728843
04.10.2017,CHILDREN'S SERVICES,REDACTED PERSONAL DATA,525,SPECIAL GUARDIANSHIP,PAYMENTS TO CARERS,2102728562
04.10.2017,CHILDREN'S SERVICES,REDACTED PERSONAL DATA,525,SPECIAL GUARDIANSHIP,PAYMENTS TO CARERS,2102728738
04.10.2017,CHILDREN'S SERVICES,REDACTED PERSONAL DATA,525,SPECIAL GUARDIANSHIP,PAYMENTS TO CARERS,2102728915
04.10.2017,CHILDREN'S SERVICES,REDACTED PERSONAL DATA,303.97,SPECIAL GUARDIANSHIP,PAYMENTS TO CARERS,2102728776
04.10.2017,CHILDREN'S SERVICES,PECULIAR CARE HOMES LTD,"3,554.10",SPECIALIST CARE,SECTION 17 PAYMENTS TO AGENCIES/CARERS,2102729143
04.10.2017,CHILDREN'S SERVICES,ST SAVIOURS & ST OLAVES SCHOOL,"66,467.70",ST SAVIOURS & ST OLAVE,"SCHOOLS CAPITATION, STANDARDS FUND",5902270824
04.10.2017,CHILDREN'S SERVICES,INTEGRATED SERVICES PROGRAMME,"2,334.00",STAYING PUT,EXTERNAL AGENCIES AND BODIES,5902270807
04.10.2017,CHILDREN'S SERVICES,PSYCHO DYNAMICS LIMITED,"1,715.00",SUMMERHOUSE - EX416 - 5015232,CONSULTANTS SERVICES,5902270838
04.10.2017,CHILDREN'S SERVICES,KINDLY PROPERTIES,"4,761.00",TEMPORARY ACCOMMODATION,EXTERNAL AGENCIES AND BODIES,5902270921
04.10.2017,CHILDREN'S SERVICES,THE ST THOMAS THE APOSTLE COLLEGE,"41,963.09",THE ST THOMAS THE APOSTLE COLLEGE,"SCHOOLS CAPITATION, STANDARDS FUND",5902270823
04.10.2017,COMMISSIONING & CENTRAL,HERRINGTON CARMICHAEL SOLICITORS,400,STRAT DIR OF C&AS,LEGAL FEES & COURT COSTS,2102729349
04.10.2017,COMMUNITIES,REDACTED PERSONAL DATA,"3,814.31",NO RECOURSE TO PUBLIC FUNDS,ACCOMMODATION CHARGES,5902270877
04.10.2017,COMMUNITIES,GROVE HOTEL LTD,"1,650.00",NO RECOURSE TO PUBLIC FUNDS,ACCOMMODATION CHARGES,5902270816
04.10.2017,COMMUNITIES,GALAXY LETTINGS LTD,"8,320.00",NO RECOURSE TO PUBLIC FUNDS,ACCOMMODATION CHARGES,5902270842
04.10.2017,COMMUNITIES,MEADOW CROFT LODGE,"1,350.00",NO RECOURSE TO PUBLIC FUNDS,ACCOMMODATION CHARGES,5902270815
04.10.2017,COMMUNITIES,CROMWOOD HOUSING,"21,146.71",NO RECOURSE TO PUBLIC FUNDS,ACCOMMODATION CHARGES,5902270846
04.10.2017,COMMUNITIES,J & M OASIS LTD,"14,733.00",NO RECOURSE TO PUBLIC FUNDS,ACCOMMODATION CHARGES,5902270867
04.10.2017,COMMUNITIES,RS REAL ESTATE LTD,"7,470.00",NO RECOURSE TO PUBLIC FUNDS,ACCOMMODATION CHARGES,5902270870
04.10.2017,COMMUNITIES,STENFORD PROPERTY LTD,"1,230.00",NO RECOURSE TO PUBLIC FUNDS,SECTION 17 PAYMENTS TO AGENCIES/CARERS,5902270845
04.10.2017,COMMUNITIES,S A PROPERTY MANAGEMENT LTD,"4,890.00",NO RECOURSE TO PUBLIC FUNDS,ACCOMMODATION CHARGES,5902270825
04.10.2017,COMMUNITIES,MSR HOUSING,420,NO RECOURSE TO PUBLIC FUNDS,ACCOMMODATION CHARGES,5902270865
04.10.2017,COMMUNITIES,LINDLEY T&RA,315,TENANTS FUND,GRANTS,5902270805
04.10.2017,COMMUNITIES,SALTASH ENTERPRISES LTD,570,TRA HALLS (REPAIRS),BUILDING R&M,2102728490
04.10.2017,COMMUNITIES,SALTASH ENTERPRISES LTD,"1,617.97",TRA HALLS (REPAIRS),BUILDING R&M,2102728490
04.10.2017,COMMUNITIES,SALTASH ENTERPRISES LTD,"2,750.00",TRA HALLS (REPAIRS),BUILDING R&M,2102728490
04.10.2017,COMMUNITIES,SALTASH ENTERPRISES LTD,"4,039.13",TRA HALLS (REPAIRS),BUILDING R&M,2102728490
04.10.2017,CUSTOMER EXPERIENCE HGF,GUYS & ST THOMAS NHS FOUNDATION TRUST,"1,900.00",CORONER'S,OTHER CONTRACTORS,5902270817
04.10.2017,CUSTOMER EXPERIENCE HGF,IC CONSULTANTS LTD,276,CORONER'S,PROFESSIONAL FEES,5902270858
04.10.2017,CUSTOMER EXPERIENCE HGF,IC CONSULTANTS LTD,312,CORONER'S,PROFESSIONAL FEES,5902270849
04.10.2017,CUSTOMER EXPERIENCE HGF,IC CONSULTANTS LTD,388,CORONER'S,PROFESSIONAL FEES,5902270864
04.10.2017,CUSTOMER EXPERIENCE HGF,IC CONSULTANTS LTD,408,CORONER'S,PROFESSIONAL FEES,5902270844
04.10.2017,CUSTOMER EXPERIENCE HGF,IC CONSULTANTS LTD,480,CORONER'S,PROFESSIONAL FEES,5902270818
04.10.2017,CUSTOMER EXPERIENCE HGF,IC CONSULTANTS LTD,504,CORONER'S,PROFESSIONAL FEES,5902270884
04.10.2017,CUSTOMER EXPERIENCE HGF,IC CONSULTANTS LTD,620,CORONER'S,PROFESSIONAL FEES,5902270876
04.10.2017,CUSTOMER EXPERIENCE HGF,IC CONSULTANTS LTD,644,CORONER'S,PROFESSIONAL FEES,5902270820
04.10.2017,CUSTOMER EXPERIENCE HGF,CHRIS BRYDEN,790,HOMELESS & HOUSING OPTIONS MGT,LEGAL FEES & COURT COSTS,2102729343
04.10.2017,CUSTOMER EXPERIENCE HGF,DONALD BROATCH,"1,000.00",HOMELESS & HOUSING OPTIONS MGT,LEGAL FEES & COURT COSTS,2102729345
04.10.2017,CUSTOMER EXPERIENCE HGF,MICHAEL PAGET,"1,800.00",HOMELESS & HOUSING OPTIONS MGT,LEGAL FEES & COURT COSTS,2102729359
04.10.2017,CUSTOMER EXPERIENCE HGF,JONATHAN MANNING,"1,750.00",HOMELESS & HOUSING OPTIONS MGT,LEGAL FEES & COURT COSTS,2102729351
04.10.2017,CUSTOMER EXPERIENCE HGF,KINDLY PROPERTIES,"38,006.00",NIGHTLY TA (NSC),EXTERNAL AGENCIES AND BODIES,5902270881
04.10.2017,CUSTOMER EXPERIENCE HGF,SOUTH OF THE RIVER INVESTMENTS LTD,"7,500.00",NIGHTLY TA (NSC),EXTERNAL AGENCIES AND BODIES,5902270925
04.10.2017,CUSTOMER EXPERIENCE HGF,FINEFAIR LTD,"31,175.25",NIGHTLY TA (NSC),EXTERNAL AGENCIES AND BODIES,5902270860
04.10.2017,DULWICH COMMUNITY COUNCIL,JUDITH KERR PRIMARY SCHOOL,"2,400.00",,GRANT,CHEQUE PAYMENT
04.10.2017,ELECTORAL SVCES,LOCAL GOVERNMENT ASSOCIATION,481.94,ELECTORAL REGISTRATION,LEGAL FEES & COURT COSTS,2102729357
04.10.2017,ELECTORAL SVCES,LOCAL GOVERNMENT ASSOCIATION,625.46,ELECTORAL REGISTRATION,LEGAL FEES & COURT COSTS,2102729354
04.10.2017,ENVIRONMENT AND LEISURE,CJS PLANTS,253.5,CAPITAL PS (LEISURE),CONST'N MAIN CONTRACT - NON CERTIFICATED,5902270907
04.10.2017,ENVIRONMENT AND LEISURE,CONWAY AECOM LTD,"43,079.12",CAPITAL PS (LEISURE),CONSTRUCTION,2102728486
04.10.2017,ENVIRONMENT DIRECTORATE,R J MOTORS LIMITED,811.65,COMMERCIAL VEH CTRL A/C,VEHICLE REPAIRS & MAINTENANCE,5902270768
04.10.2017,ENVIRONMENT DIRECTORATE,SOUTH ESSEX STOCKHOLDERS LTD,654.36,ENGINEERING CRAFTS,MATERIALS,5902270781
04.10.2017,ENVIRONMENT DIRECTORATE,SPALDINGS (UK) LTD,376.5,GROUNDS MAINTENANCE - GENERAL,MATERIALS,5902270891
04.10.2017,ENVIRONMENT DIRECTORATE,ENVIRO TECHNOLOGY SERVICES PLC,"1,650.00",POLLUTION CONTROL,EQUIPMENT PURCHASE & REPAIR,5902270892
04.10.2017,ENVIRONMENT DIRECTORATE,ROAD SAFETY GB LTD,350,"ROAD SAFETY EDUCATION,TRAINING&PUBLICITY",PROFESSIONAL FEES,5902270922
04.10.2017,ENVIRONMENT DIRECTORATE,REMINGTON HALL,320,ROUGH SLEEPERS,LEGAL FEES & COURT COSTS,2102729362
04.10.2017,ENVIRONMENT DIRECTORATE,REMINGTON HALL,320,ROUGH SLEEPERS,LEGAL FEES & COURT COSTS,2102729365
04.10.2017,ENVIRONMENT DIRECTORATE,ANNELI ROBINS,609.17,ROUGH SLEEPERS,LEGAL FEES & COURT COSTS,2102729341
04.10.2017,ENVIRONMENT DIRECTORATE,THE INDUSTRIAL MAINTENANCE GROUP LTD,514.91,STREET CLEANING-GENERAL,EQUIPMENT PURCHASE & REPAIR,5902270868
04.10.2017,ENVIRONMENT DIRECTORATE,IMOTO DIRECT LTD,"10,080.00",STRUCTURES RECOVERABLE WORKS,CONSULTANTS SERVICES,5902270774
04.10.2017,F & C S EXCLUDING CORPORATE BUDGETS,BDO LLP,"21,619.00",INTERNAL AUDIT CONTRACTS,PAYMENTS FOR FINANCIAL SERVICES,5902270773
04.10.2017,FINANCE & GOVERNANCE,HEYWOOD LIMITED,870.49,PENSIONS,CONSULTANTS SERVICES,5902270757
04.10.2017,HOUSING,GUIDELINE LIFT SERVICES LTD,"58,575.02",GUIDELINE,MANUAL CREDITORS,5902270917
04.10.2017,HOUSING GENERAL FUND,ACCESSIBLE SOLUTIONS,365,CAPITAL PS (HOUSING GF),CAPITAL GRANTS,5902270851
04.10.2017,HOUSING GENERAL FUND,ACCESSIBLE SOLUTIONS,"3,509.95",CAPITAL PS (HOUSING GF),CAPITAL GRANTS,5902270851
04.10.2017,HOUSING GENERAL FUND,ACCESSIBLE SOLUTIONS,"4,560.00",CAPITAL PS (HOUSING GF),CAPITAL GRANTS,5902270851
04.10.2017,HOUSING HRA,1ST LINE DEFENCE LTD,750,CAPITAL PS (HRA),CONSTRUCTION FEES  - EXTERNAL,5902270871
04.10.2017,HOUSING HRA,3MS GOLD SERVICES LTD,"5,285.00",CAPITAL PS (HRA),CONST'N MAIN CONTRACT - NON CERTIFICATED,2102728494
04.10.2017,HOUSING HRA,THE LIFECARE CENTRE LTD,"3,050.00",CAPITAL PS (HRA),CONST'N MAIN CONTRACT - NON CERTIFICATED,2102728488
04.10.2017,HOUSING HRA,PARS LTD,"3,611.00",CAPITAL PS (HRA),CONST'N MAIN CONTRACT - NON CERTIFICATED,2102728489
04.10.2017,HOUSING HRA,D G SERVICING LIMITED,"1,578.80",CAPITAL PS (HRA),CONST'N MAIN CONTRACT - NON CERTIFICATED,2102728487
04.10.2017,HOUSING HRA,BELL PHILLIPS ARCHITECTS LTD,"2,070.00",CAPITAL PS (REGEN),CONSTRUCTION FEES - ARCHITECT,5902270850
04.10.2017,HOUSING HRA,BELL PHILLIPS ARCHITECTS LTD,"45,134.00",CAPITAL PS (REGEN),CONSTRUCTION FEES - ARCHITECT,5902270850
04.10.2017,LEISURE DIRECTORATE,RESTORE PLC,488.24,LOCAL HISTORY LIBRARY,REMOVAL EXPENSES,5902270771
04.10.2017,LEISURE DIRECTORATE,ARTWORKS ELEPHANT LLP,"13,047.89",TEMPORARY NEWINGTON,NNDR,5902270755
04.10.2017,MODERNISATION HGF,BALCAS TIMBER LTD,"4,600.00",160 TOOLEY ST.,OIL,5902270812
04.10.2017,MODERNISATION HGF,TMP (UK) LIMITED,"1,980.00",ADVERTISING,RECRUITMENT ADVERTISING,5902270803
04.10.2017,MODERNISATION HGF,RAHANA HUSSAIN,550,CHILDREN'S MULTI-AGENCY SAFEGUARDING TRA,TRAINING,5902263835
04.10.2017,MODERNISATION HGF,TALKING LIFE LTD,695,CHILDREN'S MULTI-AGENCY SAFEGUARDING TRA,TRAINING,5902270762
04.10.2017,MODERNISATION HGF,J2 GLOBAL CANADA,"1,383.16",TECHNOLOGY,DATA COMMUNICATIONS,5902270857
04.10.2017,PECKHAM AND NUNHEAD COMMUNITY COUNCIL,LIMES WALK TRA,560,COMMUNITY FRUIT TREES,GRANT,CHEQUE PAYMENT
04.10.2017,PECKHAM AND NUNHEAD COMMUNITY COUNCIL,LIMES WALK TRA,"3,100.00",REPLACEMENT OF FENCING AROUND COMMUNAL AREAS,GRANT,CHEQUE PAYMENT
04.10.2017,PLANNING AND TRANSPORT,DX NETWORK SERVICES LTD,"2,677.81",LOCAL LAND CHARGES,POSTAGES,5902270753
04.10.2017,PLANNING AND TRANSPORT,IDOX SOFWARE LIMITED,"3,800.00",LOCAL LAND CHARGES,TRAINING,5902270854
04.10.2017,PLANNING AND TRANSPORT,BNP PARIBAS REAL ESTATE ADVISORY & PROPERTY MANAGEMENT,"1,575.00",SOUTHWARK CIL,CONSULTANTS SERVICES,5902270924
04.10.2017,PLANNING AND TRANSPORT,BNP PARIBAS REAL ESTATE ADVISORY & PROPERTY MANAGEMENT,"2,288.00",SOUTHWARK CIL,CONSULTANTS SERVICES,5902270924
04.10.2017,PLANNING AND TRANSPORT,CONWAY AECOM LTD,"3,997.65",TRANSPORT POLICY AND PROGRAMS,CONSULTANTS SERVICES,5902270853
04.10.2017,PLANNING AND TRANSPORT,CONWAY AECOM LTD,"9,864.88",TRANSPORT POLICY AND PROGRAMS,CONSULTANTS SERVICES,5902270880
04.10.2017,PLANNING AND TRANSPORT,CONWAY AECOM LTD,"13,339.90",TRANSPORT POLICY AND PROGRAMS,CONSULTANTS SERVICES,5902270880
04.10.2017,PUBLIC HEALTH,B W Y CANINE LTD,920,PH SMOKING CESSATION,EXTERNAL AGENCIES AND BODIES,5902270843
04.10.2017,REGENERATION,EDF ENERGY PLC,-313.47,KENNINGTON WORKSHOPS,ELECTRICITY,5902270915
04.10.2017,REGENERATION,EDF ENERGY PLC,"1,233.27",KENNINGTON WORKSHOPS,ELECTRICITY,5902270910
04.10.2017,REGENERATION,EDF ENERGY PLC,"1,275.49",KENNINGTON WORKSHOPS,ELECTRICITY,5902270911
04.10.2017,REGENERATION,DELOITTE LLP,"40,836.85",MASTER PLAN-H/WAY & TRANS INTERCHANGE,PROFESSIONAL FEES,5902270836
04.10.2017,REGENERATION,BNP PARIBAS REAL ESTATE ADVISORY & PROPERTY MANAGEMENT,"1,500.00",OLD KENT RD-FEES/MPLAN,PROFESSIONAL FEES,5902270920
04.10.2017,REGENERATION,DR MICHAEL LEARY-OWHIN,"2,769.00",PROFESSIONAL SERVICES (GENERAL),PROFESSIONAL FEES,5902270053
04.10.2017,REGENERATION,DR MICHAEL LEARY-OWHIN,"2,769.00",PROFESSIONAL SERVICES (GENERAL),PROFESSIONAL FEES,5902270055
05.10.2017,ADULT SOCIAL CARE,NHS SOUTHWARK CCG,"314,000.00",DIR OF ASC,EXTERNAL AGENCIES AND BODIES,5902271024
05.10.2017,ADULT SOCIAL CARE,NHS SOUTHWARK CCG,"597,000.00",DIR OF ASC,EXTERNAL AGENCIES AND BODIES,5902271020
05.10.2017,ADULT SOCIAL CARE,THE PERFORMING RIGHT SOCIETY LTD,"1,122.66",SOUTHWARK RESOURCE CENTRE,OP LEASE/HIRE CHARGES:PLANT/EQUIP/FURNIT,5902271087
05.10.2017,ASSET MANAGEMENT,STANNAH LIFT SERVICES LTD,"2,045.00",ADAPTATIONS,BUILDING R&M,5902271029
05.10.2017,ASSET MANAGEMENT,TOTAL HYGIENE LTD,310,ADAPTATIONS,BUILDING R&M,5902270369
05.10.2017,ASSET MANAGEMENT,ALLIED REMEDIAL TREATMENTS LTD,"1,216.00",DISREPAIR,BUILDING R&M,2102729452
05.10.2017,CENTRAL FUNCTIONS,EDF ENERGY PLC,"2,707.75",HEATING ACCOUNT,ELECTRICITY,5902270933
05.10.2017,CENTRAL FUNCTIONS,KEEPMOAT REGENERATION (APOLLO) LTD,"30,314.00",LEDBURY ESTATE,OTHER R&M,2102729440
05.10.2017,CHIEF EXECUTIVE,BISHOP SPORTS AND LEISURE LTD,744.64,CAPITAL PS (REGEN),CONSTRUCTION FEES,5902270761
05.10.2017,CHIEF EXECUTIVE,FONTAIN LTD,850,CAPITAL PS (REGEN),CONSTRUCTION FEES  - EXTERNAL,5902269985
05.10.2017,CHIEF EXECUTIVE,FONTAIN LTD,890,CAPITAL PS (REGEN),CONSTRUCTION FEES  - EXTERNAL,5902269986
05.10.2017,CHIEF EXECUTIVE,FONTAIN LTD,"1,378.00",CAPITAL PS (REGEN),CONSTRUCTION FEES  - EXTERNAL,5902269985
05.10.2017,CHIEF EXECUTIVE,FONTAIN LTD,"1,556.00",CAPITAL PS (REGEN),CONSTRUCTION FEES  - EXTERNAL,5902269986
05.10.2017,CHIEF EXECUTIVE,CONWAY AECOM LTD,440.1,CAPITAL PS (REGEN),CONSTRUCTION FEES  - EXTERNAL,5902270733
05.10.2017,CHIEF EXECUTIVE,CONWAY AECOM LTD,"5,358.02",CAPITAL PS (REGEN),CONSTRUCTION FEES  - EXTERNAL,5902270736
05.10.2017,CHIEF EXECUTIVE'S OFFICE,CAMBERWELL FESTIVAL LTD,"2,000.00",BUSINESS SUPPORT,GRANTS,5902270081
05.10.2017,CHILDREN AND ADULT,MACE LTD,"3,666.66",CAPITAL PS (EDUCATION),CONSTRUCTION FEES,5902270939
05.10.2017,CHILDREN AND ADULT,MACE LTD,"3,666.66",CAPITAL PS (EDUCATION),CONSTRUCTION FEES,5902270939
05.10.2017,CHILDREN AND ADULT,MACE LTD,"3,666.66",CAPITAL PS (EDUCATION),CONSTRUCTION FEES,5902270939
05.10.2017,CHILDREN AND ADULT,MACE LTD,"3,666.67",CAPITAL PS (EDUCATION),CONSTRUCTION FEES,5902270939
05.10.2017,CHILDREN AND ADULT,MACE LTD,"3,666.67",CAPITAL PS (EDUCATION),CONSTRUCTION FEES,5902270939
05.10.2017,CHILDREN AND ADULT,MACE LTD,"3,666.67",CAPITAL PS (EDUCATION),CONSTRUCTION FEES,5902270939
05.10.2017,CHILDREN AND ADULT,MACE LTD,"3,666.67",CAPITAL PS (EDUCATION),CONSTRUCTION FEES,5902270939
05.10.2017,CHILDREN AND ADULT,MACE LTD,"3,666.67",CAPITAL PS (EDUCATION),CONSTRUCTION FEES,5902270939
05.10.2017,CHILDREN AND ADULT,MACE LTD,"3,666.67",CAPITAL PS (EDUCATION),CONSTRUCTION FEES,5902270939
05.10.2017,CHILDREN AND ADULT,PROPERTY FACILITIES GROUP PLC,"21,665.18",CAPITAL PS (EDUCATION),CONSTRUCTION,2102729380
05.10.2017,CHILDREN AND ADULT,MORGAN SINDALL PLC,"304,360.01",CAPITAL PS (EDUCATION),CONST'N MAIN CONTRACT - NON CERTIFICATED,2102729375
05.10.2017,CHILDREN AND ADULT,MORGAN SINDALL PLC,"135,556.41",CAPITAL PS (EDUCATION),CONSTRUCTION MAIN CONTRACT -CERTIFICATED,2102729377
05.10.2017,CHILDREN AND ADULT,MORGAN SINDALL PLC,"395,373.69",CAPITAL PS (EDUCATION),CONSTRUCTION MAIN CONTRACT -CERTIFICATED,2102729376
05.10.2017,CHILDREN'S SERVICES,ST JAMES CE SCHOOL,946.01,FORMULA ERRORS,SCHOOLS CAPITATION,2102729424
05.10.2017,CHILDREN'S SERVICES,ST JAMES CE SCHOOL,"3,632.38",FORMULA ERRORS,SCHOOLS CAPITATION,2102729426
05.10.2017,CHILDREN'S SERVICES,ST JAMES CE SCHOOL,"4,792.15",FORMULA ERRORS,SCHOOLS CAPITATION,2102729425
05.10.2017,CHILDREN'S SERVICES,REDACTED PERSONAL DATA,884.14,FRIENDS & FAMILY FOSTERING,PAYMENTS TO CARERS,2102728132
05.10.2017,CHILDREN'S SERVICES,REDACTED PERSONAL DATA,884.14,FRIENDS & FAMILY FOSTERING,PAYMENTS TO CARERS,2102728137
05.10.2017,CHILDREN'S SERVICES,REDACTED PERSONAL DATA,"1,441.30",FRIENDS & FAMILY FOSTERING,PAYMENTS TO CARERS,2102728136
05.10.2017,CHILDREN'S SERVICES,CANADA WATER CULTURE SPACE,638.4,GENERAL CPD,REFRESHMENTS FOR MEETINGS,5902271152
05.10.2017,CHILDREN'S SERVICES,REDACTED PERSONAL DATA,330,HOME 2 SCHOOL TRANSPORT,OTHER PAYMENTS FOR CLIENTS,5902270965
05.10.2017,CHILDREN'S SERVICES,THE GROVE CHILDRENS CENTRE,"3,290.00",INTERVENTION FUND,MISCELLANEOUS RECHARGES,5902271149
05.10.2017,CHILDREN'S SERVICES,REDACTED PERSONAL DATA,500,LEAVING CARE GRANT,OTHER PAYMENTS FOR CLIENTS,2102729418
05.10.2017,CHILDREN'S SERVICES,ST JOSEPHS RC PRIMARY SCHOOL,"2,000.00",MATERNITY COVER,HIGH NEEDS - TOP UP FUNDING,2102729429
05.10.2017,CHILDREN'S SERVICES,ST JOSEPHS RC PRIMARY SCHOOL,"16,858.00",MATERNITY COVER,HIGH NEEDS - TOP UP FUNDING,2102729430
05.10.2017,CHILDREN'S SERVICES,THE GROVE CHILDRENS CENTRE,"11,682.00",NURSERY ED GRANT 3 Y Y.0.,GRANTS,2102729428
05.10.2017,CHILDREN'S SERVICES,SKILLS FOR CARE SOLUTIONS,"1,000.00",S & FAM SUPP - PRAC GRP B SET 17-19,TRAINING,5902271011
05.10.2017,CHILDREN'S SERVICES,CHARLOTTE  SHARMAN PRIMARY SCHOOL,"4,000.00",SCHOOLS DIRECT SALARY FUNDING,SCHOOLS CAPITATION,2102729431
05.10.2017,CHILDREN'S SERVICES,ST JAMES CE SCHOOL,"4,000.00",SCHOOLS DIRECT SALARY FUNDING,SCHOOLS CAPITATION,2102729432
05.10.2017,CHILDREN'S SERVICES,REDACTED PERSONAL DATA,500.04,SEMI INDEPENDENT,OTHER PAYMENTS FOR CLIENTS,2102729419
05.10.2017,CHILDREN'S SERVICES,REDACTED PERSONAL DATA,698.57,SEMI INDEPENDENT,OTHER PAYMENTS FOR CLIENTS,2102729417
05.10.2017,CHILDREN'S SERVICES,DALEY BREAD LTD,"6,601.42",SEMI INDEPENDENT,EXTERNAL AGENCIES AND BODIES,2102729145
05.10.2017,CHILDREN'S SERVICES,DALEY BREAD LTD,368.58,SEMI INDEPENDENT,OTHER PAYMENTS FOR CLIENTS,2102729146
05.10.2017,CHILDREN'S SERVICES,PULSE HEALTHCARE LTD,358.8,SEN TRANSPORT,STATEMENTED FEES,5902270275
05.10.2017,CHILDREN'S SERVICES,SALTCO LTD T/A KELLY EXECUTIVE,"2,660.00",SUMMERHOUSE - EX416 - 5015232,HIRED VEHICLES,5902271165
05.10.2017,CHILDREN'S SERVICES,SAFER LONDON FOUNDATION,"25,000.00",TACKLING TROUBLED FAMILIES,EXTERNAL AGENCIES AND BODIES,5902269779
05.10.2017,CHILDREN'S SERVICES,KINGSDALE FOUNDATION SCHOOL,"10,514.82",TRADE UNIONS,SCHOOLS CAPITATION,2102729427
05.10.2017,COMMUNITIES,APPLEGARTH HOUSE COOPERATIVE LTD,"1,042.52",APPLEGARTH HOUSE CO-OP,M&M ALLOWANCE CO-OPS,5902271160
05.10.2017,COMMUNITIES,POHWER,"1,210.00",NHS COMPLAINTS ADVOCACY,EXTERNAL AGENCIES AND BODIES,5902271046
05.10.2017,COMMUNITIES,POHWER,"1,700.00",NHS COMPLAINTS ADVOCACY,EXTERNAL AGENCIES AND BODIES,5902271154
05.10.2017,COMMUNITIES,POHWER,"6,303.64",NHS COMPLAINTS ADVOCACY,EXTERNAL AGENCIES AND BODIES,5902271028
05.10.2017,COMMUNITIES,POHWER,"7,310.00",NHS COMPLAINTS ADVOCACY,EXTERNAL AGENCIES AND BODIES,5902271043
05.10.2017,COMMUNITIES,A & M PROPERTY AND CONSTRUCTION LTD,"9,390.00",NO RECOURSE TO PUBLIC FUNDS,ACCOMMODATION CHARGES,5902271159
05.10.2017,COMMUNITIES,VENTURE HOUSING (LONDON) LTD,"9,465.00",NO RECOURSE TO PUBLIC FUNDS,ACCOMMODATION CHARGES,5902270958
05.10.2017,COMMUNITIES,EDEN ESTATES LONDON LTD,"2,100.00",NO RECOURSE TO PUBLIC FUNDS,ACCOMMODATION CHARGES,5902271005
05.10.2017,COMMUNITIES,TLK PROPERTY & INVESTMENT LTD,"1,829.00",NO RECOURSE TO PUBLIC FUNDS,ACCOMMODATION CHARGES,5902271095
05.10.2017,COMMUNITIES,EASYMOVE EA LIMITED,"1,860.00",NO RECOURSE TO PUBLIC FUNDS,ACCOMMODATION CHARGES,5902271054
05.10.2017,COMMUNITIES,D SINGH PROPERTIES LTD,"4,938.00",NO RECOURSE TO PUBLIC FUNDS,ACCOMMODATION CHARGES,5902270946
05.10.2017,COMMUNITIES,K3 PROPERTY MANAGEMENT LTD,"5,220.00",NO RECOURSE TO PUBLIC FUNDS,ACCOMMODATION CHARGES,5902271110
05.10.2017,COMMUNITIES,RISBOL LTD,"1,050.00",NO RECOURSE TO PUBLIC FUNDS,ACCOMMODATION CHARGES,5902270945
05.10.2017,COMMUNITIES,NATIONWIDE ACCOMMODATION,"18,860.00",NO RECOURSE TO PUBLIC FUNDS,ACCOMMODATION CHARGES,5902271039
05.10.2017,COMMUNITIES,GOLDSTONE ESTATES LTD,"14,107.50",NO RECOURSE TO PUBLIC FUNDS,ACCOMMODATION CHARGES,5902271102
05.10.2017,COMMUNITIES,CYBERSTYLE LETTINGS LTD,"2,010.00",NO RECOURSE TO PUBLIC FUNDS,ACCOMMODATION CHARGES,5902271038
05.10.2017,COMMUNITIES,THE CAMDEN SOCIETY (CATERING),"1,379.05",RESIDENT INVOLVEMENT TEAM,MARKETING & PUBLICITY SERVICES,5902271168
05.10.2017,COMMUNITIES,TOM HOPKINS ASSOCIATES LTD,"1,470.00",TENANT MGT INITITIVES,TRAINING,5902271035
05.10.2017,COMMUNITIES,TWO TOWERS HOUSING CO-OP LTD,"5,020.00",TWO TOWERS,M&M ALLOWANCE CO-OPS,5902271146
05.10.2017,CUSTOMER EXPERIENCE HGF,IC CONSULTANTS LTD,368,CORONER'S,PROFESSIONAL FEES,5902270930
05.10.2017,CUSTOMER EXPERIENCE HGF,IC CONSULTANTS LTD,388,CORONER'S,PROFESSIONAL FEES,5902270932
05.10.2017,CUSTOMER EXPERIENCE HGF,IC CONSULTANTS LTD,508,CORONER'S,PROFESSIONAL FEES,5902270929
05.10.2017,CUSTOMER EXPERIENCE HGF,REDACTED PERSONAL DATA,767.02,HOMELESS & HOUSING OPTIONS MGT,EXTERNAL AGENCIES AND BODIES,5902270400
05.10.2017,CUSTOMER EXPERIENCE HGF,COUNTY PRIVATE CLIENT LTD,"2,200.00",HOMELESS PROJECTS,GRANTS,5902271063
05.10.2017,CUSTOMER EXPERIENCE HGF,SK HOUSING LTD,"7,512.00",NIGHTLY TA (NSC),EXTERNAL AGENCIES AND BODIES,5902270986
05.10.2017,CUSTOMER EXPERIENCE HGF,SOUTH OF THE RIVER INVESTMENTS LTD,"101,772.20",NIGHTLY TA (NSC),EXTERNAL AGENCIES AND BODIES,5902270931
05.10.2017,CUSTOMER EXPERIENCE HGF,MSR HOUSING,"2,175.00",NIGHTLY TA (NSC),EXTERNAL AGENCIES AND BODIES,5902271033
05.10.2017,ELECTORAL SVCES,FINANCIAL DATA MANAGEMENT PLC,475.75,ELECTORAL REGISTRATION,PRINTING,5902271137
05.10.2017,ELECTORAL SVCES,FINANCIAL DATA MANAGEMENT PLC,986.17,ELECTORAL REGISTRATION,PRINTING,5902271133
05.10.2017,ELECTORAL SVCES,FINANCIAL DATA MANAGEMENT PLC,"1,050.86",ELECTORAL REGISTRATION,PRINTING,5902271127
05.10.2017,ENVIRONMENT AND LEISURE,CJS PLANTS,261.24,CAPITAL PS (LEISURE),CONST'N MAIN CONTRACT - NON CERTIFICATED,5902270941
05.10.2017,ENVIRONMENT AND LEISURE,CJS PLANTS,285,CAPITAL PS (LEISURE),CONST'N MAIN CONTRACT - NON CERTIFICATED,5902270938
05.10.2017,ENVIRONMENT AND LEISURE,CJS PLANTS,"1,485.00",CAPITAL PS (LEISURE),CONST'N MAIN CONTRACT - NON CERTIFICATED,5902271098
05.10.2017,ENVIRONMENT AND LEISURE,WALWORTH GARDEN FARM,812.24,CAPITAL PS (LEISURE),CAPITAL GRANTS,5902271086
05.10.2017,ENVIRONMENT AND LEISURE,LANDMARK SERVICES,"1,000.00",CAPITAL PS (LEISURE),CONSTRUCTION SITE COSTS,5902271116
05.10.2017,ENVIRONMENT AND LEISURE,LANDMARK SERVICES,"5,000.00",CAPITAL PS (LEISURE),CONSTRUCTION SITE COSTS,5902271122
05.10.2017,ENVIRONMENT AND LEISURE,ANDREW WALLER,439,CAPITAL PS (LEISURE),CONSTRUCTION FEES  - EXTERNAL,5902271164
05.10.2017,ENVIRONMENT AND LEISURE,CREATIVE PLAY,"10,249.00",CAPITAL PS (LEISURE),CONSTR'N SUB CONTRACT - NON CERTIFICATED,5902271156
05.10.2017,ENVIRONMENT DIRECTORATE,LONDON HIRE LIMITED,292,COMMERCIAL VEH CTRL A/C,HIRED VEHICLES,5902271139
05.10.2017,ENVIRONMENT DIRECTORATE,LONDON HIRE LIMITED,580,COMMERCIAL VEH CTRL A/C,HIRED VEHICLES,5902271141
05.10.2017,ENVIRONMENT DIRECTORATE,LONDON HIRE LIMITED,645,COMMERCIAL VEH CTRL A/C,HIRED VEHICLES,5902271126
05.10.2017,ENVIRONMENT DIRECTORATE,LONDON HIRE LIMITED,675,COMMERCIAL VEH CTRL A/C,HIRED VEHICLES,5902271120
05.10.2017,ENVIRONMENT DIRECTORATE,LONDON HIRE LIMITED,679,COMMERCIAL VEH CTRL A/C,HIRED VEHICLES,5902271131
05.10.2017,ENVIRONMENT DIRECTORATE,LONDON HIRE LIMITED,822,COMMERCIAL VEH CTRL A/C,HIRED VEHICLES,5902271144
05.10.2017,ENVIRONMENT DIRECTORATE,LONDON HIRE LIMITED,"1,068.51",COMMERCIAL VEH CTRL A/C,HIRED VEHICLES,5902271115
05.10.2017,ENVIRONMENT DIRECTORATE,LONDON HIRE LIMITED,"1,120.00",COMMERCIAL VEH CTRL A/C,HIRED VEHICLES,5902271128
05.10.2017,ENVIRONMENT DIRECTORATE,LONDON HIRE LIMITED,"1,600.00",COMMERCIAL VEH CTRL A/C,HIRED VEHICLES,5902271147
05.10.2017,ENVIRONMENT DIRECTORATE,LONDON HIRE LIMITED,"1,910.00",COMMERCIAL VEH CTRL A/C,HIRED VEHICLES,5902271136
05.10.2017,ENVIRONMENT DIRECTORATE,LONDON HIRE LIMITED,"2,578.02",COMMERCIAL VEH CTRL A/C,HIRED VEHICLES,5902271111
05.10.2017,ENVIRONMENT DIRECTORATE,LONDON HIRE LIMITED,"6,231.50",COMMERCIAL VEH CTRL A/C,HIRED VEHICLES,5902271117
05.10.2017,ENVIRONMENT DIRECTORATE,LONDON HIRE LIMITED,"18,921.50",COMMERCIAL VEH CTRL A/C,HIRED VEHICLES,5902271148
05.10.2017,ENVIRONMENT DIRECTORATE,LONDON HIRE LIMITED,"29,116.45",COMMERCIAL VEH CTRL A/C,HIRED VEHICLES,5902271150
05.10.2017,ENVIRONMENT DIRECTORATE,GULLIVERS TRUCK HIRE LTD,265,COMMERCIAL VEH CTRL A/C,HIRED VEHICLES,5902271106
05.10.2017,ENVIRONMENT DIRECTORATE,GULLIVERS TRUCK HIRE LTD,915,COMMERCIAL VEH CTRL A/C,HIRED VEHICLES,5902271107
05.10.2017,ENVIRONMENT DIRECTORATE,DAWSON RENTALS SWEEPERS,"2,100.00",COMMERCIAL VEH CTRL A/C,HIRED VEHICLES,5902271067
05.10.2017,ENVIRONMENT DIRECTORATE,DAWSON RENTALS SWEEPERS,"2,100.00",COMMERCIAL VEH CTRL A/C,HIRED VEHICLES,5902271068
05.10.2017,ENVIRONMENT DIRECTORATE,DAWSON RENTALS SWEEPERS,"2,100.00",COMMERCIAL VEH CTRL A/C,HIRED VEHICLES,5902271070
05.10.2017,ENVIRONMENT DIRECTORATE,DAWSON RENTALS SWEEPERS,"2,100.00",COMMERCIAL VEH CTRL A/C,HIRED VEHICLES,5902271153
05.10.2017,ENVIRONMENT DIRECTORATE,CLOSE BROTHERS VEHICLE HIRE LTD,273,COMMERCIAL VEH CTRL A/C,HIRED VEHICLES,5902271069
05.10.2017,ENVIRONMENT DIRECTORATE,CLOSE BROTHERS VEHICLE HIRE LTD,289.8,COMMERCIAL VEH CTRL A/C,HIRED VEHICLES,5902271072
05.10.2017,ENVIRONMENT DIRECTORATE,CLOSE BROTHERS VEHICLE HIRE LTD,351.75,COMMERCIAL VEH CTRL A/C,HIRED VEHICLES,5902271079
05.10.2017,ENVIRONMENT DIRECTORATE,CLOSE BROTHERS VEHICLE HIRE LTD,472.08,COMMERCIAL VEH CTRL A/C,HIRED VEHICLES,5902271074
05.10.2017,ENVIRONMENT DIRECTORATE,GREENHAM TRADING LTD,"1,617.29",ESTATE CLEANING-GENERAL,MATERIALS,5902271081
05.10.2017,ENVIRONMENT DIRECTORATE,M H COACHWORKS & SONS LTD,529,FLEET INSURANCE WORKS,TRANSPORT INSURANCE COSTS,5902271004
05.10.2017,ENVIRONMENT DIRECTORATE,M H COACHWORKS & SONS LTD,597.92,FLEET INSURANCE WORKS,TRANSPORT INSURANCE COSTS,5902271002
05.10.2017,ENVIRONMENT DIRECTORATE,M H COACHWORKS & SONS LTD,610.23,FLEET INSURANCE WORKS,TRANSPORT INSURANCE COSTS,5902271003
05.10.2017,ENVIRONMENT DIRECTORATE,M H COACHWORKS & SONS LTD,661,FLEET INSURANCE WORKS,TRANSPORT INSURANCE COSTS,5902271050
05.10.2017,ENVIRONMENT DIRECTORATE,M H COACHWORKS & SONS LTD,670,FLEET INSURANCE WORKS,TRANSPORT INSURANCE COSTS,5902270987
05.10.2017,ENVIRONMENT DIRECTORATE,M H COACHWORKS & SONS LTD,682.2,FLEET INSURANCE WORKS,TRANSPORT INSURANCE COSTS,5902270972
05.10.2017,ENVIRONMENT DIRECTORATE,M H COACHWORKS & SONS LTD,689.79,FLEET INSURANCE WORKS,TRANSPORT INSURANCE COSTS,5902270999
05.10.2017,ENVIRONMENT DIRECTORATE,M H COACHWORKS & SONS LTD,721.45,FLEET INSURANCE WORKS,TRANSPORT INSURANCE COSTS,5902270979
05.10.2017,ENVIRONMENT DIRECTORATE,M H COACHWORKS & SONS LTD,753.3,FLEET INSURANCE WORKS,TRANSPORT INSURANCE COSTS,5902270983
05.10.2017,ENVIRONMENT DIRECTORATE,M H COACHWORKS & SONS LTD,755,FLEET INSURANCE WORKS,TRANSPORT INSURANCE COSTS,5902271008
05.10.2017,ENVIRONMENT DIRECTORATE,M H COACHWORKS & SONS LTD,761,FLEET INSURANCE WORKS,TRANSPORT INSURANCE COSTS,5902270996
05.10.2017,ENVIRONMENT DIRECTORATE,M H COACHWORKS & SONS LTD,775,FLEET INSURANCE WORKS,TRANSPORT INSURANCE COSTS,5902270994
05.10.2017,ENVIRONMENT DIRECTORATE,M H COACHWORKS & SONS LTD,789,FLEET INSURANCE WORKS,TRANSPORT INSURANCE COSTS,5902270988
05.10.2017,ENVIRONMENT DIRECTORATE,M H COACHWORKS & SONS LTD,802.01,FLEET INSURANCE WORKS,TRANSPORT INSURANCE COSTS,5902270998
05.10.2017,ENVIRONMENT DIRECTORATE,M H COACHWORKS & SONS LTD,848.42,FLEET INSURANCE WORKS,TRANSPORT INSURANCE COSTS,5902271010
05.10.2017,ENVIRONMENT DIRECTORATE,M H COACHWORKS & SONS LTD,857.96,FLEET INSURANCE WORKS,TRANSPORT INSURANCE COSTS,5902270993
05.10.2017,ENVIRONMENT DIRECTORATE,M H COACHWORKS & SONS LTD,863.8,FLEET INSURANCE WORKS,TRANSPORT INSURANCE COSTS,5902270992
05.10.2017,ENVIRONMENT DIRECTORATE,M H COACHWORKS & SONS LTD,875.18,FLEET INSURANCE WORKS,TRANSPORT INSURANCE COSTS,5902271001
05.10.2017,ENVIRONMENT DIRECTORATE,M H COACHWORKS & SONS LTD,886.43,FLEET INSURANCE WORKS,TRANSPORT INSURANCE COSTS,5902271055
05.10.2017,ENVIRONMENT DIRECTORATE,M H COACHWORKS & SONS LTD,904.04,FLEET INSURANCE WORKS,TRANSPORT INSURANCE COSTS,5902271053
05.10.2017,ENVIRONMENT DIRECTORATE,M H COACHWORKS & SONS LTD,929.28,FLEET INSURANCE WORKS,TRANSPORT INSURANCE COSTS,5902270984
05.10.2017,ENVIRONMENT DIRECTORATE,M H COACHWORKS & SONS LTD,958,FLEET INSURANCE WORKS,TRANSPORT INSURANCE COSTS,5902271052
05.10.2017,ENVIRONMENT DIRECTORATE,M H COACHWORKS & SONS LTD,982.24,FLEET INSURANCE WORKS,TRANSPORT INSURANCE COSTS,5902271006
05.10.2017,ENVIRONMENT DIRECTORATE,M H COACHWORKS & SONS LTD,"1,066.26",FLEET INSURANCE WORKS,TRANSPORT INSURANCE COSTS,5902270989
05.10.2017,ENVIRONMENT DIRECTORATE,M H COACHWORKS & SONS LTD,"1,161.00",FLEET INSURANCE WORKS,TRANSPORT INSURANCE COSTS,5902270981
05.10.2017,ENVIRONMENT DIRECTORATE,M H COACHWORKS & SONS LTD,"1,348.75",FLEET INSURANCE WORKS,TRANSPORT INSURANCE COSTS,5902271007
05.10.2017,ENVIRONMENT DIRECTORATE,M H COACHWORKS & SONS LTD,"1,379.80",FLEET INSURANCE WORKS,TRANSPORT INSURANCE COSTS,5902270977
05.10.2017,ENVIRONMENT DIRECTORATE,M H COACHWORKS & SONS LTD,"3,051.52",FLEET INSURANCE WORKS,TRANSPORT INSURANCE COSTS,5902271058
05.10.2017,ENVIRONMENT DIRECTORATE,SPALDINGS (UK) LTD,338,GROUNDS MAINTENANCE - GENERAL,MATERIALS,5902271048
05.10.2017,ENVIRONMENT DIRECTORATE,COTSWOLD OUTDOOR LIMITED,528.42,JETS SOUTH TEAM,"CLOTHING, UNIFORMS & LAUNDRY",5902271161
05.10.2017,ENVIRONMENT DIRECTORATE,CONTEGO SAFETY SOLUTIONS LTD,-586.95,MANAGEMENT TEAM,MATERIALS,5902270175
05.10.2017,ENVIRONMENT DIRECTORATE,CONTEGO SAFETY SOLUTIONS LTD,408,MANAGEMENT TEAM,MATERIALS,5902270172
05.10.2017,ENVIRONMENT DIRECTORATE,CONTEGO SAFETY SOLUTIONS LTD,556.25,MANAGEMENT TEAM,MATERIALS,5902271076
05.10.2017,ENVIRONMENT DIRECTORATE,CONTEGO SAFETY SOLUTIONS LTD,"1,112.50",MANAGEMENT TEAM,MATERIALS,5902271082
05.10.2017,ENVIRONMENT DIRECTORATE,ELLIOT ENVIRONMENTAL LTD,400,STREET CLEANING-GENERAL,OTHER CONTRACTORS,5902270179
05.10.2017,ENVIRONMENT DIRECTORATE,SOUTHWARK NEWSPAPER LTD,288,STREET WORKS OVERHEADS,MARKETING & PUBLICITY SERVICES,5902271143
05.10.2017,ENVIRONMENT DIRECTORATE,SOUTHWARK NEWSPAPER LTD,288,STREET WORKS OVERHEADS,MARKETING & PUBLICITY SERVICES,5902271163
05.10.2017,ENVIRONMENT DIRECTORATE,SOUTHWARK NEWSPAPER LTD,288,STREET WORKS OVERHEADS,MARKETING & PUBLICITY SERVICES,5902271166
05.10.2017,ENVIRONMENT DIRECTORATE,SOUTHWARK NEWSPAPER LTD,300,STREET WORKS OVERHEADS,MARKETING & PUBLICITY SERVICES,5902271162
05.10.2017,F & C S EXCLUDING CORPORATE BUDGETS,NORTHGATE PUBLIC SERVICES (UK) LTD,451.67,ADMINISTRATIVE SUPPORT,POSTAGES,5902270974
05.10.2017,F & C S EXCLUDING CORPORATE BUDGETS,BETTER BANKSIDE,"84,837.35",BETTER BANKSIDE,EXTERNAL AGENCIES AND BODIES,5902270975
05.10.2017,FINANCE & GOVERNANCE,HEWITT ASSOCIATES LTD,"150,280.00",AON ADMIN PROJECT WORKS,PROFESSIONAL FEES,5902271042
05.10.2017,HOUSING,SMITH & BYFORD LTD,"317,496.53",SMITH AND BYFORD,MANUAL CREDITORS,2102729447
05.10.2017,HOUSING,THAMES VALLEY CONTROLS LTD,"3,835.20",THAMES VALLEY CONTROL,MANUAL CREDITORS,5902270927
05.10.2017,HOUSING HRA,KEEPMOAT REGENERATION (APOLLO) LTD,"100,006.43",CAPITAL PS (HRA),CONSTRUCTION MAIN CONTRACT -CERTIFICATED,2102729443
05.10.2017,HOUSING HRA,A & E ELKINS LTD,"104,793.69",CAPITAL PS (HRA),CONSTRUCTION MAIN CONTRACT -CERTIFICATED,2102729374
05.10.2017,HOUSING HRA,JOHN BURKE ASSOCIATES,465,CAPITAL PS (HRA),CONSTRUCTION FEES  - EXTERNAL,5902271049
05.10.2017,HOUSING HRA,RESOURCE & ENVIRONMENTAL CONSULTANTS LTD,350,CAPITAL PS (HRA),CONSTRUCTION FEES  - EXTERNAL,5902270942
05.10.2017,HOUSING HRA,RESOURCE & ENVIRONMENTAL CONSULTANTS LTD,350,CAPITAL PS (HRA),CONSTRUCTION FEES  - EXTERNAL,5902270942
05.10.2017,HOUSING HRA,RESOURCE & ENVIRONMENTAL CONSULTANTS LTD,350,CAPITAL PS (HRA),CONSTRUCTION FEES  - EXTERNAL,5902271025
05.10.2017,HOUSING HRA,PJC CONSULTANCY LTD,320,CAPITAL PS (HRA),CONSTRUCTION FEES  - EXTERNAL,5902271157
05.10.2017,HOUSING HRA,PJC CONSULTANCY LTD,420,CAPITAL PS (HRA),CONSTRUCTION FEES  - EXTERNAL,5902271158
05.10.2017,HOUSING HRA,P A FINLAY & COMPANY LTD,"1,375.00",CAPITAL PS (HRA),CONSTRUCTION FEES  - EXTERNAL,5902271027
05.10.2017,HOUSING HRA,SOIL ENVIRONMENT SERVICES,"4,100.00",CAPITAL PS (HRA),CONSTRUCTION FEES  - EXTERNAL,5902271030
05.10.2017,HOUSING HRA,MORGAN SINDALL PLC,"446,838.00",CAPITAL PS (HRA),CONSTR'N SUB CONTRACT - NON CERTIFICATED,2102729379
05.10.2017,LEISURE DIRECTORATE,P D CONSTRUCTION LTD,520,BERMONDSEY CARNIVAL,OTHER CONTRACTORS,2102729449
05.10.2017,LEISURE DIRECTORATE,SIMPLY HIRE LTD,"1,001.44",FACILITIES MAINTENANCE,BUILDING R&M,5902270967
05.10.2017,LEISURE DIRECTORATE,R H WROUGHT IRON MANUFACTURERS,415,PECKHAM RYE AREA TEAM,OTHER R&M,5902271093
05.10.2017,LEISURE DIRECTORATE,QUADRON SERVICES LIMITED,"10,743.14",PECKHAM RYE AREA TEAM,GROUNDS MAINTENANCE,5902271140
05.10.2017,LEISURE DIRECTORATE,DANZER LTD,"1,700.00",SOUTHWARK AREA TEAM,OTHER R&M,2102729450
05.10.2017,LEISURE DIRECTORATE,BOOKSCAN LIBRARY SERVICES,316.94,STOCK SERVICES,BOOKS & PUBLICATIONS,5902271118
05.10.2017,LEISURE DIRECTORATE,ASKEWS & HOLTS LIBRARY SERVICES LTD,621.95,STOCK SERVICES,BOOKS & PUBLICATIONS,5902269974
05.10.2017,LEISURE DIRECTORATE,ASKEWS & HOLTS LIBRARY SERVICES LTD,"9,196.15",STOCK SERVICES,BOOKS & PUBLICATIONS,5902269971
05.10.2017,MODERNISATION HGF,ASURE SOFTWARE UK LTD,575,CFM OPERATIONAL BUDGET,SOFTWARE,5902270527
05.10.2017,MODERNISATION HGF,COMENSURA LTD,"3,069.24",MONTHLY ADMIN FEE,AGENCY STAFF,5902271031
05.10.2017,MODERNISATION HGF,SHERRIDAN HUGHES,950,OCCUPATIONAL ASSESSMENT,CONSULTANTS SERVICES,5902270964
05.10.2017,MODERNISATION HGF,KIER FACILITIES SERVICES LTD,"64,895.04",PLANNED FM SERVICES BY KIER,BUILDING R&M,5902270831
05.10.2017,MODERNISATION HGF,KIER FACILITIES SERVICES LTD,"64,895.04",PLANNED FM SERVICES BY KIER,BUILDING R&M,5902270834
05.10.2017,MODERNISATION HGF,COMENSURA LTD,"416,360.60",WEEKLY PAYMENTS,AGENCY STAFF,5902271031
05.10.2017,PLANNING AND TRANSPORT,IDOX SOFWARE LIMITED,254.55,DEVELOPMENT CONTROL ADMINSTRATION,COMPUTER MAINTENANCE,5902270990
05.10.2017,PLANNING AND TRANSPORT,IDOX SOFWARE LIMITED,276.94,DEVELOPMENT CONTROL ADMINSTRATION,COMPUTER MAINTENANCE,5902271009
05.10.2017,PUBLIC HEALTH,SPORTS AND LEISURE MANAGEMENT LTD,"1,080.00",HEALTH CHECKS,EXTERNAL AGENCIES AND BODIES,5902270966
05.10.2017,REGENERATION,FIELD FISHER WATERHOUSE,"23,760.16",MISC INDUSTRIAL PROPERTIES,PROFESSIONAL FEES,5902271089
05.10.2017,RESIDENT SERVICES,TFL TELESALES / OYSTER FULFILMENT,"3,470.00",OPERATIONS/OFFICES ACCOMMODATION,PUBLIC TRANSPORT,5902270949
06.10.2017,ADULT SOCIAL CARE,INTERSERVE (FACILITIES MANAGEMENT),"5,093.32",ANCHOR TRUST REPAIRS,BUILDING R&M,5902271171
06.10.2017,ADULT SOCIAL CARE,REDACTED PERSONAL DATA,264.8,APPOINTEESHIPS,OTHER PAYMENTS FOR CLIENTS,5902271255
06.10.2017,ADULT SOCIAL CARE,MEDEQUIP ASSISTIVE TECHNOLOGY LTD,327.47,ICES CONTRACT,EQUIPMENT PURCHASE & REPAIR,5902271305
06.10.2017,ADULT SOCIAL CARE,MEDEQUIP ASSISTIVE TECHNOLOGY LTD,"1,309.80",ICES CONTRACT,EQUIPMENT PURCHASE & REPAIR,5902271309
06.10.2017,ADULT SOCIAL CARE,MEDEQUIP ASSISTIVE TECHNOLOGY LTD,"1,309.80",ICES CONTRACT,EQUIPMENT PURCHASE & REPAIR,5902271318
06.10.2017,ADULT SOCIAL CARE,MEDEQUIP ASSISTIVE TECHNOLOGY LTD,"1,309.80",ICES CONTRACT,EQUIPMENT PURCHASE & REPAIR,5902271321
06.10.2017,ADULT SOCIAL CARE,MEDEQUIP ASSISTIVE TECHNOLOGY LTD,"170,759.68",ICES CONTRACT,EQUIPMENT PURCHASE & REPAIR,5902271302
06.10.2017,ADULT SOCIAL CARE,TURUN UK LTD,"1,120.79",SOUTHWARK RESOURCE CENTRE,EQUIPMENT PURCHASE & REPAIR,5902271276
06.10.2017,ASSET MANAGEMENT,ALLIED REMEDIAL TREATMENTS LTD,554,DISREPAIR,BUILDING R&M,2102729486
06.10.2017,CENTRAL FUNCTIONS,VEOLIA ES (UK)LTD,"137,035.02",HEATING ACCOUNT,GAS,5902271219
06.10.2017,CHIEF EXECUTIVE,LDA DESIGN CONSULTING LTD,"4,498.00",CAPITAL PS (REGEN),CONSTRUCTION FEES - ARCHITECT,5902271208
06.10.2017,CHIEF EXECUTIVE,JAN KATTEIN ARCHITECTS LTD,"3,859.54",CAPITAL PS (REGEN),CONSTRUCTION FEES  - EXTERNAL,5902270173
06.10.2017,CHILDREN AND ADULT,GLOBAL GUARDIANS MANAGEMENT LTD,650,CAPITAL PS (SOC SERV),CONSTRUCTION MAIN CONTRACT,5902270437
06.10.2017,CHILDREN AND ADULT,NUMBER 10 INTERIM LTD,"1,575.00",CAPITAL PS (STRAT SERV),ICT ACQUISITION FEES,5902270174
06.10.2017,CHILDREN AND ADULT,MILES AND STCCKBRIDGE P.C.,"4,630.42",LEGAL,LEGAL & COURT FEES,INTERNATIONAL PAYMENT
06.10.2017,CHILDREN'S SERVICES,MOMENTS FOSTERING LTD,252.1,AGENCY FOSTERING,EXTERNAL AGENCIES AND BODIES,5902271371
06.10.2017,CHILDREN'S SERVICES,CASTLE WATER LTD,"1,287.47",BUILDING SUMNER,WATER,5902271198
06.10.2017,CHILDREN'S SERVICES,YVONNE WILSON LTD,471.9,FAMILY ASSESSMENTS,RESIDENTIAL CARE,5902271323
06.10.2017,CHILDREN'S SERVICES,YOUTH JUSTICE BOARD FOR ENGLAND & WALES,"1,337.00",REMAND - YDA CUSTODY,RESIDENTIAL CARE,5902271368
06.10.2017,CHILDREN'S SERVICES,YOUTH JUSTICE BOARD FOR ENGLAND & WALES,"4,425.00",REMAND - YDA CUSTODY,RESIDENTIAL CARE,5902271295
06.10.2017,CHILDREN'S SERVICES,YOUTH JUSTICE BOARD FOR ENGLAND & WALES,"4,775.00",REMAND - YDA CUSTODY,RESIDENTIAL CARE,5902271363
06.10.2017,CHILDREN'S SERVICES,YOUTH JUSTICE BOARD FOR ENGLAND & WALES,"5,730.00",REMAND - YDA CUSTODY,RESIDENTIAL CARE,5902271296
06.10.2017,CHILDREN'S SERVICES,YOUTH JUSTICE BOARD FOR ENGLAND & WALES,"5,730.00",REMAND - YDA CUSTODY,RESIDENTIAL CARE,5902271297
06.10.2017,CHILDREN'S SERVICES,YOUTH JUSTICE BOARD FOR ENGLAND & WALES,"5,730.00",REMAND - YDA CUSTODY,RESIDENTIAL CARE,5902271298
06.10.2017,CHILDREN'S SERVICES,YOUTH JUSTICE BOARD FOR ENGLAND & WALES,"5,921.00",REMAND - YDA CUSTODY,RESIDENTIAL CARE,5902271300
06.10.2017,CHILDREN'S SERVICES,YOUTH JUSTICE BOARD FOR ENGLAND & WALES,"5,921.00",REMAND - YDA CUSTODY,RESIDENTIAL CARE,5902271301
06.10.2017,CHILDREN'S SERVICES,YOUTH JUSTICE BOARD FOR ENGLAND & WALES,"5,921.00",REMAND - YDA CUSTODY,RESIDENTIAL CARE,5902271366
06.10.2017,CHILDREN'S SERVICES,YOUTH JUSTICE BOARD FOR ENGLAND & WALES,"17,949.00",REMAND - YDA SECURE,RESIDENTIAL CARE,5902271303
06.10.2017,CHILDREN'S SERVICES,2ND CHANCE SUMMER PLAYSCHEME,414,S & FAM SUPP - PRAC GRP B SET 17-19,OTHER PAYMENTS FOR CLIENTS,5902271315
06.10.2017,CHILDREN'S SERVICES,SALTCO LTD T/A KELLY EXECUTIVE,"2,380.00",SUMMERHOUSE - EX416 - 5015232,HIRED VEHICLES,5902271175
06.10.2017,CHILDREN'S SERVICES,SALTCO LTD T/A KELLY EXECUTIVE,"2,380.00",SUMMERHOUSE - EX416 - 5015232,HIRED VEHICLES,5902271176
06.10.2017,CHILDREN'S SERVICES,SINEAD JOYCE,"1,620.00",SUMMERHOUSE - EX416 - 5015232,CONSULTANTS SERVICES,5902271362
06.10.2017,CHILDREN'S SERVICES,XANTURA LTD,"9,100.00",TACKLING TROUBLED FAMILIES,EXTERNAL AGENCIES AND BODIES,5902271308
06.10.2017,CHILDREN'S SERVICES,TAAKSVALE HOUSING LTD,"5,210.00",TEMPORARY ACCOMMODATION,EXTERNAL AGENCIES AND BODIES,5902271267
06.10.2017,CHILDREN'S SERVICES,INSTITUTE OF FAMILY THERAPY,"1,912.50",YOS SUPPORT,TRAINING,5902271306
06.10.2017,COMMUNITIES,CRI (CRIME REDUCTION INITIATIVES),"269,381.15",ADULT SM SERVICE,OTHER CONTRACTORS,5902271259
06.10.2017,COMMUNITIES,CRI (CRIME REDUCTION INITIATIVES),"292,805.60",ADULT SM SERVICE,OTHER CONTRACTORS,5902271263
06.10.2017,COMMUNITIES,CRI (CRIME REDUCTION INITIATIVES),"292,805.60",ADULT SM SERVICE,OTHER CONTRACTORS,5902271269
06.10.2017,COMMUNITIES,STENFORD PROPERTY LTD,"1,271.00",NO RECOURSE TO PUBLIC FUNDS,SECTION 17 PAYMENTS TO AGENCIES/CARERS,5902271231
06.10.2017,COMMUNITIES,STENFORD PROPERTY LTD,"1,271.00",NO RECOURSE TO PUBLIC FUNDS,SECTION 17 PAYMENTS TO AGENCIES/CARERS,5902271232
06.10.2017,COMMUNITIES,PPROPERTYPLACEBOOK LTD,"14,807.00",NO RECOURSE TO PUBLIC FUNDS,ACCOMMODATION CHARGES,5902271218
06.10.2017,COMMUNITIES,ALLPAY LTD,"91,312.34",NO RECOURSE TO PUBLIC FUNDS,OTHER PAYMENTS FOR CLIENTS,5902271264
06.10.2017,CUSTOMER EXPERIENCE HGF,REDACTED PERSONAL DATA,"3,000.00",HOMELESS PROJECTS,GRANTS,5902270472
06.10.2017,CUSTOMER EXPERIENCE HGF,UMBRELLA HOUSING LTD,"1,000.00",HOMELESS PROJECTS,GRANTS,5902271327
06.10.2017,CUSTOMER EXPERIENCE HGF,REDACTED PERSONAL DATA,"1,176.92",HOMELESS PROJECTS,GRANTS,5902269710
06.10.2017,CUSTOMER EXPERIENCE HGF,A & M PROPERTY AND CONSTRUCTION LTD,"33,633.00",NIGHTLY TA (NSC),EXTERNAL AGENCIES AND BODIES,5902271172
06.10.2017,CUSTOMER EXPERIENCE HGF,RS REAL ESTATE LTD,"24,175.00",NIGHTLY TA (NSC),EXTERNAL AGENCIES AND BODIES,5902271332
06.10.2017,CUSTOMER EXPERIENCE HGF,TAAKSVALE HOUSING LTD,"69,858.95",NIGHTLY TA (NSC),EXTERNAL AGENCIES AND BODIES,5902271228
06.10.2017,CUSTOMER EXPERIENCE HGF,TAAKSVALE HOUSING LTD,"14,000.00",PSL PLACEMENTS,EXTERNAL AGENCIES AND BODIES,5902271280
06.10.2017,CUSTOMER EXPERIENCE HGF,TUNSTALL HEALTHCARE (UK) LTD,"4,950.00",SMART MOBILE RESPONSE TEAM,EQUIPMENT PURCHASE & REPAIR,5902271292
06.10.2017,ELECTORAL SVCES,ELECTORAL REFORM  SERVICES,442.5,ELECTORAL REGISTRATION,POSTAGES,5902271199
06.10.2017,ELECTORAL SVCES,ELECTORAL REFORM  SERVICES,306.87,ELECTORAL REGISTRATION,PRINTING,5902271199
06.10.2017,ELECTORAL SVCES,ELECTORAL REFORM  SERVICES,"2,242.14",ELECTORAL REGISTRATION,PRINTING,5902271183
06.10.2017,ELECTORAL SVCES,FINANCIAL DATA MANAGEMENT PLC,"2,727.14",ELECTORAL REGISTRATION,POSTAGES,5902271210
06.10.2017,ELECTORAL SVCES,FINANCIAL DATA MANAGEMENT PLC,"7,179.00",GENERAL ELECTION,PRINTING,5902271217
06.10.2017,ELECTORAL SVCES,FINANCIAL DATA MANAGEMENT PLC,"17,251.05",GENERAL ELECTION,PRINTING,5902271245
06.10.2017,ELECTORAL SVCES,FINANCIAL DATA MANAGEMENT PLC,"22,169.98",GENERAL ELECTION,PRINTING,5902271214
06.10.2017,ELECTORAL SVCES,BERMONDSEY VILLAGE HALL TRUST,350,GENERAL ELECTION,HIRE OF ROOMS/HALLS,5902271224
06.10.2017,ELECTORAL SVCES,ROYAL MAIL GROUP LTD,409.57,GENERAL ELECTION,POSTAGES,5902271194
06.10.2017,ELECTORAL SVCES,HOLLINGTON CLUB FOR YOUNG PEOPLE,350,GLA ELECTIONS,HIRE OF ROOMS/HALLS,5902271239
06.10.2017,ENVIRONMENT AND LEISURE,LAND USE CONSULTANTS,"1,361.00",CAPITAL PS (LEISURE),CONSTRUCTION FEES  - EXTERNAL,5902270729
06.10.2017,ENVIRONMENT AND LEISURE,LAND USE CONSULTANTS,"1,764.00",CAPITAL PS (LEISURE),CONSTRUCTION FEES  - EXTERNAL,5902270726
06.10.2017,ENVIRONMENT AND LEISURE,ANDREW WALLER,439,CAPITAL PS (LEISURE),CONSTRUCTION FEES  - EXTERNAL,5902270149
06.10.2017,ENVIRONMENT AND LEISURE,RANDALL SHAW BILLINGHAM LTD,"7,995.00",CAPITAL PS (LEISURE),CONSTRUCTION FEES - ARCHITECT,5902271304
06.10.2017,ENVIRONMENT AND LEISURE,CONNICK TREE CARE REIGATE LTD,600,CAPITAL PS (LEISURE),CONSTRUCTION FEES  - EXTERNAL,5902270514
06.10.2017,ENVIRONMENT AND LEISURE,GROUND CONTROL LIMITED,"68,114.89",CAPITAL PS (LEISURE),CONSTRUCTION SITE COSTS,2102729491
06.10.2017,ENVIRONMENT AND LEISURE,CONWAY AECOM LTD,"12,180.86",CAPITAL PS (LEISURE),CONSTRUCTION,2102729488
06.10.2017,ENVIRONMENT AND SOCIAL REGENERATION,TRAVIS PERKINS,-360.93,STORES,BSU STORES AUTO POSTINGS,5902271279
06.10.2017,ENVIRONMENT AND SOCIAL REGENERATION,TRAVIS PERKINS,351.42,STORES,BSU STORES AUTO POSTINGS,5902271279
06.10.2017,ENVIRONMENT AND SOCIAL REGENERATION,TRAVIS PERKINS,253.2,STORES,CREDITORS -GR/IR CLEARING ACCOUNT,5902271279
06.10.2017,ENVIRONMENT AND SOCIAL REGENERATION,TRAVIS PERKINS,259.8,STORES,CREDITORS -GR/IR CLEARING ACCOUNT,5902271279
06.10.2017,ENVIRONMENT AND SOCIAL REGENERATION,TRAVIS PERKINS,260,STORES,CREDITORS -GR/IR CLEARING ACCOUNT,5902271279
06.10.2017,ENVIRONMENT AND SOCIAL REGENERATION,TRAVIS PERKINS,260,STORES,CREDITORS -GR/IR CLEARING ACCOUNT,5902271279
06.10.2017,ENVIRONMENT AND SOCIAL REGENERATION,TRAVIS PERKINS,261.28,STORES,CREDITORS -GR/IR CLEARING ACCOUNT,5902271279
06.10.2017,ENVIRONMENT AND SOCIAL REGENERATION,TRAVIS PERKINS,305.4,STORES,CREDITORS -GR/IR CLEARING ACCOUNT,5902271279
06.10.2017,ENVIRONMENT AND SOCIAL REGENERATION,TRAVIS PERKINS,315,STORES,CREDITORS -GR/IR CLEARING ACCOUNT,5902271279
06.10.2017,ENVIRONMENT AND SOCIAL REGENERATION,TRAVIS PERKINS,316.9,STORES,CREDITORS -GR/IR CLEARING ACCOUNT,5902271279
06.10.2017,ENVIRONMENT AND SOCIAL REGENERATION,TRAVIS PERKINS,317.1,STORES,CREDITORS -GR/IR CLEARING ACCOUNT,5902271279
06.10.2017,ENVIRONMENT AND SOCIAL REGENERATION,TRAVIS PERKINS,323,STORES,CREDITORS -GR/IR CLEARING ACCOUNT,5902271279
06.10.2017,ENVIRONMENT AND SOCIAL REGENERATION,TRAVIS PERKINS,336,STORES,CREDITORS -GR/IR CLEARING ACCOUNT,5902271279
06.10.2017,ENVIRONMENT AND SOCIAL REGENERATION,TRAVIS PERKINS,343,STORES,CREDITORS -GR/IR CLEARING ACCOUNT,5902271279
06.10.2017,ENVIRONMENT AND SOCIAL REGENERATION,TRAVIS PERKINS,345,STORES,CREDITORS -GR/IR CLEARING ACCOUNT,5902271279
06.10.2017,ENVIRONMENT AND SOCIAL REGENERATION,TRAVIS PERKINS,345,STORES,CREDITORS -GR/IR CLEARING ACCOUNT,5902271279
06.10.2017,ENVIRONMENT AND SOCIAL REGENERATION,TRAVIS PERKINS,345,STORES,CREDITORS -GR/IR CLEARING ACCOUNT,5902271279
06.10.2017,ENVIRONMENT AND SOCIAL REGENERATION,TRAVIS PERKINS,353.4,STORES,CREDITORS -GR/IR CLEARING ACCOUNT,5902271279
06.10.2017,ENVIRONMENT AND SOCIAL REGENERATION,TRAVIS PERKINS,440,STORES,CREDITORS -GR/IR CLEARING ACCOUNT,5902271279
06.10.2017,ENVIRONMENT AND SOCIAL REGENERATION,TRAVIS PERKINS,450,STORES,CREDITORS -GR/IR CLEARING ACCOUNT,5902271279
06.10.2017,ENVIRONMENT AND SOCIAL REGENERATION,TRAVIS PERKINS,478.48,STORES,CREDITORS -GR/IR CLEARING ACCOUNT,5902271279
06.10.2017,ENVIRONMENT AND SOCIAL REGENERATION,TRAVIS PERKINS,492.5,STORES,CREDITORS -GR/IR CLEARING ACCOUNT,5902271279
06.10.2017,ENVIRONMENT AND SOCIAL REGENERATION,TRAVIS PERKINS,495,STORES,CREDITORS -GR/IR CLEARING ACCOUNT,5902271279
06.10.2017,ENVIRONMENT AND SOCIAL REGENERATION,TRAVIS PERKINS,513.4,STORES,CREDITORS -GR/IR CLEARING ACCOUNT,5902271279
06.10.2017,ENVIRONMENT AND SOCIAL REGENERATION,TRAVIS PERKINS,682.56,STORES,CREDITORS -GR/IR CLEARING ACCOUNT,5902271279
06.10.2017,ENVIRONMENT AND SOCIAL REGENERATION,TRAVIS PERKINS,682.8,STORES,CREDITORS -GR/IR CLEARING ACCOUNT,5902271279
06.10.2017,ENVIRONMENT AND SOCIAL REGENERATION,TRAVIS PERKINS,690,STORES,CREDITORS -GR/IR CLEARING ACCOUNT,5902271279
06.10.2017,ENVIRONMENT AND SOCIAL REGENERATION,TRAVIS PERKINS,698.55,STORES,CREDITORS -GR/IR CLEARING ACCOUNT,5902271279
06.10.2017,ENVIRONMENT AND SOCIAL REGENERATION,TRAVIS PERKINS,761.52,STORES,CREDITORS -GR/IR CLEARING ACCOUNT,5902271279
06.10.2017,ENVIRONMENT AND SOCIAL REGENERATION,TRAVIS PERKINS,825.36,STORES,CREDITORS -GR/IR CLEARING ACCOUNT,5902271279
06.10.2017,ENVIRONMENT AND SOCIAL REGENERATION,TRAVIS PERKINS,"1,058.80",STORES,CREDITORS -GR/IR CLEARING ACCOUNT,5902271279
06.10.2017,ENVIRONMENT AND SOCIAL REGENERATION,TRAVIS PERKINS,"1,391.72",STORES,CREDITORS -GR/IR CLEARING ACCOUNT,5902271279
06.10.2017,ENVIRONMENT AND SOCIAL REGENERATION,TRAVIS PERKINS,"1,397.10",STORES,CREDITORS -GR/IR CLEARING ACCOUNT,5902271279
06.10.2017,ENVIRONMENT DIRECTORATE,KENT COUNTY COUNCIL - LASER,410.85,COLUMNS - MINOR ROADS,SOUTHWARK DIRECT CHARGES,5902271353
06.10.2017,ENVIRONMENT DIRECTORATE,ENTERPRISE FLEX E RENT,"1,218.00",COMMERCIAL VEH CTRL A/C,HIRED VEHICLES,5902271339
06.10.2017,ENVIRONMENT DIRECTORATE,LCV HIRE SOLUTIONS LTD,321.3,COMMERCIAL VEH CTRL A/C,HIRED VEHICLES,5902271222
06.10.2017,ENVIRONMENT DIRECTORATE,LCV HIRE SOLUTIONS LTD,321.3,COMMERCIAL VEH CTRL A/C,HIRED VEHICLES,5902271225
06.10.2017,ENVIRONMENT DIRECTORATE,CLOSE BROTHERS VEHICLE HIRE LTD,256.2,COMMERCIAL VEH CTRL A/C,HIRED VEHICLES,5902271235
06.10.2017,ENVIRONMENT DIRECTORATE,CLOSE BROTHERS VEHICLE HIRE LTD,256.2,COMMERCIAL VEH CTRL A/C,HIRED VEHICLES,5902271236
06.10.2017,ENVIRONMENT DIRECTORATE,CLOSE BROTHERS VEHICLE HIRE LTD,302.4,COMMERCIAL VEH CTRL A/C,HIRED VEHICLES,5902271233
06.10.2017,ENVIRONMENT DIRECTORATE,CLOSE BROTHERS VEHICLE HIRE LTD,302.4,COMMERCIAL VEH CTRL A/C,HIRED VEHICLES,5902271234
06.10.2017,ENVIRONMENT DIRECTORATE,PERFORMANCE CHEMICALS LTD,834.4,ESTATE CLEANING-GENERAL,MATERIALS,5902271261
06.10.2017,ENVIRONMENT DIRECTORATE,ASD LIGHTING PLC,"5,968.50",LIGHTING RECOVERABLE WORKS,SOUTHWARK DIRECT CHARGES,5902271344
06.10.2017,ENVIRONMENT DIRECTORATE,CIRRUS RESEARCH PLC,383,NOISE& AIR QUALITY,EQUIPMENT PURCHASE & REPAIR,5902271317
06.10.2017,ENVIRONMENT DIRECTORATE,COMPLETE TREE CARE LTD,304.28,NON HOUSING GROUNDS,AGENCY STAFF,5902271180
06.10.2017,ENVIRONMENT DIRECTORATE,W M CONSULTANCY (UK) LTD,"5,719.50",S.E.L. ILLEGAL TOBACCO ALLIANCE,PROFESSIONAL FEES,5902270554
06.10.2017,ENVIRONMENT DIRECTORATE,SOUTHWARK NEWSPAPER LTD,276,STREET WORKS OVERHEADS,MARKETING & PUBLICITY SERVICES,5902271169
06.10.2017,ENVIRONMENT DIRECTORATE,SOUTHWARK NEWSPAPER LTD,288,STREET WORKS OVERHEADS,MARKETING & PUBLICITY SERVICES,5902271248
06.10.2017,ENVIRONMENT DIRECTORATE,SOUTHWARK NEWSPAPER LTD,336,STREET WORKS OVERHEADS,MARKETING & PUBLICITY SERVICES,5902271179
06.10.2017,ENVIRONMENT DIRECTORATE,SOUTHWARK NEWSPAPER LTD,336,STREET WORKS OVERHEADS,MARKETING & PUBLICITY SERVICES,5902271185
06.10.2017,ENVIRONMENT DIRECTORATE,SOUTHWARK NEWSPAPER LTD,336,STREET WORKS OVERHEADS,MARKETING & PUBLICITY SERVICES,5902271237
06.10.2017,ENVIRONMENT DIRECTORATE,SOUTHWARK NEWSPAPER LTD,336,STREET WORKS OVERHEADS,MARKETING & PUBLICITY SERVICES,5902271250
06.10.2017,ENVIRONMENT DIRECTORATE,PASSCO LTD,750,TRADING STANDARDS,PROFESSIONAL FEES,5902271196
06.10.2017,F & C S EXCLUDING CORPORATE BUDGETS,NORTHGATE PUBLIC SERVICES (UK) LTD,"4,125.00",ADMINISTRATIVE SUPPORT,COMMS & COMPUTING CONTRACT CHARGES,5902271266
06.10.2017,F & C S EXCLUDING CORPORATE BUDGETS,DSI BILLING SERVICES LTD,"2,197.79",ADMINISTRATIVE SUPPORT,POSTAGES,5902270403
06.10.2017,F & C S EXCLUDING CORPORATE BUDGETS,RSM RISK ASSURANCE SERVICES LLP,"15,237.00",FINANCE DIRECTOR,PROFESSIONAL FEES,5902271364
06.10.2017,F & C S EXCLUDING CORPORATE BUDGETS,BUDGET CARPETS,287.5,SESS,OTHER PAYMENTS FOR CLIENTS,5902271213
06.10.2017,F & C S EXCLUDING CORPORATE BUDGETS,BUDGET CARPETS,387.5,SESS,OTHER PAYMENTS FOR CLIENTS,5902271249
06.10.2017,HOUSING,PENNINGTON CHOICE LTD,"13,167.20",PENNINGTON,MANUAL CREDITORS,5902270206
06.10.2017,HOUSING HRA,POTTER RAPER AND PARTNERS,"1,514.19",CAPITAL PS (HRA),CONSTRUCTION FEES  - EXTERNAL,5902271124
06.10.2017,HOUSING HRA,POTTER RAPER AND PARTNERS,"6,773.23",CAPITAL PS (HRA),CONSTRUCTION FEES  - EXTERNAL,5902271034
06.10.2017,HOUSING HRA,MLM CONSULTING ENGINEERS LTD,"1,500.00",CAPITAL PS (HRA),CONSTRUCTION FEES  - EXTERNAL,5902271316
06.10.2017,HOUSING HRA,KINLEIGH LTD,"4,500.00",CAPITAL PS (HRA),CONSTRUCTION FEES  - EXTERNAL,5902271358
06.10.2017,HOUSING HRA,KINLEIGH LTD,"4,500.00",CAPITAL PS (HRA),CONSTRUCTION FEES  - EXTERNAL,5902271360
06.10.2017,HOUSING HRA,BELL PHILLIPS ARCHITECTS LTD,"6,455.00",CAPITAL PS (REGEN),CONSTRUCTION FEES,5902271367
06.10.2017,HOUSING HRA,BELL PHILLIPS ARCHITECTS LTD,"6,455.00",CAPITAL PS (REGEN),CONSTRUCTION FEES,5902271367
06.10.2017,HOUSING HRA,THE LEARNING CROWD,325,CAPITAL PS (REGEN),CONSTRUCTION FEES  - EXTERNAL,5902271220
06.10.2017,LEISURE DIRECTORATE,EIGHT POINT EIGHT LTD T/A STANDARD 8,"1,433.68",ADMINISTRATION,HIRE OF ROOMS/HALLS,5902271226
06.10.2017,LEISURE DIRECTORATE,TRAVIS PERKINS,"2,087.72",DULWICH AREA TEAM,OTHER R&M,5902271279
06.10.2017,LEISURE DIRECTORATE,DENTONS UKMEA LLP,255,HOMERSTALL ROAD SPORTS GROUND,PROFESSIONAL FEES,5902271290
06.10.2017,LEISURE DIRECTORATE,DENTONS UKMEA LLP,"103,491.75",HOMERSTALL ROAD SPORTS GROUND,PROFESSIONAL FEES,5902271290
06.10.2017,MODERNISATION HGF,SODEXHO PASS LTD,767.28,CHILDCARE VOUCHERS,OTHER EMPLOYEE EXPENSES,5902271240
06.10.2017,MODERNISATION HGF,SODEXHO PASS LTD,"25,576.00",CHILDCARE VOUCHERS,OTHER EMPLOYEE EXPENSES,5902271240
06.10.2017,MODERNISATION HGF,MORNING LANE ASSOCIATES LTD,"22,700.00",CSW - PROFESSIONAL DEVELOPMENT,TRAINING,5902271190
06.10.2017,MODERNISATION HGF,INSTITUTE OF LEADERSHIP,"1,452.00",ILM COSTS,TRAINING,5902271227
06.10.2017,MODERNISATION HGF,ROSEMARY POTTS,"1,425.00",OCCUPATIONAL ASSESSMENT,CONSULTANTS SERVICES,5902271178
06.10.2017,MODERNISATION HGF,KIER FACILITIES SERVICES LTD,"64,895.04",PLANNED FM SERVICES BY KIER,BUILDING R&M,5902270839
06.10.2017,MODERNISATION HGF,KIER FACILITIES SERVICES LTD,"129,790.08",PLANNED FM SERVICES BY KIER,BUILDING R&M,5902270837
06.10.2017,PECKHAM AND NUNHEAD COMMUNITY COUNCIL,FRIENDS OF BELHAM,"2,500.00",,GRANT,CHEQUE PAYMENT
06.10.2017,PUBLIC HEALTH,COLCHESTER HOSPITAL UNIVERSITY NHS,308.45,SEXUAL HEALTH - STI,EXTERNAL AGENCIES AND BODIES,5902271319
06.10.2017,REGENERATION,AECOM  INFRASTRUCTURE & ENVIRONMENT,"6,550.50",MASTER PLAN-H/WAY & TRANS INTERCHANGE,PROFESSIONAL FEES,5902271203
06.10.2017,RESIDENT SERVICES,VIBRANT ENERGY MATTERS LTD,"1,122.40",ENERGY MANAGEMENT,PROFESSIONAL FEES,5902271189
06.10.2017,RESIDENT SERVICES,CAMPBELL TICKELL LTD,"9,750.00",HOUSING STRATEGY (HRA),CONSULTANTS SERVICES,5902270182
06.10.2017,RESIDENT SERVICES,S A PROPERTY MANAGEMENT LTD,370,TA PLACEMENTS,RENTS,5902271211
06.10.2017,SOUTHWARK BUILDING SERVICES,TRAVIS PERKINS,"-1,947.85",STORES/LOGISTICS,MATERIALS,5902271281
06.10.2017,SOUTHWARK BUILDING SERVICES,TRAVIS PERKINS,-305.4,STORES/LOGISTICS,MATERIALS,5902271282
06.10.2017,SOUTHWARK BUILDING SERVICES,TRAVIS PERKINS,305.4,STORES/LOGISTICS,MATERIALS,5902271279
06.10.2017,SOUTHWARK BUILDING SERVICES,TRAVIS PERKINS,"1,947.85",STORES/LOGISTICS,MATERIALS,5902271279
07.10.2017,ADULT SOCIAL CARE,STONEGROVE LIMITED,"2,151.00",BRANDON TRUST,BUILDING R&M,5902270764
07.10.2017,ADULT SOCIAL CARE,SOUTH LONDON & MAUDSLEY HOSPITAL,"1,244.56",DIR OF ASC,PROFESSIONAL FEES,5902270810
07.10.2017,ADULT SOCIAL CARE,STEPHEN DOWN,428.8,SAFEGUARDING TEAM,OTHER CONTRACTORS,5902270766
07.10.2017,CHIEF EXECUTIVE,CONWAY AECOM LTD,"7,843.26",CAPITAL PS (REGEN),CONSTRUCTION MAIN CONTRACT -CERTIFICATED,5902270840
07.10.2017,COMMUNITIES,ALWAYZ KREATIVE,370,COMMUNITY COUNCILS TEAM,COMMS & COMPUTING CONTRACT CHARGES,5902271000
07.10.2017,ENVIRONMENT AND LEISURE,LAND USE CONSULTANTS,"1,705.00",CAPITAL PS (LEISURE),CONSTRUCTION FEES  - EXTERNAL,5902270797
07.10.2017,ENVIRONMENT DIRECTORATE,PUBLIC  ANALYST SCIENTIFIC SERVICES,435,FOOD SAFETY,PROFESSIONAL FEES,5902270541
07.10.2017,HOUSING,BCS (ELECTRICAL & BUILDING) LTD,"71,526.22",BCS,MANUAL CREDITORS,5902270508
07.10.2017,HOUSING HRA,ROBINSON LOW FRANCIS LLP,379.56,CAPITAL PS (HRA),CONSTRUCTION FEES  - EXTERNAL,5902271099
07.10.2017,LEISURE DIRECTORATE,JRB ENTERPRISE LTD,"3,845.00",PARKS MANAGEMENT,MATERIALS,5902270956
07.10.2017,MODERNISATION HGF,INTERSERVE (FACILITIES MANAGEMENT),"435,447.21",FM SERVICES BY INTERSERVE,INTEGRATED FACILITIES MANAGEMENT CONTRACT,5902270438
08.10.2017,ADULT SOCIAL CARE,M C TECHNICIANS LTD,360,SOUTHWARK RESOURCE CENTRE,EQUIPMENT PURCHASE & REPAIR,5902271273
08.10.2017,ADULT SOCIAL CARE,M C TECHNICIANS LTD,360,SOUTHWARK RESOURCE CENTRE,EQUIPMENT PURCHASE & REPAIR,5902271274
08.10.2017,ADULT SOCIAL CARE,M C TECHNICIANS LTD,360,SOUTHWARK RESOURCE CENTRE,EQUIPMENT PURCHASE & REPAIR,5902271275
08.10.2017,CENTRAL FUNCTIONS,TEAL CONSULTING LTD,"1,728.40",OPERATIONAL TEAM,OTHER CONTRACTORS,5902270425
08.10.2017,CHIEF EXECUTIVE,FS ENTERTAINMENTS  LTD,609,CAPITAL PS (REGEN),CONSTRUCTION FEES,5902270320
08.10.2017,CHIEF EXECUTIVE,CONWAY AECOM LTD,"4,426.60",CAPITAL PS (REGEN),CONSTR'N SUB CONTRACT - NON CERTIFICATED,5902270548
08.10.2017,CHILDREN AND ADULT,NUMBER 10 INTERIM LTD,"3,412.50",CAPITAL PS (STRAT SERV),ICT ACQUISITION FEES,5902270429
08.10.2017,ENVIRONMENT DIRECTORATE,DAWSON RENTALS SWEEPERS,"1,001.41",COMMERCIAL VEH CTRL A/C,HIRED VEHICLES,5902270962
08.10.2017,ENVIRONMENT DIRECTORATE,ST JOHN AMBULANCE KENT,380,MANAGEMENT TEAM,TRAINING,5902270435
08.10.2017,F & C S EXCLUDING CORPORATE BUDGETS,RSM RISK ASSURANCE SERVICES LLP,"15,670.00",FINANCE DIRECTOR,PROFESSIONAL FEES,5902271182
08.10.2017,MODERNISATION HGF,INTERSERVE (FACILITIES MANAGEMENT),"44,838.18",FM SERVICES BY INTERSERVE,BUILDING R&M,5902270432
09.10.2017,ADULT SOCIAL CARE,VEOLIA ES (UK)LTD,499.74,FRED FRANCIS CENTRE,PREMISES CLEANING,5902271431
09.10.2017,ADULT SOCIAL CARE,KEYRING-LIVING SUPPORT NETWORKS LTD,254.08,LD LTS 18-64,SUPPORTED LIVING,2102729702
09.10.2017,ADULT SOCIAL CARE,KEYRING-LIVING SUPPORT NETWORKS LTD,381.12,LD LTS 18-64,SUPPORTED LIVING,2102729704
09.10.2017,ADULT SOCIAL CARE,KEYRING-LIVING SUPPORT NETWORKS LTD,603.44,LD LTS 18-64,SUPPORTED LIVING,2102729703
09.10.2017,ADULT SOCIAL CARE,BEDE CAFE PROJECT,"1,488.00",LD LTS 18-64,DAYCARE,2102729602
09.10.2017,ADULT SOCIAL CARE,CARE O LINE,825,LD LTS 18-64,HOMECARE - SPOT,2102729651
09.10.2017,ADULT SOCIAL CARE,CARE O LINE,825,LD LTS 18-64,HOMECARE - SPOT,2102729655
09.10.2017,ADULT SOCIAL CARE,CARE O LINE,825,LD LTS 18-64,HOMECARE - SPOT,2102729656
09.10.2017,ADULT SOCIAL CARE,CARE O LINE,990,LD LTS 18-64,HOMECARE - SPOT,2102729652
09.10.2017,ADULT SOCIAL CARE,SURREY DOCKS FARM PROVIDENT SOCIETY,720,LD LTS 18-64,DAYCARE,2102729601
09.10.2017,ADULT SOCIAL CARE,LAMBETH MENCAP,"1,447.65",LD LTS 18-64,SUPPORTED LIVING,2102729585
09.10.2017,ADULT SOCIAL CARE,HEALTHCARE & TRANSPORT SERVICES,711,LD LTS 18-64,CLIENT TRANSPORT,2102729586
09.10.2017,ADULT SOCIAL CARE,HEALTHCARE & TRANSPORT SERVICES,711,LD LTS 18-64,CLIENT TRANSPORT,2102729591
09.10.2017,ADULT SOCIAL CARE,ACT TOO LTD,600,LD LTS 18-64,DAYCARE,2102729714
09.10.2017,ADULT SOCIAL CARE,PEOPLE PLUS,"2,662.50",LD LTS 18-64,PAYMENTS TO CLIENTS (DIRECT PAYMENTS),2102729614
09.10.2017,ADULT SOCIAL CARE,THE NEW SHOOTS,300,LD LTS 18-64,DAYCARE,2102729701
09.10.2017,ADULT SOCIAL CARE,HEALTH PERSONNEL LTD,"3,676.00",LD LTS 18-64,RESIDENTIAL CARE,2102729712
09.10.2017,ADULT SOCIAL CARE,TRUECARE HAVEN SUPPORT LTD,"1,370.00",LD LTS 18-64,HOMECARE - SPOT,2102729593
09.10.2017,ADULT SOCIAL CARE,METRO HOMECARE LTD,675.71,MEM LTS 65+,HOMECARE - SPOT,2102729727
09.10.2017,ADULT SOCIAL CARE,METRO HOMECARE LTD,799.82,MEM LTS 65+,HOMECARE - SPOT,2102729692
09.10.2017,ADULT SOCIAL CARE,LONDON CARE LTD,526.72,MH LTS 18-64,HOMECARE - C&V,2102729753
09.10.2017,ADULT SOCIAL CARE,LONDON CARE LTD,526.72,MH LTS 18-64,HOMECARE - C&V,2102729754
09.10.2017,ADULT SOCIAL CARE,LONDON CARE LTD,526.72,MH LTS 18-64,HOMECARE - C&V,2102729755
09.10.2017,ADULT SOCIAL CARE,LONDON CARE LTD,526.72,MH LTS 18-64,HOMECARE - C&V,2102729756
09.10.2017,ADULT SOCIAL CARE,LONDON CARE LTD,538,MH LTS 18-64,HOMECARE - C&V,2102729750
09.10.2017,ADULT SOCIAL CARE,LONDON CARE LTD,538,MH LTS 18-64,HOMECARE - C&V,2102729751
09.10.2017,ADULT SOCIAL CARE,LONDON CARE LTD,538,MH LTS 18-64,HOMECARE - C&V,2102729752
09.10.2017,ADULT SOCIAL CARE,LONDON CARE LTD,543.18,MH LTS 18-64,HOMECARE - C&V,2102729757
09.10.2017,ADULT SOCIAL CARE,PEOPLE PLUS,250.32,MH LTS 18-64,PAYMENTS TO CLIENTS (DIRECT PAYMENTS),2102729612
09.10.2017,ADULT SOCIAL CARE,PEOPLE PLUS,724.16,MH LTS 18-64,PAYMENTS TO CLIENTS (DIRECT PAYMENTS),2102729615
09.10.2017,ADULT SOCIAL CARE,PEOPLE PLUS,938.03,MH LTS 18-64,PAYMENTS TO CLIENTS (DIRECT PAYMENTS),2102729611
09.10.2017,ADULT SOCIAL CARE,CLOUDS END SE,600,MH LTS 18-64,EXTERNAL AGENCIES AND BODIES,2102729653
09.10.2017,ADULT SOCIAL CARE,CLOUDS END SE,600,MH LTS 18-64,EXTERNAL AGENCIES AND BODIES,2102729654
09.10.2017,ADULT SOCIAL CARE,CLOUDS END SE,750,MH LTS 18-64,EXTERNAL AGENCIES AND BODIES,2102729707
09.10.2017,ADULT SOCIAL CARE,METRO HOMECARE LTD,482.65,MH LTS 65+,HOMECARE - SPOT,2102729696
09.10.2017,ADULT SOCIAL CARE,MEDACS HOMECARE,"2,106.09",PHY LTS 18-64,HOMECARE - SPOT,2102729742
09.10.2017,ADULT SOCIAL CARE,MEDACS HOMECARE,621.35,PHY LTS 18-64,SUPPORTED LIVING,2102729607
09.10.2017,ADULT SOCIAL CARE,LIFECARE CONSULTING LTD,482.64,PHY LTS 18-64,HOMECARE - SPOT,2102729583
09.10.2017,ADULT SOCIAL CARE,LIFECARE CONSULTING LTD,482.64,PHY LTS 18-64,HOMECARE - SPOT,2102729587
09.10.2017,ADULT SOCIAL CARE,LIFECARE CONSULTING LTD,482.64,PHY LTS 18-64,HOMECARE - SPOT,2102729590
09.10.2017,ADULT SOCIAL CARE,LIFECARE CONSULTING LTD,565.38,PHY LTS 18-64,HOMECARE - SPOT,2102729588
09.10.2017,ADULT SOCIAL CARE,THE RIVERSIDE GROUP LTD,"3,458.28",PHY LTS 18-64,EXTERNAL AGENCIES AND BODIES,2102729608
09.10.2017,ADULT SOCIAL CARE,THE RIVERSIDE GROUP LTD,"3,617.25",PHY LTS 18-64,EXTERNAL AGENCIES AND BODIES,2102729597
09.10.2017,ADULT SOCIAL CARE,METRO HOMECARE LTD,344.75,PHY LTS 18-64,HOMECARE - C&V,2102729623
09.10.2017,ADULT SOCIAL CARE,METRO HOMECARE LTD,372.33,PHY LTS 18-64,HOMECARE - SPOT,2102729644
09.10.2017,ADULT SOCIAL CARE,METRO HOMECARE LTD,379.23,PHY LTS 18-64,HOMECARE - SPOT,2102729625
09.10.2017,ADULT SOCIAL CARE,METRO HOMECARE LTD,455.07,PHY LTS 18-64,HOMECARE - SPOT,2102729729
09.10.2017,ADULT SOCIAL CARE,METRO HOMECARE LTD,482.65,PHY LTS 18-64,HOMECARE - SPOT,2102729659
09.10.2017,ADULT SOCIAL CARE,METRO HOMECARE LTD,586.08,PHY LTS 18-64,HOMECARE - SPOT,2102729626
09.10.2017,ADULT SOCIAL CARE,METRO HOMECARE LTD,"1,089.41",PHY LTS 18-64,HOMECARE - SPOT,2102729671
09.10.2017,ADULT SOCIAL CARE,METRO HOMECARE LTD,"1,351.42",PHY LTS 18-64,HOMECARE - SPOT,2102729645
09.10.2017,ADULT SOCIAL CARE,LAMBETH CHINESE COMMUNITY ASSOCIATION,435.55,PHY LTS 65+,HOMECARE - SPOT,2102729762
09.10.2017,ADULT SOCIAL CARE,LAMBETH CHINESE COMMUNITY ASSOCIATION,484.73,PHY LTS 65+,HOMECARE - SPOT,2102729767
09.10.2017,ADULT SOCIAL CARE,LAMBETH CHINESE COMMUNITY ASSOCIATION,646.3,PHY LTS 65+,HOMECARE - SPOT,2102729760
09.10.2017,ADULT SOCIAL CARE,LAMBETH CHINESE COMMUNITY ASSOCIATION,800.85,PHY LTS 65+,HOMECARE - SPOT,2102729764
09.10.2017,ADULT SOCIAL CARE,LAMBETH CHINESE COMMUNITY ASSOCIATION,800.85,PHY LTS 65+,HOMECARE - SPOT,2102729766
09.10.2017,ADULT SOCIAL CARE,LAMBETH CHINESE COMMUNITY ASSOCIATION,983.5,PHY LTS 65+,HOMECARE - SPOT,2102729761
09.10.2017,ADULT SOCIAL CARE,LAMBETH CHINESE COMMUNITY ASSOCIATION,"2,360.40",PHY LTS 65+,HOMECARE - SPOT,2102729765
09.10.2017,ADULT SOCIAL CARE,MEDACS HOMECARE,552.71,PHY LTS 65+,HOMECARE - SPOT,2102729740
09.10.2017,ADULT SOCIAL CARE,MEDACS HOMECARE,989.33,PHY LTS 65+,HOMECARE - SPOT,2102729746
09.10.2017,ADULT SOCIAL CARE,INDO-CHINESE ELDERLY SERVICES PROJECT,399.6,PHY LTS 65+,DAYCARE,2102729758
09.10.2017,ADULT SOCIAL CARE,FIRST CHOICE SOCIAL CARE & HOUSING,418.64,PHY LTS 65+,HOMECARE - SPOT,2102729594
09.10.2017,ADULT SOCIAL CARE,ST GEORGES NURSING HOME LTD,-620.2,PHY LTS 65+,COSTS RECOVERED,2102726866
09.10.2017,ADULT SOCIAL CARE,ST GEORGES NURSING HOME LTD,-522.8,PHY LTS 65+,"MAND STATUTORY CHARGES, NURSING",2102726864
09.10.2017,ADULT SOCIAL CARE,ST GEORGES NURSING HOME LTD,"3,015.00",PHY LTS 65+,NURSING PLACEMENTS FEES,2102726865
09.10.2017,ADULT SOCIAL CARE,ST GEORGES NURSING HOME LTD,620.2,PHY LTS 65+,RECOVERABLE COSTS INCL. HEALTH,2102726867
09.10.2017,ADULT SOCIAL CARE,METRO HOMECARE LTD,-298.37,PHY LTS 65+,HOMECARE - C&V,2102729617
09.10.2017,ADULT SOCIAL CARE,METRO HOMECARE LTD,268.91,PHY LTS 65+,HOMECARE - C&V,2102729687
09.10.2017,ADULT SOCIAL CARE,METRO HOMECARE LTD,317.17,PHY LTS 65+,HOMECARE - C&V,2102729675
09.10.2017,ADULT SOCIAL CARE,METRO HOMECARE LTD,358.54,PHY LTS 65+,HOMECARE - C&V,2102729662
09.10.2017,ADULT SOCIAL CARE,METRO HOMECARE LTD,365.44,PHY LTS 65+,HOMECARE - C&V,2102729672
09.10.2017,ADULT SOCIAL CARE,METRO HOMECARE LTD,"1,061.83",PHY LTS 65+,HOMECARE - C&V,2102729621
09.10.2017,ADULT SOCIAL CARE,METRO HOMECARE LTD,"1,323.84",PHY LTS 65+,HOMECARE - C&V,2102729628
09.10.2017,ADULT SOCIAL CARE,METRO HOMECARE LTD,275.8,PHY LTS 65+,HOMECARE - SPOT,2102729713
09.10.2017,ADULT SOCIAL CARE,METRO HOMECARE LTD,289.59,PHY LTS 65+,HOMECARE - SPOT,2102729635
09.10.2017,ADULT SOCIAL CARE,METRO HOMECARE LTD,303.38,PHY LTS 65+,HOMECARE - SPOT,2102729728
09.10.2017,ADULT SOCIAL CARE,METRO HOMECARE LTD,310.28,PHY LTS 65+,HOMECARE - SPOT,2102729618
09.10.2017,ADULT SOCIAL CARE,METRO HOMECARE LTD,310.28,PHY LTS 65+,HOMECARE - SPOT,2102729697
09.10.2017,ADULT SOCIAL CARE,METRO HOMECARE LTD,317.17,PHY LTS 65+,HOMECARE - SPOT,2102729717
09.10.2017,ADULT SOCIAL CARE,METRO HOMECARE LTD,337.86,PHY LTS 65+,HOMECARE - SPOT,2102729622
09.10.2017,ADULT SOCIAL CARE,METRO HOMECARE LTD,337.86,PHY LTS 65+,HOMECARE - SPOT,2102729642
09.10.2017,ADULT SOCIAL CARE,METRO HOMECARE LTD,337.86,PHY LTS 65+,HOMECARE - SPOT,2102729657
09.10.2017,ADULT SOCIAL CARE,METRO HOMECARE LTD,337.86,PHY LTS 65+,HOMECARE - SPOT,2102729676
09.10.2017,ADULT SOCIAL CARE,METRO HOMECARE LTD,358.54,PHY LTS 65+,HOMECARE - SPOT,2102729665
09.10.2017,ADULT SOCIAL CARE,METRO HOMECARE LTD,372.33,PHY LTS 65+,HOMECARE - SPOT,2102729647
09.10.2017,ADULT SOCIAL CARE,METRO HOMECARE LTD,379.23,PHY LTS 65+,HOMECARE - SPOT,2102729620
09.10.2017,ADULT SOCIAL CARE,METRO HOMECARE LTD,386.12,PHY LTS 65+,HOMECARE - SPOT,2102729641
09.10.2017,ADULT SOCIAL CARE,METRO HOMECARE LTD,386.12,PHY LTS 65+,HOMECARE - SPOT,2102729698
09.10.2017,ADULT SOCIAL CARE,METRO HOMECARE LTD,393.02,PHY LTS 65+,HOMECARE - SPOT,2102729634
09.10.2017,ADULT SOCIAL CARE,METRO HOMECARE LTD,406.81,PHY LTS 65+,HOMECARE - SPOT,2102729627
09.10.2017,ADULT SOCIAL CARE,METRO HOMECARE LTD,406.81,PHY LTS 65+,HOMECARE - SPOT,2102729682
09.10.2017,ADULT SOCIAL CARE,METRO HOMECARE LTD,434.39,PHY LTS 65+,HOMECARE - SPOT,2102729650
09.10.2017,ADULT SOCIAL CARE,METRO HOMECARE LTD,448.18,PHY LTS 65+,HOMECARE - SPOT,2102729649
09.10.2017,ADULT SOCIAL CARE,METRO HOMECARE LTD,448.18,PHY LTS 65+,HOMECARE - SPOT,2102729731
09.10.2017,ADULT SOCIAL CARE,METRO HOMECARE LTD,461.97,PHY LTS 65+,HOMECARE - SPOT,2102729632
09.10.2017,ADULT SOCIAL CARE,METRO HOMECARE LTD,503.34,PHY LTS 65+,HOMECARE - SPOT,2102729640
09.10.2017,ADULT SOCIAL CARE,METRO HOMECARE LTD,503.34,PHY LTS 65+,HOMECARE - SPOT,2102729658
09.10.2017,ADULT SOCIAL CARE,METRO HOMECARE LTD,503.34,PHY LTS 65+,HOMECARE - SPOT,2102729666
09.10.2017,ADULT SOCIAL CARE,METRO HOMECARE LTD,503.34,PHY LTS 65+,HOMECARE - SPOT,2102729668
09.10.2017,ADULT SOCIAL CARE,METRO HOMECARE LTD,551.6,PHY LTS 65+,HOMECARE - SPOT,2102729624
09.10.2017,ADULT SOCIAL CARE,METRO HOMECARE LTD,551.6,PHY LTS 65+,HOMECARE - SPOT,2102729636
09.10.2017,ADULT SOCIAL CARE,METRO HOMECARE LTD,558.5,PHY LTS 65+,HOMECARE - SPOT,2102729685
09.10.2017,ADULT SOCIAL CARE,METRO HOMECARE LTD,579.18,PHY LTS 65+,HOMECARE - SPOT,2102729683
09.10.2017,ADULT SOCIAL CARE,METRO HOMECARE LTD,596.7,PHY LTS 65+,HOMECARE - SPOT,2102729616
09.10.2017,ADULT SOCIAL CARE,METRO HOMECARE LTD,834.3,PHY LTS 65+,HOMECARE - SPOT,2102729733
09.10.2017,ADULT SOCIAL CARE,METRO HOMECARE LTD,868.77,PHY LTS 65+,HOMECARE - SPOT,2102729724
09.10.2017,ADULT SOCIAL CARE,METRO HOMECARE LTD,923.93,PHY LTS 65+,HOMECARE - SPOT,2102729680
09.10.2017,ADULT SOCIAL CARE,METRO HOMECARE LTD,965.3,PHY LTS 65+,HOMECARE - SPOT,2102729664
09.10.2017,ADULT SOCIAL CARE,METRO HOMECARE LTD,"1,048.04",PHY LTS 65+,HOMECARE - SPOT,2102729694
09.10.2017,ADULT SOCIAL CARE,METRO HOMECARE LTD,"1,061.83",PHY LTS 65+,HOMECARE - SPOT,2102729669
09.10.2017,ADULT SOCIAL CARE,METRO HOMECARE LTD,"1,158.36",PHY LTS 65+,HOMECARE - SPOT,2102729734
09.10.2017,ADULT SOCIAL CARE,METRO HOMECARE LTD,"1,179.05",PHY LTS 65+,HOMECARE - SPOT,2102729691
09.10.2017,ADULT SOCIAL CARE,METRO HOMECARE LTD,"1,185.94",PHY LTS 65+,HOMECARE - SPOT,2102729679
09.10.2017,ADULT SOCIAL CARE,METRO HOMECARE LTD,"1,572.06",PHY LTS 65+,HOMECARE - SPOT,2102729630
09.10.2017,ADULT SOCIAL CARE,METRO HOMECARE LTD,"1,627.22",PHY LTS 65+,HOMECARE - SPOT,2102729673
09.10.2017,ADULT SOCIAL CARE,METRO HOMECARE LTD,"1,709.96",PHY LTS 65+,HOMECARE - SPOT,2102729677
09.10.2017,ADULT SOCIAL CARE,PROFAD CARE AGENCY,"3,157.92",PHY LTS 65+,HOMECARE - SPOT,2102729763
09.10.2017,ADULT SOCIAL CARE,SURREY DOCKS FARM PROVIDENT SOCIETY,500,SOCIAL ISOLATION,DAYCARE,2102729600
09.10.2017,ADULT SOCIAL CARE,HAVELOCK COURT (BUPA CARE),"1,100.00",SOCIAL ISOLATION,NURSING PLACEMENTS FEES,2102729736
09.10.2017,ADULT SOCIAL CARE,METRO HOMECARE LTD,296.49,SOCIAL ISOLATION,HOMECARE - SPOT,2102729643
09.10.2017,ADULT SOCIAL CARE,NOTTINGHAM REHAB LTD,470.97,SOUTHWARK RESOURCE CENTRE,EQUIPMENT PURCHASE & REPAIR,5902271483
09.10.2017,ADULT SOCIAL CARE,ST GEORGES NURSING HOME LTD,-620.2,SUB LTS 18-64,COSTS RECOVERED,2102727001
09.10.2017,ADULT SOCIAL CARE,ST GEORGES NURSING HOME LTD,"3,640.00",SUB LTS 18-64,NURSING PLACEMENTS FEES,2102727002
09.10.2017,ADULT SOCIAL CARE,METRO HOMECARE LTD,413.7,SUB LTS 18-64,HOMECARE - SPOT,2102729684
09.10.2017,ASSET MANAGEMENT,MERLIN LAZER LTD,338,DISREPAIR,BUILDING R&M,5902271404
09.10.2017,CENTRAL FUNCTIONS,KENT COUNTY COUNCIL - LASER,554.5,HEATING ACCOUNT,ELECTRICITY,2102729563
09.10.2017,CENTRAL FUNCTIONS,KENT COUNTY COUNCIL - LASER,820.29,HEATING ACCOUNT,ELECTRICITY,2102729559
09.10.2017,CENTRAL FUNCTIONS,KENT COUNTY COUNCIL - LASER,"1,328.81",HEATING ACCOUNT,ELECTRICITY,2102729561
09.10.2017,CENTRAL FUNCTIONS,KENT COUNTY COUNCIL - LASER,"1,469.84",HEATING ACCOUNT,ELECTRICITY,2102729564
09.10.2017,CENTRAL FUNCTIONS,KENT COUNTY COUNCIL - LASER,460.52,HEATING ACCOUNT,GAS,2102729562
09.10.2017,CENTRAL FUNCTIONS,KENT COUNTY COUNCIL - LASER,531.03,HEATING ACCOUNT,GAS,2102729558
09.10.2017,CENTRAL FUNCTIONS,DAWSON ESTATES LTD,306.63,HOME OWNERSHIP INCOME,HOUSING RESIDENTIAL RENTS,5902271413
09.10.2017,CENTRAL FUNCTIONS,MJE PROPERTIES LTD,287.73,HOME OWNERSHIP INCOME,HOUSING RESIDENTIAL RENTS,5902270959
09.10.2017,CHIEF EXECUTIVE,CONWAY AECOM LTD,"2,973.57",CAPITAL PS (REGEN),CONSTR'N SUB CONTRACT - NON CERTIFICATED,5902271420
09.10.2017,CHIEF EXECUTIVE,CONWAY AECOM LTD,"5,934.30",CAPITAL PS (REGEN),CONSTR'N SUB CONTRACT - NON CERTIFICATED,5902271418
09.10.2017,CHIEF EXECUTIVE'S OFFICE,HANLON COMPUTER SYSTEM LTD,"1,295.00",CHIEF EXEC'S OFFICE,COMPUTER MAINTENANCE,5902271485
09.10.2017,CHILDREN AND ADULT,SHARPE PRITCHARD LLP,"1,470.00",CAPITAL PS (EDUCATION),CONSTRUCTION,5902271441
09.10.2017,CHILDREN AND ADULT,SHARPE PRITCHARD LLP,"1,876.00",CAPITAL PS (EDUCATION),CONSTRUCTION,5902271442
09.10.2017,CHILDREN AND ADULT,FAITHFUL & GOULD,"17,945.85",CAPITAL PS (EDUCATION),CONSTRUCTION FEES  - EXTERNAL,5902271479
09.10.2017,CHILDREN AND ADULT,WERNICK REFURBISHED BUILDINGS LTD,"7,864.28",CAPITAL PS (EDUCATION),CONSTRUCTION MAIN CONTRACT -CERTIFICATED,2102728496
09.10.2017,CHILDREN AND ADULT,STANSONS,"7,186.82",CAPITAL PS (SOC SERV),CONSTRUCTION FEES,5902271293
09.10.2017,CHILDREN'S SERVICES,TY CONNECTIONS LTD,"17,913.96",FAMILY ASSESSMENTS,RESIDENTIAL CARE,5902271520
09.10.2017,CHILDREN'S SERVICES,ROYAL BOROUGH OF GREENWICH,"6,342.80",HOME 2 SCHOOL TRANSPORT,RECOUPMENT,5902271477
09.10.2017,CHILDREN'S SERVICES,REDACTED PERSONAL DATA,290.9,HOME 2 SCHOOL TRANSPORT,OTHER PAYMENTS FOR CLIENTS,5902271428
09.10.2017,CHILDREN'S SERVICES,ACHIEVING FOR CHILDREN,"3,171.70",HOME 2 SCHOOL TRANSPORT,RECOUPMENT,5902271380
09.10.2017,CHILDREN'S SERVICES,REDACTED PERSONAL DATA,"2,805.00",HOME 2 SCHOOL TRANSPORT,CAR MILEAGE EXPENSES,5902270396
09.10.2017,CHILDREN'S SERVICES,REDACTED PERSONAL DATA,523.71,HOME 2 SCHOOL TRANSPORT,PUBLIC TRANSPORT,5902271417
09.10.2017,CHILDREN'S SERVICES,DRUMHEAD LTD,800,LEA MUSIC SERVICE(310) - 5018566,CONSULTANTS SERVICES,5902271400
09.10.2017,CHILDREN'S SERVICES,DRUMHEAD LTD,"26,600.00",LEA MUSIC SERVICE(310) - 5018566,CONSULTANTS SERVICES,5902271400
09.10.2017,CHILDREN'S SERVICES,TRINITY COLLEGE LONDON,552.12,LEA MUSIC SERVICE(310) - 5018566,CONSULTANTS SERVICES,5902271402
09.10.2017,CHILDREN'S SERVICES,PEOPLE PLUS,"1,167.00",PLACEMENTS FOR CHILDREN WITH SPEC NEEDS,PAYMENTS TO CLIENTS (DIRECT PAYMENTS),2102729595
09.10.2017,CHILDREN'S SERVICES,IMPERIAL COLLEGE LONDON,"9,250.00",SCHOLARSHIPS AND WRL,EXTERNAL AGENCIES AND BODIES,5902271506
09.10.2017,CHILDREN'S SERVICES,IMPERIAL COLLEGE LONDON,"9,250.00",SCHOLARSHIPS AND WRL,EXTERNAL AGENCIES AND BODIES,5902271507
09.10.2017,CHILDREN'S SERVICES,UNIVERSITY OF BRISTOL,"9,000.00",SCHOLARSHIPS AND WRL,EXTERNAL AGENCIES AND BODIES,5902271509
09.10.2017,CHILDREN'S SERVICES,UNIVERSITY OF SHEFFIELD,"9,000.00",SCHOLARSHIPS AND WRL,EXTERNAL AGENCIES AND BODIES,5902271482
09.10.2017,CHILDREN'S SERVICES,TEAM TEACH LTD,645,SUMMERHOUSE - EX416 - 5015232,TRAINING,5902271489
09.10.2017,CHILDREN'S SERVICES,CHARTWELLS,490,SUMMERHOUSE - EX416 - 5015232,CATERING MATERIALS & SUPPLIES,5902271499
09.10.2017,CHILDREN'S SERVICES,CHARTWELLS,"1,223.20",SUMMERHOUSE - EX416 - 5015232,CATERING MATERIALS & SUPPLIES,5902271502
09.10.2017,CHILDREN'S SERVICES,VENTURE HOUSING (LONDON) LTD,540,TEMPORARY ACCOMMODATION,EXTERNAL AGENCIES AND BODIES,5902271478
09.10.2017,CHILDREN'S SERVICES,REDACTED PERSONAL DATA,300,UASC FURTHER EDUCATION SUPPORT,CLIENT TRANSPORT,5902271426
09.10.2017,CHILDREN'S SERVICES,REDACTED PERSONAL DATA,300,UASC FURTHER EDUCATION SUPPORT,CLIENT TRANSPORT,5902271427
09.10.2017,CHILDREN'S SERVICES,REDACTED PERSONAL DATA,300,UASC FURTHER EDUCATION SUPPORT,CLIENT TRANSPORT,5902271425
09.10.2017,COMMUNITIES,HOMELY HOUSING LTD,"60,412.54",NO RECOURSE TO PUBLIC FUNDS,ACCOMMODATION CHARGES,5902271424
09.10.2017,COMMUNITIES,HOMELY HOUSING LTD,"3,381.04",NO RECOURSE TO PUBLIC FUNDS,OTHER PAYMENTS FOR CLIENTS,5902271398
09.10.2017,COMMUNITIES,HOMELY HOUSING LTD,"6,072.75",NO RECOURSE TO PUBLIC FUNDS,OTHER PAYMENTS FOR CLIENTS,5902271397
09.10.2017,COMMUNITIES,CROWN HOUSING LTD,"10,530.00",NO RECOURSE TO PUBLIC FUNDS,ACCOMMODATION CHARGES,5902271394
09.10.2017,COMMUNITIES,CAMBERWELL ST MICHAEL & ALL ANGELS,500,VCS GRANTS,OTHER CONTRACTORS,5902271381
09.10.2017,CUSTOMER EXPERIENCE HGF,NORTHGATE PUBLIC SERVICES (UK) LTD,976.62,BLUE BADGES,MATERIALS,5902271497
09.10.2017,CUSTOMER EXPERIENCE HGF,SHUTTLEWORTH (UK) LTD,"51,417.00",NIGHTLY TA (NSC),EXTERNAL AGENCIES AND BODIES,5902271508
09.10.2017,CUSTOMER EXPERIENCE HGF,SOLACE WOMEN'S AID,"6,316.00",NIGHTLY TA (NSC),EXTERNAL AGENCIES AND BODIES,5902271474
09.10.2017,ENVIRONMENT AND LEISURE,BRESSINGHAM INVESTMENTS LTD,"3,010.00",CAPITAL PS (LEISURE),CONSTRUCTION FEES - INTERNAL,5902270711
09.10.2017,ENVIRONMENT AND LEISURE,APR SERVICES LTD,"1,475.00",CAPITAL PS (LEISURE),CONSTRUCTION FEES  - EXTERNAL,5902270552
09.10.2017,ENVIRONMENT AND LEISURE,ST JOHNS & ST CLEMENTS CE SCHOOL,"1,748.00",CAPITAL PS (LEISURE),CAPITAL GRANTS,5902271516
09.10.2017,ENVIRONMENT AND SOCIAL REGENERATION,EDWARDES BROS (DULWICH) LTD,762.24,STORES,CREDITORS -GR/IR CLEARING ACCOUNT,5902271512
09.10.2017,ENVIRONMENT DIRECTORATE,TASK  ENFORCEMENT LTD,278,CAR LEASING CTRL A/C,PARKING CHARGES,5902271451
09.10.2017,ENVIRONMENT DIRECTORATE,LOOKERS LEASING LTD,360.42,CAR LEASING CTRL A/C,VEHICLE LEASING CHARGES,5902271383
09.10.2017,ENVIRONMENT DIRECTORATE,LOOKERS LEASING LTD,368.16,CAR LEASING CTRL A/C,VEHICLE LEASING CHARGES,5902271383
09.10.2017,ENVIRONMENT DIRECTORATE,DAIMLER FLEET MANAGEMENT,418.56,CAR LEASING CTRL A/C,VEHICLE LEASING CHARGES,5902271388
09.10.2017,ENVIRONMENT DIRECTORATE,DAIMLER FLEET MANAGEMENT,442.53,CAR LEASING CTRL A/C,VEHICLE LEASING CHARGES,5902271388
09.10.2017,ENVIRONMENT DIRECTORATE,FIVEWAYS MUNICIPAL VEHICLE HIRE LTD,725,COMMERCIAL VEH CTRL A/C,HIRED VEHICLES,5902271471
09.10.2017,ENVIRONMENT DIRECTORATE,STORM ENVIRONMENTAL LTD,"4,908.00",COMMERCIAL WASTE,EQUIPMENT PURCHASE & REPAIR,5902271448
09.10.2017,ENVIRONMENT DIRECTORATE,GREENHAM TRADING LTD,810.27,ESTATE CLEANING-GENERAL,MATERIALS,5902271463
09.10.2017,ENVIRONMENT DIRECTORATE,THE T.P. PARTNERSHIP,445,ESTATE CLEANING-GENERAL,OTHER CONTRACTORS,5902270901
09.10.2017,ENVIRONMENT DIRECTORATE,SPALDINGS (UK) LTD,319.68,GROUNDS MAINTENANCE - GENERAL,MATERIALS,5902271462
09.10.2017,ENVIRONMENT DIRECTORATE,CALLOW MASTER LOCKSMITHS,389.58,MANAGEMENT TEAM,OTHER CONTRACTORS,5902271091
09.10.2017,ENVIRONMENT DIRECTORATE,AQUAJET CLEANING EQUIPMENT LTD,"1,245.32",MANAGEMENT TEAM,OTHER CONTRACTORS,5902270961
09.10.2017,ENVIRONMENT DIRECTORATE,CHUBB FIRE LIMITED,311.69,SANDGATE STREET,FIRE ALARMS & EMERGENCY LIGHTING,5902271454
09.10.2017,ENVIRONMENT DIRECTORATE,CHUBB FIRE LIMITED,312.05,SANDGATE STREET,FIRE ALARMS & EMERGENCY LIGHTING,5902271453
09.10.2017,ENVIRONMENT DIRECTORATE,CROWN OIL UK,"1,392.93",SANDGATE STREET,VEHICLE FUEL,5902271484
09.10.2017,ENVIRONMENT DIRECTORATE,NPOWER LTD,293.88,STREET TRADING A/C,ELECTRICITY,5902271515
09.10.2017,ENVIRONMENT DIRECTORATE,NPOWER LTD,388.4,STREET TRADING A/C,ELECTRICITY,5902271519
09.10.2017,ENVIRONMENT DIRECTORATE,CSTS LTD,481,STRUCTURES RECOVERABLE WORKS,OTHER CONTRACTORS,5902271457
09.10.2017,F & C S EXCLUDING CORPORATE BUDGETS,BDO LLP,"2,083.33",RISK ADMIN,PROFESSIONAL FEES,5902270502
09.10.2017,HOUSING,LIFTEC LIFTS LTD,"69,337.58",PAYMENTS CONTROL ACCOUNT - LIFTEC,MANUAL CREDITORS,5902270928
09.10.2017,HOUSING,SCCI ALPHATRACK LTD,"61,181.06",SCCI ALPHATRACK,MANUAL CREDITORS,5902271450
09.10.2017,HOUSING HRA,CALFORD SEADEN LLP,952.56,CAPITAL PS (HRA),CONSTRUCTION FEES  - EXTERNAL,5902271284
09.10.2017,HOUSING HRA,CALFORD SEADEN LLP,"1,140.00",CAPITAL PS (HRA),CONSTRUCTION FEES  - EXTERNAL,5902270859
09.10.2017,HOUSING HRA,CALFORD SEADEN LLP,"2,544.82",CAPITAL PS (HRA),CONSTRUCTION FEES  - EXTERNAL,5902271271
09.10.2017,HOUSING HRA,CALFORD SEADEN LLP,"3,143.21",CAPITAL PS (HRA),CONSTRUCTION FEES  - EXTERNAL,5902271278
09.10.2017,HOUSING HRA,CALFORD SEADEN LLP,"4,581.50",CAPITAL PS (HRA),CONSTRUCTION FEES  - EXTERNAL,5902271260
09.10.2017,HOUSING HRA,CALFORD SEADEN LLP,"4,608.71",CAPITAL PS (HRA),CONSTRUCTION FEES  - EXTERNAL,5902270791
09.10.2017,HOUSING HRA,ASH SAKULA ARCHITECTS,265,CAPITAL PS (REGEN),CONSTRUCTION FEES,5902271517
09.10.2017,HOUSING HRA,JNP ENGINEERS LLP,800,CAPITAL PS (REGEN),CONSTRUCTION FEES  - EXTERNAL,5902270424
09.10.2017,LEISURE DIRECTORATE,THE NEW AYLESBURY TRUST,307,BURGESS AREA TEAM,PROFESSIONAL FEES,5902271408
09.10.2017,LEISURE DIRECTORATE,THE NEW AYLESBURY TRUST,"3,071.00",BURGESS AREA TEAM,PROFESSIONAL FEES,5902271408
09.10.2017,LEISURE DIRECTORATE,GERALD EVE LLP,"22,818.67",CAMBERWELL LIBRARY,PROFESSIONAL FEES,5902271352
09.10.2017,LEISURE DIRECTORATE,VEOLIA ES (UK)LTD,778,JOHN HARVARD LIBRARY,REFUSE COLLECTION CONTRACT,5902271389
09.10.2017,MODERNISATION HGF,ADVANCED POWER TECHNOLOGY LTD,"19,864.00",160 TOOLEY ST.,BUILDING R&M,5902271488
09.10.2017,MODERNISATION HGF,RAHANA HUSSAIN,475,CHILDREN'S MULTI-AGENCY SAFEGUARDING TRA,TRAINING,5902270756
09.10.2017,MODERNISATION HGF,WEB-LABS LTD,300,CORPORATE TRAINING BUDGETS,TRAINING,5902271495
09.10.2017,MODERNISATION HGF,INSTITUTE OF LEADERSHIP,"2,373.00",ILM COSTS,TRAINING,5902271490
09.10.2017,MODERNISATION HGF,SHARPE PRITCHARD LLP,"1,168.00",IT MANAGEMENT,PROFESSIONAL FEES,5902271466
09.10.2017,MODERNISATION HGF,LEARNING POOL LTD,"38,225.00",ORG TRANSFORMATION,TRAINING,5902271481
09.10.2017,MODERNISATION HGF,GOLDSMITHS COLLEGE,"2,700.00",STEP UP,PAYMENTS FOR PERSONNEL MANAGEMENT SERVS,5902270882
09.10.2017,PUBLIC HEALTH,SPORTS AND LEISURE MANAGEMENT LTD,"5,940.00",HEALTH CHECKS,EXTERNAL AGENCIES AND BODIES,5902271414
09.10.2017,REGENERATION,FIELD FISHER WATERHOUSE,"6,311.00",22 SHAND STREET,PROFESSIONAL FEES,5902271443
09.10.2017,RESIDENT SERVICES,RELIANCE HIGH-TECH LTD,"1,478.19",OPERATIONS/OFFICES ACCOMMODATION,SECURITY EQUIPMENT F&F,5902271475
09.10.2017,SOUTHWARK SCHOOL FOR FUTURE,RSK ENVIRONMENT LTD,"2,272.40",CAPITAL PS (REGEN),CONSTRUCTION FEES - QUANTITY SURVEYOR,5902271412
09.10.2017,SOUTHWARK SCHOOL FOR FUTURE,RSK ENVIRONMENT LTD,"2,892.00",CAPITAL PS (REGEN),CONSTRUCTION FEES - QUANTITY SURVEYOR,5902271412
09.10.2017,SOUTHWARK SCHOOL FOR FUTURE,RSK ENVIRONMENT LTD,"3,045.00",CAPITAL PS (REGEN),CONSTRUCTION FEES - QUANTITY SURVEYOR,5902271412
09.10.2017,SOUTHWARK SCHOOL FOR FUTURE,RSK ENVIRONMENT LTD,"3,950.00",CAPITAL PS (REGEN),CONSTRUCTION FEES - QUANTITY SURVEYOR,5902271412
09.10.2017,SOUTHWARK SCHOOL FOR FUTURE,RSK ENVIRONMENT LTD,"3,968.00",CAPITAL PS (REGEN),CONSTRUCTION FEES - QUANTITY SURVEYOR,5902271412
09.10.2017,SOUTHWARK SCHOOL FOR FUTURE,RSK ENVIRONMENT LTD,"4,125.00",CAPITAL PS (REGEN),CONSTRUCTION FEES - QUANTITY SURVEYOR,5902271412
09.10.2017,SOUTHWARK SCHOOL FOR FUTURE,RSK ENVIRONMENT LTD,"4,377.00",CAPITAL PS (REGEN),CONSTRUCTION FEES - QUANTITY SURVEYOR,5902271412
10.10.2017,ADULT SOCIAL CARE,REDACTED PERSONAL DATA,-850,DIR OF ASC,LEGAL FEES & COURT COSTS,2102731512
10.10.2017,ADULT SOCIAL CARE,REDACTED PERSONAL DATA,850,DIR OF ASC,LEGAL FEES & COURT COSTS,2102721920
10.10.2017,ADULT SOCIAL CARE,CHOICE SUPPORT,734.8,LD LTS 18-64,HOMECARE - C&V,2102729875
10.10.2017,ADULT SOCIAL CARE,CHOICE SUPPORT,955.2,LD LTS 18-64,HOMECARE - SPOT,2102729863
10.10.2017,ADULT SOCIAL CARE,CHOICE SUPPORT,293.92,LD LTS 18-64,SUPPORTED LIVING,2102729821
10.10.2017,ADULT SOCIAL CARE,CHOICE SUPPORT,293.92,LD LTS 18-64,SUPPORTED LIVING,2102729853
10.10.2017,ADULT SOCIAL CARE,CHOICE SUPPORT,293.92,LD LTS 18-64,SUPPORTED LIVING,2102729859
10.10.2017,ADULT SOCIAL CARE,CHOICE SUPPORT,367.4,LD LTS 18-64,SUPPORTED LIVING,2102729829
10.10.2017,ADULT SOCIAL CARE,CHOICE SUPPORT,367.4,LD LTS 18-64,SUPPORTED LIVING,2102729837
10.10.2017,ADULT SOCIAL CARE,CHOICE SUPPORT,367.4,LD LTS 18-64,SUPPORTED LIVING,2102729851
10.10.2017,ADULT SOCIAL CARE,CHOICE SUPPORT,440.88,LD LTS 18-64,SUPPORTED LIVING,2102729839
10.10.2017,ADULT SOCIAL CARE,CHOICE SUPPORT,440.88,LD LTS 18-64,SUPPORTED LIVING,2102729865
10.10.2017,ADULT SOCIAL CARE,CHOICE SUPPORT,569.46,LD LTS 18-64,SUPPORTED LIVING,2102729841
10.10.2017,ADULT SOCIAL CARE,CHOICE SUPPORT,587.84,LD LTS 18-64,SUPPORTED LIVING,2102729873
10.10.2017,ADULT SOCIAL CARE,CHOICE SUPPORT,881.76,LD LTS 18-64,SUPPORTED LIVING,2102729835
10.10.2017,ADULT SOCIAL CARE,CHOICE SUPPORT,955.24,LD LTS 18-64,SUPPORTED LIVING,2102729819
10.10.2017,ADULT SOCIAL CARE,CHOICE SUPPORT,"1,102.20",LD LTS 18-64,SUPPORTED LIVING,2102729855
10.10.2017,ADULT SOCIAL CARE,CHOICE SUPPORT,"6,534.47",LD LTS 18-64,SUPPORTED LIVING,2102729823
10.10.2017,ADULT SOCIAL CARE,CHOICE SUPPORT,"9,578.64",LD LTS 18-64,SUPPORTED LIVING,2102729769
10.10.2017,ADULT SOCIAL CARE,THE DRIVE CARE HOMES LTD,"1,320.00",LD LTS 18-64,CLIENT TRANSPORT,2102729901
10.10.2017,ADULT SOCIAL CARE,BRANDON TRUST,683.12,LD LTS 18-64,RESIDENTIAL CARE,2102729883
10.10.2017,ADULT SOCIAL CARE,BRANDON TRUST,860,LD LTS 18-64,RESIDENTIAL CARE,2102729885
10.10.2017,ADULT SOCIAL CARE,BRANDON TRUST,860,LD LTS 18-64,RESIDENTIAL CARE,2102729895
10.10.2017,ADULT SOCIAL CARE,BRANDON TRUST,879.06,LD LTS 18-64,RESIDENTIAL CARE,2102729887
10.10.2017,ADULT SOCIAL CARE,BRANDON TRUST,"1,038.00",LD LTS 18-64,RESIDENTIAL CARE,2102729889
10.10.2017,ADULT SOCIAL CARE,BRANDON TRUST,"1,476.00",LD LTS 18-64,RESIDENTIAL CARE,2102729891
10.10.2017,ADULT SOCIAL CARE,BRANDON TRUST,"1,514.12",LD LTS 18-64,RESIDENTIAL CARE,2102729881
10.10.2017,ADULT SOCIAL CARE,BRANDON TRUST,"1,557.00",LD LTS 18-64,RESIDENTIAL CARE,2102729893
10.10.2017,ADULT SOCIAL CARE,BRANDON TRUST,"1,595.12",LD LTS 18-64,RESIDENTIAL CARE,2102729897
10.10.2017,ADULT SOCIAL CARE,REDACTED PERSONAL DATA,"3,682.28",LD LTS 18-64,SUPPORTED LIVING,2102729900
10.10.2017,ADULT SOCIAL CARE,MARCUS AND MARCUS LTD,857.1,LD LTS 18-64,SUPPORTED LIVING,2102729904
10.10.2017,ADULT SOCIAL CARE,MARCUS AND MARCUS LTD,"4,000.00",LD LTS 18-64,SUPPORTED LIVING,2102729902
10.10.2017,ADULT SOCIAL CARE,MARCUS AND MARCUS LTD,"4,800.00",LD LTS 18-64,SUPPORTED LIVING,2102729905
10.10.2017,ADULT SOCIAL CARE,MARCUS AND MARCUS LTD,"13,440.00",LD LTS 18-64,SUPPORTED LIVING,2102729903
10.10.2017,ADULT SOCIAL CARE,REDACTED PERSONAL DATA,"-1,054.80",LD LTS 18-64,SUPPORTED LIVING,2102726807
10.10.2017,ADULT SOCIAL CARE,REDACTED PERSONAL DATA,562.56,LD LTS 18-64,SUPPORTED LIVING,2102727731
10.10.2017,ADULT SOCIAL CARE,REDACTED PERSONAL DATA,"1,125.12",LD LTS 18-64,SUPPORTED LIVING,2102729709
10.10.2017,ADULT SOCIAL CARE,REDACTED PERSONAL DATA,"3,245.32",LD LTS 18-64,SUPPORTED LIVING,2102727416
10.10.2017,ADULT SOCIAL CARE,CHOICE SUPPORT,440.88,LD LTS 65+,SUPPORTED LIVING,2102729857
10.10.2017,ADULT SOCIAL CARE,CHOICE SUPPORT,440.88,MH LTS 18-64,HOMECARE - C&V,2102729843
10.10.2017,ADULT SOCIAL CARE,EDEN SPRINGS (UK) LTD,271.6,MH PREMISES COSTS,OP LEASE/HIRE CHARGES:PLANT/EQUIP/FURNIT,5902271852
10.10.2017,ADULT SOCIAL CARE,EDEN SPRINGS (UK) LTD,317.72,MH PREMISES COSTS,OP LEASE/HIRE CHARGES:PLANT/EQUIP/FURNIT,5902271855
10.10.2017,ADULT SOCIAL CARE,MEDACS HOMECARE,"1,947.14",PHY LTS 18-64,HOMECARE - SPOT,2102729879
10.10.2017,ADULT SOCIAL CARE,NOTARO CARE HOMES (CAMPANIA),621.42,PHY LTS 18-64,OTHER PAYMENTS FOR CLIENTS,2102729813
10.10.2017,ADULT SOCIAL CARE,NOTARO CARE HOMES (CAMPANIA),"14,334.64",PHY LTS 18-64,RESIDENTIAL CARE,2102729809
10.10.2017,ADULT SOCIAL CARE,MEDACS HOMECARE,661.09,PHY LTS 65+,HOMECARE - SPOT,2102729833
10.10.2017,ADULT SOCIAL CARE,MEDACS HOMECARE,"1,213.80",PHY LTS 65+,HOMECARE - SPOT,2102729861
10.10.2017,ADULT SOCIAL CARE,NOTARO CARE HOMES (CAMPANIA),621.42,SUB LTS 18-64,OTHER PAYMENTS FOR CLIENTS,2102729811
10.10.2017,ADULT SOCIAL CARE,NOTARO CARE HOMES (CAMPANIA),"16,524.64",SUB LTS 18-64,RESIDENTIAL CARE,2102729804
10.10.2017,ASSET MANAGEMENT,KOHLER MIRA LTD,261,ADAPTATIONS,BUILDING R&M,5902271834
10.10.2017,ASSET MANAGEMENT,KOHLER MIRA LTD,261,ADAPTATIONS,BUILDING R&M,5902271867
10.10.2017,ASSET MANAGEMENT,FREEWAY LIFT SERVICES LTD,"4,146.00",ADAPTATIONS,BUILDING R&M,5902271862
10.10.2017,ASSET MANAGEMENT,FREEWAY LIFT SERVICES LTD,"4,975.00",ADAPTATIONS,BUILDING R&M,5902271864
10.10.2017,ASSET MANAGEMENT,BRIDGEWATER ROOFING CONTRACTORS LTD,"1,220.15",VOIDS (SOUTH),BUILDING R&M,2102729934
10.10.2017,CENTRAL FUNCTIONS,KEEPMOAT REGENERATION (APOLLO) LTD,"126,345.86",LEDBURY ESTATE,OTHER R&M,2102729939
10.10.2017,CENTRAL FUNCTIONS,SMITH & BYFORD LTD,"220,638.95",LEDBURY ESTATE,OTHER R&M,2102729945
10.10.2017,CENTRAL FUNCTIONS,CAPITA BUSINESS SERVICES LTD,"25,327.47",OPERATIONAL TEAM,OTHER CONTRACTORS,5902271552
10.10.2017,CENTRAL FUNCTIONS,CAPITA BUSINESS SERVICES LTD,"25,341.92",OPERATIONAL TEAM,OTHER CONTRACTORS,5902271550
10.10.2017,CENTRAL FUNCTIONS,CAPITA BUSINESS SERVICES LTD,"25,493.90",OPERATIONAL TEAM,OTHER CONTRACTORS,5902271545
10.10.2017,CHIEF EXECUTIVE,STANDAGE & CO LTD,"42,070.10",CAPITAL PS (REGEN),CONSTRUCTION MAIN CONTRACT -CERTIFICATED,5902271534
10.10.2017,CHIEF EXECUTIVE,RED R DESIGN,675,CAPITAL PS (REGEN),CONSTR'N SUB CONTRACT - NON CERTIFICATED,5902271361
10.10.2017,CHIEF EXECUTIVE,CONWAY AECOM LTD,"1,784.46",CAPITAL PS (REGEN),CONSTR'N SUB CONTRACT - NON CERTIFICATED,5902271876
10.10.2017,CHIEF EXECUTIVE,CONWAY AECOM LTD,"4,062.53",CAPITAL PS (REGEN),CONSTR'N SUB CONTRACT - NON CERTIFICATED,5902271915
10.10.2017,CHIEF EXECUTIVE,CONWAY AECOM LTD,"3,096.86",CAPITAL PS (REGEN),CONSTRUCTION MAIN CONTRACT -CERTIFICATED,5902271899
10.10.2017,CHIEF EXECUTIVE,CONWAY AECOM LTD,"6,835.71",CAPITAL PS (REGEN),CONSTRUCTION MAIN CONTRACT -CERTIFICATED,5902271914
10.10.2017,CHIEF EXECUTIVE,CONWAY AECOM LTD,"20,612.32",CAPITAL PS (REGEN),CONSTR'N SUB CONTRACT - NON CERTIFICATED,2102729935
10.10.2017,CHIEF EXECUTIVE,CONWAY AECOM LTD,"29,893.69",CAPITAL PS (REGEN),CONSTR'N SUB CONTRACT - NON CERTIFICATED,2102729936
10.10.2017,CHILDREN AND ADULT,STANDAGE & CO LTD,"139,613.78",CAPITAL PS (EDUCATION),CONSTRUCTION MAIN CONTRACT,2102729947
10.10.2017,CHILDREN AND ADULT,BLAKEDOWN LANDSCAPES,"59,121.37",CAPITAL PS (EDUCATION),CONSTRUCTION MAIN CONTRACT,2102729933
10.10.2017,CHILDREN AND ADULT,STONEGROVE LIMITED,"52,656.12",CAPITAL PS (EDUCATION),CONSTRUCTION MAIN CONTRACT -CERTIFICATED,2102729948
10.10.2017,CHILDREN AND ADULT,MORGAN SINDALL PLC,"124,930.14",CAPITAL PS (EDUCATION),CONST'N MAIN CONTRACT - NON CERTIFICATED,2102729949
10.10.2017,CHILDREN'S SERVICES,ALBION PRIMARY SCHOOL,"11,527.00",ALBION JMI,EARLY YEARS - 3 AND 4 YEAR OLDS,5902271579
10.10.2017,CHILDREN'S SERVICES,ALBION PRIMARY SCHOOL,"5,498.75",ALBION JMI,HIGH NEEDS - TOP UP FUNDING,5902271577
10.10.2017,CHILDREN'S SERVICES,ALBION PRIMARY SCHOOL,"152,350.55",ALBION JMI,SCHOOLS CAPITATION,5902271578
10.10.2017,CHILDREN'S SERVICES,ALFRED SALTER PRIMARY SCHOOL,"13,555.00",ALFRED SALTER PRIMARY,EARLY YEARS - 3 AND 4 YEAR OLDS,5902271582
10.10.2017,CHILDREN'S SERVICES,ALFRED SALTER PRIMARY SCHOOL,"21,738.75",ALFRED SALTER PRIMARY,HIGH NEEDS - TOP UP FUNDING,5902271580
10.10.2017,CHILDREN'S SERVICES,ALFRED SALTER PRIMARY SCHOOL,"177,333.35",ALFRED SALTER PRIMARY,SCHOOLS CAPITATION,5902271581
10.10.2017,CHILDREN'S SERVICES,BELLENDEN PRIMARY SCHOOL,"9,468.00",BELLENDEN JMI,EARLY YEARS - 3 AND 4 YEAR OLDS,5902271585
10.10.2017,CHILDREN'S SERVICES,BELLENDEN PRIMARY SCHOOL,"6,759.00",BELLENDEN JMI,HIGH NEEDS - TOP UP FUNDING,5902271583
10.10.2017,CHILDREN'S SERVICES,BELLENDEN PRIMARY SCHOOL,"106,331.04",BELLENDEN JMI,SCHOOLS CAPITATION,5902271584
10.10.2017,CHILDREN'S SERVICES,BEORMUND PRIMARY SCHOOL,"71,622.67",BEORMUND SCHOOL,HIGH NEEDS - BASE FUNDING,5902271586
10.10.2017,CHILDREN'S SERVICES,BESSEMER GRANGE PRIMARY SCHOOL,"19,366.00",BESSEMER GRNGE PRIMARY,EARLY YEARS - 3 AND 4 YEAR OLDS,5902271589
10.10.2017,CHILDREN'S SERVICES,BESSEMER GRANGE PRIMARY SCHOOL,"6,558.00",BESSEMER GRNGE PRIMARY,HIGH NEEDS - TOP UP FUNDING,5902271587
10.10.2017,CHILDREN'S SERVICES,BESSEMER GRANGE PRIMARY SCHOOL,"229,624.19",BESSEMER GRNGE PRIMARY,SCHOOLS CAPITATION,5902271588
10.10.2017,CHILDREN'S SERVICES,BOUCHER C OF E PRIMARY SCHOOL,"4,238.00",BOUTCHER GRANGE JMI,HIGH NEEDS - TOP UP FUNDING,5902271591
10.10.2017,CHILDREN'S SERVICES,BOUCHER C OF E PRIMARY SCHOOL,"96,275.90",BOUTCHER GRANGE JMI,SCHOOLS CAPITATION,5902271592
10.10.2017,CHILDREN'S SERVICES,BRUNSWICK PARK PRIMARY SCHOOL,"13,568.00",BRUNSWICK PARK JM,EARLY YEARS - 3 AND 4 YEAR OLDS,5902271597
10.10.2017,CHILDREN'S SERVICES,BRUNSWICK PARK PRIMARY SCHOOL,"14,834.17",BRUNSWICK PARK JM,HIGH NEEDS - TOP UP FUNDING,5902271594
10.10.2017,CHILDREN'S SERVICES,BRUNSWICK PARK PRIMARY SCHOOL,"16,666.67",BRUNSWICK PARK JM,HIGH NEEDS - TOP UP FUNDING,5902271595
10.10.2017,CHILDREN'S SERVICES,BRUNSWICK PARK PRIMARY SCHOOL,"21,645.00",BRUNSWICK PARK JM,HIGH NEEDS - TOP UP FUNDING,5902271593
10.10.2017,CHILDREN'S SERVICES,BRUNSWICK PARK PRIMARY SCHOOL,"211,245.23",BRUNSWICK PARK JM,SCHOOLS CAPITATION,5902271596
10.10.2017,CHILDREN'S SERVICES,CAMELOT PRIMARY SCHOOL,"11,160.00",CAMELOT JMI,EARLY YEARS - 3 AND 4 YEAR OLDS,5902271600
10.10.2017,CHILDREN'S SERVICES,CAMELOT PRIMARY SCHOOL,"9,536.25",CAMELOT JMI,HIGH NEEDS - TOP UP FUNDING,5902271598
10.10.2017,CHILDREN'S SERVICES,CAMELOT PRIMARY SCHOOL,"222,700.93",CAMELOT JMI,SCHOOLS CAPITATION,5902271599
10.10.2017,CHILDREN'S SERVICES,CATHEDRAL SCHOOL OF ST SAVIOUR & MARY,"7,829.00",CATHDRL SCH OF ST,EARLY YEARS - 3 AND 4 YEAR OLDS,5902271768
10.10.2017,CHILDREN'S SERVICES,CATHEDRAL SCHOOL OF ST SAVIOUR & MARY,"85,260.21",CATHDRL SCH OF ST,SCHOOLS CAPITATION,5902271767
10.10.2017,CHILDREN'S SERVICES,CHARLES DICKENS PRIMARY SCHOOL,"12,327.00",CHARLES DICKENS JMI,EARLY YEARS - 3 AND 4 YEAR OLDS,5902271603
10.10.2017,CHILDREN'S SERVICES,CHARLES DICKENS PRIMARY SCHOOL,"3,380.00",CHARLES DICKENS JMI,HIGH NEEDS - TOP UP FUNDING,5902271601
10.10.2017,CHILDREN'S SERVICES,CHARLES DICKENS PRIMARY SCHOOL,"169,824.70",CHARLES DICKENS JMI,SCHOOLS CAPITATION,5902271602
10.10.2017,CHILDREN'S SERVICES,CHARLOTTE  SHARMAN PRIMARY SCHOOL,"8,904.00",CHARLOTTE SHARMAN JMI,EARLY YEARS - 3 AND 4 YEAR OLDS,5902271606
10.10.2017,CHILDREN'S SERVICES,CHARLOTTE  SHARMAN PRIMARY SCHOOL,"5,298.00",CHARLOTTE SHARMAN JMI,HIGH NEEDS - TOP UP FUNDING,5902271604
10.10.2017,CHILDREN'S SERVICES,CHARLOTTE  SHARMAN PRIMARY SCHOOL,"136,815.15",CHARLOTTE SHARMAN JMI,SCHOOLS CAPITATION,5902271605
10.10.2017,CHILDREN'S SERVICES,CHERRY GARDEN SCHOOL,"117,658.00",CHERRY GARDEN,HIGH NEEDS - BASE FUNDING,5902271612
10.10.2017,CHILDREN'S SERVICES,COBOURG PRIMARY SCHOOL,"10,964.00",COBURG JMI,EARLY YEARS - 3 AND 4 YEAR OLDS,5902271615
10.10.2017,CHILDREN'S SERVICES,COBOURG PRIMARY SCHOOL,"2,119.00",COBURG JMI,HIGH NEEDS - TOP UP FUNDING,5902271613
10.10.2017,CHILDREN'S SERVICES,COBOURG PRIMARY SCHOOL,"179,251.41",COBURG JMI,SCHOOLS CAPITATION,5902271614
10.10.2017,CHILDREN'S SERVICES,COMBER GROVE PRIMARY SCHOOL,"10,423.00",COMBER GROVE PRIMARY,EARLY YEARS - 3 AND 4 YEAR OLDS,5902271618
10.10.2017,CHILDREN'S SERVICES,COMBER GROVE PRIMARY SCHOOL,"6,357.50",COMBER GROVE PRIMARY,HIGH NEEDS - TOP UP FUNDING,5902271616
10.10.2017,CHILDREN'S SERVICES,COMBER GROVE PRIMARY SCHOOL,"132,874.90",COMBER GROVE PRIMARY,SCHOOLS CAPITATION,5902271617
10.10.2017,CHILDREN'S SERVICES,CRAMPTON PRIMARY SCHOOL,"8,878.00",CRAMPTON JMI,HIGH NEEDS - TOP UP FUNDING,5902271619
10.10.2017,CHILDREN'S SERVICES,CRAMPTON PRIMARY SCHOOL,"93,970.06",CRAMPTON JMI,SCHOOLS CAPITATION,5902271620
10.10.2017,CHILDREN'S SERVICES,CRAWFORD PRIMARY SCHOOL,"13,988.00",CRAWFORD JMI,EARLY YEARS - 3 AND 4 YEAR OLDS,5902271623
10.10.2017,CHILDREN'S SERVICES,CRAWFORD PRIMARY SCHOOL,"4,640.00",CRAWFORD JMI,HIGH NEEDS - TOP UP FUNDING,5902271621
10.10.2017,CHILDREN'S SERVICES,CRAWFORD PRIMARY SCHOOL,"218,025.97",CRAWFORD JMI,SCHOOLS CAPITATION,5902271622
10.10.2017,CHILDREN'S SERVICES,DULWICH WOOD CHILDRENS CENTRE,"53,378.21",D.WOOD - CENTRAL,EARLY YEARS - 3 AND 4 YEAR OLDS,5902271781
10.10.2017,CHILDREN'S SERVICES,DOG KENNEL HILL PRIMARY SCHOOL,"14,897.00",DOG KENNEL HILL JMI,EARLY YEARS - 3 AND 4 YEAR OLDS,5902271626
10.10.2017,CHILDREN'S SERVICES,DOG KENNEL HILL PRIMARY SCHOOL,"9,938.00",DOG KENNEL HILL JMI,HIGH NEEDS - TOP UP FUNDING,5902271624
10.10.2017,CHILDREN'S SERVICES,DOG KENNEL HILL PRIMARY SCHOOL,"178,472.36",DOG KENNEL HILL JMI,SCHOOLS CAPITATION,5902271625
10.10.2017,CHILDREN'S SERVICES,DULWICH VILLAGE CE INFANTS SCHOOL,"1,060.00",DULWICH VILLAGE I,HIGH NEEDS - TOP UP FUNDING,5902271627
10.10.2017,CHILDREN'S SERVICES,DULWICH VILLAGE CE INFANTS SCHOOL,"103,300.65",DULWICH VILLAGE I,SCHOOLS CAPITATION,5902271628
10.10.2017,CHILDREN'S SERVICES,ENGLISH MARTYRS RC PRIMARY SCHOOL,"10,126.00",ENGLISH MARTYRS JMI,EARLY YEARS - 3 AND 4 YEAR OLDS,5902271637
10.10.2017,CHILDREN'S SERVICES,ENGLISH MARTYRS RC PRIMARY SCHOOL,"5,498.75",ENGLISH MARTYRS JMI,HIGH NEEDS - TOP UP FUNDING,5902271635
10.10.2017,CHILDREN'S SERVICES,ENGLISH MARTYRS RC PRIMARY SCHOOL,"159,582.36",ENGLISH MARTYRS JMI,SCHOOLS CAPITATION,5902271636
10.10.2017,CHILDREN'S SERVICES,PHOENIX PRIMARY SCHOOL,"14,987.00",EVELINE LOWE JMI,EARLY YEARS - 3 AND 4 YEAR OLDS,5902271641
10.10.2017,CHILDREN'S SERVICES,PHOENIX PRIMARY SCHOOL,"12,458.75",EVELINE LOWE JMI,HIGH NEEDS - TOP UP FUNDING,5902271639
10.10.2017,CHILDREN'S SERVICES,PHOENIX PRIMARY SCHOOL,"218,777.29",EVELINE LOWE JMI,SCHOOLS CAPITATION,5902271640
10.10.2017,CHILDREN'S SERVICES,WILLISPALMER,"3,775.00",FAMILY ASSESSMENTS,RESIDENTIAL CARE,5902271927
10.10.2017,CHILDREN'S SERVICES,WILLISPALMER,"4,230.00",FAMILY ASSESSMENTS,RESIDENTIAL CARE,5902271928
10.10.2017,CHILDREN'S SERVICES,CARTER BROWN THE EXPERT SERVICE LTD,"2,516.00",FAMILY ASSESSMENTS,RESIDENTIAL CARE,5902271931
10.10.2017,CHILDREN'S SERVICES,OASIS PLACES LTD,"14,171.43",FAMILY ASSESSMENTS,RESIDENTIAL CARE,5902271926
10.10.2017,CHILDREN'S SERVICES,CHARITEENS RESIDENTIAL FAMILY CENTRE,"4,000.00",FAMILY ASSESSMENTS,RESIDENTIAL CARE,5902271930
10.10.2017,CHILDREN'S SERVICES,FRIARS PRIMARY SCHOOL,"4,673.00",FRIARS SCHOOL,EARLY YEARS - 3 AND 4 YEAR OLDS,5902271644
10.10.2017,CHILDREN'S SERVICES,FRIARS PRIMARY SCHOOL,"3,178.75",FRIARS SCHOOL,HIGH NEEDS - TOP UP FUNDING,5902271642
10.10.2017,CHILDREN'S SERVICES,FRIARS PRIMARY SCHOOL,"88,561.40",FRIARS SCHOOL,SCHOOLS CAPITATION,5902271643
10.10.2017,CHILDREN'S SERVICES,REDACTED PERSONAL DATA,-776.08,FRIENDS & FAMILY FOSTERING,PAYMENTS TO CARERS,2102731219
10.10.2017,CHILDREN'S SERVICES,REDACTED PERSONAL DATA,776.08,FRIENDS & FAMILY FOSTERING,PAYMENTS TO CARERS,2102731227
10.10.2017,CHILDREN'S SERVICES,REDACTED PERSONAL DATA,300,FURTHER EDUCATION SUPPORT,CLIENT TRANSPORT,2102729907
10.10.2017,CHILDREN'S SERVICES,REDACTED PERSONAL DATA,300,FURTHER EDUCATION SUPPORT,CLIENT TRANSPORT,2102729919
10.10.2017,CHILDREN'S SERVICES,REDACTED PERSONAL DATA,300,FURTHER EDUCATION SUPPORT,CLIENT TRANSPORT,2102729917
10.10.2017,CHILDREN'S SERVICES,GOODRICH PRIMARY SCHOOL,"25,167.00",GOODRICH JMI,EARLY YEARS - 3 AND 4 YEAR OLDS,5902271631
10.10.2017,CHILDREN'S SERVICES,GOODRICH PRIMARY SCHOOL,"9,737.00",GOODRICH JMI,HIGH NEEDS - TOP UP FUNDING,5902271629
10.10.2017,CHILDREN'S SERVICES,GOODRICH PRIMARY SCHOOL,"236,365.67",GOODRICH JMI,SCHOOLS CAPITATION,5902271630
10.10.2017,CHILDREN'S SERVICES,GRANGE PRIMARY SCHOOL,"6,375.00",GRANGE JMI,EARLY YEARS - 3 AND 4 YEAR OLDS,5902271634
10.10.2017,CHILDREN'S SERVICES,GRANGE PRIMARY SCHOOL,"4,238.00",GRANGE JMI,HIGH NEEDS - TOP UP FUNDING,5902271632
10.10.2017,CHILDREN'S SERVICES,GRANGE PRIMARY SCHOOL,"161,509.60",GRANGE JMI,SCHOOLS CAPITATION,5902271633
10.10.2017,CHILDREN'S SERVICES,THE GROVE CHILDRENS CENTRE,"5,426.43",GROVE - CENTRAL,EARLY YEARS - 3 AND 4 YEAR OLDS,5902271770
10.10.2017,CHILDREN'S SERVICES,THE GROVE CHILDRENS CENTRE,"36,497.57",GROVE - CENTRAL,EARLY YEARS - 3 AND 4 YEAR OLDS,5902271769
10.10.2017,CHILDREN'S SERVICES,EVELINA HOSPITAL SCHOOL,"78,912.40",GUYS,HIGH NEEDS - BASE FUNDING,5902271638
10.10.2017,CHILDREN'S SERVICES,HAYMERLE SCHOOL,"178,956.50",HAYMERLE SCH,HIGH NEEDS - BASE FUNDING,5902271671
10.10.2017,CHILDREN'S SERVICES,HEBER PRIMARY SCHOOL,"10,254.00",HEBER JMI,EARLY YEARS - 3 AND 4 YEAR OLDS,5902271647
10.10.2017,CHILDREN'S SERVICES,HEBER PRIMARY SCHOOL,"6,558.00",HEBER JMI,HIGH NEEDS - TOP UP FUNDING,5902271645
10.10.2017,CHILDREN'S SERVICES,HEBER PRIMARY SCHOOL,"161,277.28",HEBER JMI,SCHOOLS CAPITATION,5902271646
10.10.2017,CHILDREN'S SERVICES,HIGHSHORE SCHOOL,"15,000.00",HIGHSHORE,HIGH NEEDS - BASE FUNDING,5902271673
10.10.2017,CHILDREN'S SERVICES,HIGHSHORE SCHOOL,"237,625.00",HIGHSHORE,HIGH NEEDS - BASE FUNDING,5902271672
10.10.2017,CHILDREN'S SERVICES,HOLLYDALE PRIMARY SCHOOL,"3,178.75",HOLLYDALE JMI,HIGH NEEDS - TOP UP FUNDING,5902271648
10.10.2017,CHILDREN'S SERVICES,HOLLYDALE PRIMARY SCHOOL,"113,927.50",HOLLYDALE JMI,SCHOOLS CAPITATION,5902271649
10.10.2017,CHILDREN'S SERVICES,HEALTHCARE & TRANSPORT SERVICES,"49,497.75",HOME 2 SCHOOL TRANSPORT,CAB FARES,5902271575
10.10.2017,CHILDREN'S SERVICES,REDACTED PERSONAL DATA,565,HOME 2 SCHOOL TRANSPORT,CAR MILEAGE EXPENSES,5902270397
10.10.2017,CHILDREN'S SERVICES,REDACTED PERSONAL DATA,432,HOME 2 SCHOOL TRANSPORT,CAR MILEAGE EXPENSES,5902270398
10.10.2017,CHILDREN'S SERVICES,ILDERTON PRIMARY SCHOOL,"8,858.00",ILDERTON JMI,EARLY YEARS - 3 AND 4 YEAR OLDS,5902271652
10.10.2017,CHILDREN'S SERVICES,ILDERTON PRIMARY SCHOOL,"2,119.00",ILDERTON JMI,HIGH NEEDS - TOP UP FUNDING,5902271650
10.10.2017,CHILDREN'S SERVICES,ILDERTON PRIMARY SCHOOL,"170,753.34",ILDERTON JMI,SCHOOLS CAPITATION,5902271651
10.10.2017,CHILDREN'S SERVICES,IVYDALE PRIMARY SCHOOL,"13,855.00",IVYDALE JMI,EARLY YEARS - 3 AND 4 YEAR OLDS,5902271655
10.10.2017,CHILDREN'S SERVICES,IVYDALE PRIMARY SCHOOL,"7,618.00",IVYDALE JMI,HIGH NEEDS - TOP UP FUNDING,5902271653
10.10.2017,CHILDREN'S SERVICES,IVYDALE PRIMARY SCHOOL,"194,644.25",IVYDALE JMI,SCHOOLS CAPITATION,5902271654
10.10.2017,CHILDREN'S SERVICES,JOHN RUSKIN PRIMARY SCHOOL,"18,537.00",JOHN RUSKIN JMI,EARLY YEARS - 3 AND 4 YEAR OLDS,5902271660
10.10.2017,CHILDREN'S SERVICES,JOHN RUSKIN PRIMARY SCHOOL,"9,006.00",JOHN RUSKIN JMI,HIGH NEEDS - TOP UP FUNDING,5902271656
10.10.2017,CHILDREN'S SERVICES,JOHN RUSKIN PRIMARY SCHOOL,"11,856.25",JOHN RUSKIN JMI,HIGH NEEDS - TOP UP FUNDING,5902271657
10.10.2017,CHILDREN'S SERVICES,JOHN RUSKIN PRIMARY SCHOOL,"20,000.00",JOHN RUSKIN JMI,HIGH NEEDS - TOP UP FUNDING,5902271658
10.10.2017,CHILDREN'S SERVICES,JOHN RUSKIN PRIMARY SCHOOL,"179,916.43",JOHN RUSKIN JMI,SCHOOLS CAPITATION,5902271659
10.10.2017,CHILDREN'S SERVICES,KEYWORTH PRIMARY SCHOOL,"12,520.00",KEYWORTH JMI,EARLY YEARS - 3 AND 4 YEAR OLDS,5902271663
10.10.2017,CHILDREN'S SERVICES,KEYWORTH PRIMARY SCHOOL,"5,498.75",KEYWORTH JMI,HIGH NEEDS - TOP UP FUNDING,5902271661
10.10.2017,CHILDREN'S SERVICES,KEYWORTH PRIMARY SCHOOL,"168,705.55",KEYWORTH JMI,SCHOOLS CAPITATION,5902271662
10.10.2017,CHILDREN'S SERVICES,KINTORE WAY CHILDRENS CENTRE,"94,487.52",KINTORE WAY CENTRAL,EARLY YEARS - 3 AND 4 YEAR OLDS,5902271674
10.10.2017,CHILDREN'S SERVICES,DULWICH WOOD PRIMARY SCHOOL,"5,298.00",LANGBOURNE JMI,HIGH NEEDS - TOP UP FUNDING,5902271664
10.10.2017,CHILDREN'S SERVICES,DULWICH WOOD PRIMARY SCHOOL,"134,171.33",LANGBOURNE JMI,SCHOOLS CAPITATION,5902271665
10.10.2017,CHILDREN'S SERVICES,LYNDHURST PRIMARY SCHOOL,"9,729.00",LYNDHURST JMI,EARLY YEARS - 3 AND 4 YEAR OLDS,5902271670
10.10.2017,CHILDREN'S SERVICES,LYNDHURST PRIMARY SCHOOL,"3,178.75",LYNDHURST JMI,HIGH NEEDS - TOP UP FUNDING,5902271667
10.10.2017,CHILDREN'S SERVICES,LYNDHURST PRIMARY SCHOOL,"8,432.50",LYNDHURST JMI,HIGH NEEDS - TOP UP FUNDING,5902271666
10.10.2017,CHILDREN'S SERVICES,LYNDHURST PRIMARY SCHOOL,"10,000.00",LYNDHURST JMI,HIGH NEEDS - TOP UP FUNDING,5902271668
10.10.2017,CHILDREN'S SERVICES,LYNDHURST PRIMARY SCHOOL,"158,776.34",LYNDHURST JMI,SCHOOLS CAPITATION,5902271669
10.10.2017,CHILDREN'S SERVICES,BETHLEM & MAUDSLEY HOSPITAL SCHOOL,"104,356.30",MAUDSLEY & BETHLEM,HIGH NEEDS - BASE FUNDING,5902271590
10.10.2017,CHILDREN'S SERVICES,MICHAEL FARADAY PRIMARY SCHOOL,"15,630.00",MICHAEL FARADAY JMI,EARLY YEARS - 3 AND 4 YEAR OLDS,5902271677
10.10.2017,CHILDREN'S SERVICES,MICHAEL FARADAY PRIMARY SCHOOL,"7,417.00",MICHAEL FARADAY JMI,HIGH NEEDS - TOP UP FUNDING,5902271675
10.10.2017,CHILDREN'S SERVICES,MICHAEL FARADAY PRIMARY SCHOOL,"178,043.86",MICHAEL FARADAY JMI,SCHOOLS CAPITATION,5902271676
10.10.2017,CHILDREN'S SERVICES,NELL GWYNN NURSERY SCHOOL,"70,427.69",N.GWYNN - CENTRAL,EARLY YEARS - 3 AND 4 YEAR OLDS,5902271678
10.10.2017,CHILDREN'S SERVICES,NOTRE DAME RC GIRLS SCHOOL,"6,357.50",NOTRE DAME SCHOOL,HIGH NEEDS - TOP UP FUNDING,5902271679
10.10.2017,CHILDREN'S SERVICES,NOTRE DAME RC GIRLS SCHOOL,"404,314.63",NOTRE DAME SCHOOL,SCHOOLS CAPITATION,5902271680
10.10.2017,CHILDREN'S SERVICES,OLIVER GOLDSMITH PRIMARY SCHOOL,"13,141.00",OLIVER GOLDSMITH JM,EARLY YEARS - 3 AND 4 YEAR OLDS,5902271683
10.10.2017,CHILDREN'S SERVICES,OLIVER GOLDSMITH PRIMARY SCHOOL,"9,079.00",OLIVER GOLDSMITH JM,HIGH NEEDS - TOP UP FUNDING,5902271681
10.10.2017,CHILDREN'S SERVICES,OLIVER GOLDSMITH PRIMARY SCHOOL,"185,257.56",OLIVER GOLDSMITH JM,SCHOOLS CAPITATION,5902271682
10.10.2017,CHILDREN'S SERVICES,PETER HILLS CE SCHOOL,"6,052.00",PETER HILLS JMI,EARLY YEARS - 3 AND 4 YEAR OLDS,5902271686
10.10.2017,CHILDREN'S SERVICES,PETER HILLS CE SCHOOL,"2,119.00",PETER HILLS JMI,HIGH NEEDS - TOP UP FUNDING,5902271684
10.10.2017,CHILDREN'S SERVICES,PETER HILLS CE SCHOOL,"84,628.14",PETER HILLS JMI,SCHOOLS CAPITATION,5902271685
10.10.2017,CHILDREN'S SERVICES,PILGRIM'S WAY PRIMARY SCHOOL,"12,964.00",PILGRIMS WAY JMI,EARLY YEARS - 3 AND 4 YEAR OLDS,5902271689
10.10.2017,CHILDREN'S SERVICES,PILGRIM'S WAY PRIMARY SCHOOL,"5,498.75",PILGRIMS WAY JMI,HIGH NEEDS - TOP UP FUNDING,5902271687
10.10.2017,CHILDREN'S SERVICES,PILGRIM'S WAY PRIMARY SCHOOL,"100,385.76",PILGRIMS WAY JMI,SCHOOLS CAPITATION,5902271688
10.10.2017,CHILDREN'S SERVICES,KING EDWARDS SCHOOL WITLEY,"3,022.45",PUPIL PREMIUM CURRENT YEAR,EXTERNAL AGENCIES AND BODIES,5902271929
10.10.2017,CHILDREN'S SERVICES,RIVERSIDE PRIMARY SCHOOL,"6,357.00",RIVERSIDE JMI,EARLY YEARS - 3 AND 4 YEAR OLDS,5902271692
10.10.2017,CHILDREN'S SERVICES,RIVERSIDE PRIMARY SCHOOL,"1,060.00",RIVERSIDE JMI,HIGH NEEDS - TOP UP FUNDING,5902271690
10.10.2017,CHILDREN'S SERVICES,RIVERSIDE PRIMARY SCHOOL,"137,816.81",RIVERSIDE JMI,SCHOOLS CAPITATION,5902271691
10.10.2017,CHILDREN'S SERVICES,ROBERT BROWNING PRIMARY SCHOOL,"10,943.00",ROBERT BROWNING JMI,EARLY YEARS - 3 AND 4 YEAR OLDS,5902271695
10.10.2017,CHILDREN'S SERVICES,ROBERT BROWNING PRIMARY SCHOOL,"5,298.00",ROBERT BROWNING JMI,HIGH NEEDS - TOP UP FUNDING,5902271693
10.10.2017,CHILDREN'S SERVICES,ROBERT BROWNING PRIMARY SCHOOL,"142,428.42",ROBERT BROWNING JMI,SCHOOLS CAPITATION,5902271694
10.10.2017,CHILDREN'S SERVICES,ROTHERHITHE PRIMARY SCHOOL,"12,577.00",ROTHERHITHE JMI,EARLY YEARS - 3 AND 4 YEAR OLDS,5902271698
10.10.2017,CHILDREN'S SERVICES,ROTHERHITHE PRIMARY SCHOOL,"5,298.00",ROTHERHITHE JMI,HIGH NEEDS - TOP UP FUNDING,5902271696
10.10.2017,CHILDREN'S SERVICES,ROTHERHITHE PRIMARY SCHOOL,"203,905.37",ROTHERHITHE JMI,SCHOOLS CAPITATION,5902271697
10.10.2017,CHILDREN'S SERVICES,RYE OAK PRIMARY SCHOOL,"20,107.00",RYE OAK SCHOOL DFES NO. 2462,EARLY YEARS - 3 AND 4 YEAR OLDS,5902271703
10.10.2017,CHILDREN'S SERVICES,RYE OAK PRIMARY SCHOOL,"5,498.75",RYE OAK SCHOOL DFES NO. 2462,HIGH NEEDS - TOP UP FUNDING,5902271700
10.10.2017,CHILDREN'S SERVICES,RYE OAK PRIMARY SCHOOL,"15,000.00",RYE OAK SCHOOL DFES NO. 2462,HIGH NEEDS - TOP UP FUNDING,5902271701
10.10.2017,CHILDREN'S SERVICES,RYE OAK PRIMARY SCHOOL,"21,645.00",RYE OAK SCHOOL DFES NO. 2462,HIGH NEEDS - TOP UP FUNDING,5902271699
10.10.2017,CHILDREN'S SERVICES,RYE OAK PRIMARY SCHOOL,"162,932.85",RYE OAK SCHOOL DFES NO. 2462,SCHOOLS CAPITATION,5902271702
10.10.2017,CHILDREN'S SERVICES,SOUTHWARK INCLUSIVE LEARNING SERVICE,"175,000.00",SILS KS3,HIGH NEEDS - BASE FUNDING,5902271782
10.10.2017,CHILDREN'S SERVICES,SOUTHWARK INCLUSIVE LEARNING SERVICE,"14,000.00",SILS KS3,SCHOOLS CAPITATION,5902271783
10.10.2017,CHILDREN'S SERVICES,SNOWSFIELDS PRIMARY SCHOOL,"7,546.00",SNOWSFIELD JMI,EARLY YEARS - 3 AND 4 YEAR OLDS,5902271708
10.10.2017,CHILDREN'S SERVICES,SNOWSFIELDS PRIMARY SCHOOL,"5,498.75",SNOWSFIELD JMI,HIGH NEEDS - TOP UP FUNDING,5902271705
10.10.2017,CHILDREN'S SERVICES,SNOWSFIELDS PRIMARY SCHOOL,"11,666.67",SNOWSFIELD JMI,HIGH NEEDS - TOP UP FUNDING,5902271706
10.10.2017,CHILDREN'S SERVICES,SNOWSFIELDS PRIMARY SCHOOL,"15,632.50",SNOWSFIELD JMI,HIGH NEEDS - TOP UP FUNDING,5902271704
10.10.2017,CHILDREN'S SERVICES,SNOWSFIELDS PRIMARY SCHOOL,"90,236.66",SNOWSFIELD JMI,SCHOOLS CAPITATION,5902271707
10.10.2017,CHILDREN'S SERVICES,SOUTHWARK PARK PRIMARY SCHOOL,"15,138.00",SOUTHWARK PARK JMI,EARLY YEARS - 3 AND 4 YEAR OLDS,5902271711
10.10.2017,CHILDREN'S SERVICES,SOUTHWARK PARK PRIMARY SCHOOL,"5,700.00",SOUTHWARK PARK JMI,HIGH NEEDS - TOP UP FUNDING,5902271709
10.10.2017,CHILDREN'S SERVICES,SOUTHWARK PARK PRIMARY SCHOOL,"184,418.62",SOUTHWARK PARK JMI,SCHOOLS CAPITATION,5902271710
10.10.2017,CHILDREN'S SERVICES,SPA SCHOOL,"210,497.10",SPA SCHOOL,HIGH NEEDS - BASE FUNDING,5902271712
10.10.2017,CHILDREN'S SERVICES,ST ANTHONYS RC SCHOOL,"10,015.00",ST ANTHONY'S RC SCHOOL,EARLY YEARS - 3 AND 4 YEAR OLDS,5902271715
10.10.2017,CHILDREN'S SERVICES,ST ANTHONYS RC SCHOOL,"3,178.75",ST ANTHONY'S RC SCHOOL,HIGH NEEDS - TOP UP FUNDING,5902271713
10.10.2017,CHILDREN'S SERVICES,ST ANTHONYS RC SCHOOL,"157,720.03",ST ANTHONY'S RC SCHOOL,SCHOOLS CAPITATION,5902271714
10.10.2017,CHILDREN'S SERVICES,ST FRANCESCA CABRINI PRIMARY SCHOOL,"10,285.00",ST FRANCESCA CABRINI RC SCHOOL,EARLY YEARS - 3 AND 4 YEAR OLDS,5902271718
10.10.2017,CHILDREN'S SERVICES,ST FRANCESCA CABRINI PRIMARY SCHOOL,"4,238.00",ST FRANCESCA CABRINI RC SCHOOL,HIGH NEEDS - TOP UP FUNDING,5902271716
10.10.2017,CHILDREN'S SERVICES,ST FRANCESCA CABRINI PRIMARY SCHOOL,"155,509.95",ST FRANCESCA CABRINI RC SCHOOL,SCHOOLS CAPITATION,5902271717
10.10.2017,CHILDREN'S SERVICES,ST FRANCIS'S RC PRIMARY SCHOOL,"8,002.00",ST FRANCIS JM,EARLY YEARS - 3 AND 4 YEAR OLDS,5902271721
10.10.2017,CHILDREN'S SERVICES,ST FRANCIS'S RC PRIMARY SCHOOL,"7,618.00",ST FRANCIS JM,HIGH NEEDS - TOP UP FUNDING,5902271719
10.10.2017,CHILDREN'S SERVICES,ST FRANCIS'S RC PRIMARY SCHOOL,"175,633.29",ST FRANCIS JM,SCHOOLS CAPITATION,5902271720
10.10.2017,CHILDREN'S SERVICES,ST GEORGES CE SCHOOL,"5,900.00",ST GEORGES JMI 043,HIGH NEEDS - TOP UP FUNDING,5902271725
10.10.2017,CHILDREN'S SERVICES,ST GEORGES CE SCHOOL,"72,525.79",ST GEORGES JMI 043,SCHOOLS CAPITATION,5902271726
10.10.2017,CHILDREN'S SERVICES,ST GEORGES RC SCHOOL,"4,953.00",ST GEORGES JMI 340,EARLY YEARS - 3 AND 4 YEAR OLDS,5902271724
10.10.2017,CHILDREN'S SERVICES,ST GEORGES RC SCHOOL,"2,119.00",ST GEORGES JMI 340,HIGH NEEDS - TOP UP FUNDING,5902271722
10.10.2017,CHILDREN'S SERVICES,ST GEORGES RC SCHOOL,"123,718.27",ST GEORGES JMI 340,SCHOOLS CAPITATION,5902271723
10.10.2017,CHILDREN'S SERVICES,ST JAMES CE SCHOOL,"13,613.00",ST JAMES JMI,EARLY YEARS - 3 AND 4 YEAR OLDS,5902271729
10.10.2017,CHILDREN'S SERVICES,ST JAMES CE SCHOOL,"7,818.75",ST JAMES JMI,HIGH NEEDS - TOP UP FUNDING,5902271727
10.10.2017,CHILDREN'S SERVICES,ST JAMES CE SCHOOL,"225,622.04",ST JAMES JMI,SCHOOLS CAPITATION,5902271728
10.10.2017,CHILDREN'S SERVICES,ST JAMES THE GREAT RC SCHOOL,"8,511.00",ST JAMES RC(ST ALBANS),EARLY YEARS - 3 AND 4 YEAR OLDS,5902271732
10.10.2017,CHILDREN'S SERVICES,ST JAMES THE GREAT RC SCHOOL,"8,477.00",ST JAMES RC(ST ALBANS),HIGH NEEDS - TOP UP FUNDING,5902271730
10.10.2017,CHILDREN'S SERVICES,ST JAMES THE GREAT RC SCHOOL,"92,310.48",ST JAMES RC(ST ALBANS),SCHOOLS CAPITATION,5902271731
10.10.2017,CHILDREN'S SERVICES,ST JOHNS & ST CLEMENTS CE SCHOOL,"3,428.33",ST JOHNS & ST CLEMENTS,HIGH NEEDS - TOP UP FUNDING,5902271735
10.10.2017,CHILDREN'S SERVICES,ST JOHNS & ST CLEMENTS CE SCHOOL,"5,833.33",ST JOHNS & ST CLEMENTS,HIGH NEEDS - TOP UP FUNDING,5902271737
10.10.2017,CHILDREN'S SERVICES,ST JOHNS & ST CLEMENTS CE SCHOOL,"8,677.50",ST JOHNS & ST CLEMENTS,HIGH NEEDS - TOP UP FUNDING,5902271736
10.10.2017,CHILDREN'S SERVICES,ST JOHNS & ST CLEMENTS CE SCHOOL,"170,333.85",ST JOHNS & ST CLEMENTS,SCHOOLS CAPITATION,5902271738
10.10.2017,CHILDREN'S SERVICES,ST JOHNS RC PRIMARY SCHOOL,"9,351.00",ST JOHNS (ELMO ROAD),EARLY YEARS - 3 AND 4 YEAR OLDS,5902271743
10.10.2017,CHILDREN'S SERVICES,ST JOHNS RC PRIMARY SCHOOL,"3,178.75",ST JOHNS (ELMO ROAD),HIGH NEEDS - TOP UP FUNDING,5902271741
10.10.2017,CHILDREN'S SERVICES,ST JOHNS RC PRIMARY SCHOOL,"96,690.82",ST JOHNS (ELMO ROAD),SCHOOLS CAPITATION,5902271742
10.10.2017,CHILDREN'S SERVICES,ST JOHNS WALWORTH CE SCHOOL,"1,060.00",ST JOHNS WALWORTH J,HIGH NEEDS - TOP UP FUNDING,5902271733
10.10.2017,CHILDREN'S SERVICES,ST JOHNS WALWORTH CE SCHOOL,"92,496.58",ST JOHNS WALWORTH J,SCHOOLS CAPITATION,5902271734
10.10.2017,CHILDREN'S SERVICES,ST JOSEPHS RC PRIMARY SCHOOL,"9,316.00",ST JOSEPHS JMI 014B,EARLY YEARS - 3 AND 4 YEAR OLDS,5902271749
10.10.2017,CHILDREN'S SERVICES,ST JOSEPHS RC PRIMARY SCHOOL,"4,439.00",ST JOSEPHS JMI 014B,HIGH NEEDS - TOP UP FUNDING,5902271747
10.10.2017,CHILDREN'S SERVICES,ST JOSEPHS RC PRIMARY SCHOOL,"133,715.19",ST JOSEPHS JMI 014B,SCHOOLS CAPITATION,5902271748
10.10.2017,CHILDREN'S SERVICES,ST JOSEPHS CATHOLIC PRIMARY SCHOOL,"13,067.00",ST JOSEPHS JMI 026,EARLY YEARS - 3 AND 4 YEAR OLDS,5902271752
10.10.2017,CHILDREN'S SERVICES,ST JOSEPHS CATHOLIC PRIMARY SCHOOL,"2,119.00",ST JOSEPHS JMI 026,HIGH NEEDS - TOP UP FUNDING,5902271750
10.10.2017,CHILDREN'S SERVICES,ST JOSEPHS CATHOLIC PRIMARY SCHOOL,"92,691.04",ST JOSEPHS JMI 026,SCHOOLS CAPITATION,5902271751
10.10.2017,CHILDREN'S SERVICES,ST JOSEPHS CATHOLIC SCHOOL,"9,720.00",ST JOSEPHS JMI 0339,EARLY YEARS - 3 AND 4 YEAR OLDS,5902271746
10.10.2017,CHILDREN'S SERVICES,ST JOSEPHS CATHOLIC SCHOOL,"5,298.00",ST JOSEPHS JMI 0339,HIGH NEEDS - TOP UP FUNDING,5902271744
10.10.2017,CHILDREN'S SERVICES,ST JOSEPHS CATHOLIC SCHOOL,"93,605.20",ST JOSEPHS JMI 0339,SCHOOLS CAPITATION,5902271745
10.10.2017,CHILDREN'S SERVICES,ST JUDES CHURCH OF ENGLAND PRIMARY,"2,119.00",ST JUDES SOUTHWARK,HIGH NEEDS - TOP UP FUNDING,5902271610
10.10.2017,CHILDREN'S SERVICES,ST JUDES CHURCH OF ENGLAND PRIMARY,"63,870.67",ST JUDES SOUTHWARK,SCHOOLS CAPITATION,5902271611
10.10.2017,CHILDREN'S SERVICES,ST MARY MAGDALENE CE SCHOOL,"5,498.75",ST MARY MAGDALENE JMI,HIGH NEEDS - TOP UP FUNDING,5902271753
10.10.2017,CHILDREN'S SERVICES,ST MARY MAGDALENE CE SCHOOL,"99,669.93",ST MARY MAGDALENE JMI,SCHOOLS CAPITATION,5902271754
10.10.2017,CHILDREN'S SERVICES,ST PAULS CE SCHOOL,"10,978.00",ST PAULS WALWORTH JMI,EARLY YEARS - 3 AND 4 YEAR OLDS,5902271757
10.10.2017,CHILDREN'S SERVICES,ST PAULS CE SCHOOL,"6,558.00",ST PAULS WALWORTH JMI,HIGH NEEDS - TOP UP FUNDING,5902271755
10.10.2017,CHILDREN'S SERVICES,ST PAULS CE SCHOOL,"133,121.79",ST PAULS WALWORTH JMI,SCHOOLS CAPITATION,5902271756
10.10.2017,CHILDREN'S SERVICES,ST PETERS CE SCHOOL,"11,707.00",ST PETERS WALWORTH JMI,EARLY YEARS - 3 AND 4 YEAR OLDS,5902271760
10.10.2017,CHILDREN'S SERVICES,ST PETERS CE SCHOOL,"2,119.00",ST PETERS WALWORTH JMI,HIGH NEEDS - TOP UP FUNDING,5902271758
10.10.2017,CHILDREN'S SERVICES,ST PETERS CE SCHOOL,"88,256.99",ST PETERS WALWORTH JMI,SCHOOLS CAPITATION,5902271759
10.10.2017,CHILDREN'S SERVICES,ST SAVIOURS & ST OLAVES SCHOOL,"4,439.00",ST SAVIOURS & ST OLAVE,HIGH NEEDS - TOP UP FUNDING,5902271761
10.10.2017,CHILDREN'S SERVICES,ST SAVIOURS & ST OLAVES SCHOOL,"384,761.31",ST SAVIOURS & ST OLAVE,SCHOOLS CAPITATION,5902271762
10.10.2017,CHILDREN'S SERVICES,ST JOSEPHS CATHOLIC INFANTS SCHOOL,"74,001.07",STJOSEPH'S RC CAMBERWELL INFANTS SCHOOL,SCHOOLS CAPITATION,5902271609
10.10.2017,CHILDREN'S SERVICES,ST JOSEPHS RC JUNIOR  SCHOOL,"3,178.75",STJOSEPH'S RC CAMBERWELL JUNIOR SCHOOL,HIGH NEEDS - TOP UP FUNDING,5902271607
10.10.2017,CHILDREN'S SERVICES,ST JOSEPHS RC JUNIOR  SCHOOL,"107,837.75",STJOSEPH'S RC CAMBERWELL JUNIOR SCHOOL,SCHOOLS CAPITATION,5902271608
10.10.2017,CHILDREN'S SERVICES,SUMNER NURSERY,"54,963.48",SUMNER NURSERY SCHOOL,EARLY YEARS - 3 AND 4 YEAR OLDS,5902271763
10.10.2017,CHILDREN'S SERVICES,SURREY SQUARE JUNIOR SCHOOL,"13,407.00",SURREY SQUARE JUNIOR SCHOOL,EARLY YEARS - 3 AND 4 YEAR OLDS,5902271766
10.10.2017,CHILDREN'S SERVICES,SURREY SQUARE JUNIOR SCHOOL,"8,477.00",SURREY SQUARE JUNIOR SCHOOL,HIGH NEEDS - TOP UP FUNDING,5902271764
10.10.2017,CHILDREN'S SERVICES,SURREY SQUARE JUNIOR SCHOOL,"179,172.87",SURREY SQUARE JUNIOR SCHOOL,SCHOOLS CAPITATION,5902271765
10.10.2017,CHILDREN'S SERVICES,ST GILES TRUST,"17,500.00",TACKLING TROUBLED FAMILIES,EXTERNAL AGENCIES AND BODIES,5902271924
10.10.2017,CHILDREN'S SERVICES,A & M PROPERTY AND CONSTRUCTION LTD,895,TEMPORARY ACCOMMODATION,EXTERNAL AGENCIES AND BODIES,5902271844
10.10.2017,CHILDREN'S SERVICES,A & M PROPERTY AND CONSTRUCTION LTD,"1,350.00",TEMPORARY ACCOMMODATION,EXTERNAL AGENCIES AND BODIES,5902271846
10.10.2017,CHILDREN'S SERVICES,SOUTH OF THE RIVER INVESTMENTS LTD,"5,418.00",TEMPORARY ACCOMMODATION,EXTERNAL AGENCIES AND BODIES,5902271884
10.10.2017,CHILDREN'S SERVICES,THE ST THOMAS THE APOSTLE COLLEGE,"7,618.00",THE ST THOMAS THE APOSTLE COLLEGE,HIGH NEEDS - TOP UP FUNDING,5902271739
10.10.2017,CHILDREN'S SERVICES,THE ST THOMAS THE APOSTLE COLLEGE,"392,961.39",THE ST THOMAS THE APOSTLE COLLEGE,SCHOOLS CAPITATION,5902271740
10.10.2017,CHILDREN'S SERVICES,TOWER BRIDGE PRIMARY SCHOOL,"7,165.00",TOWER BRIDGE JMI,EARLY YEARS - 3 AND 4 YEAR OLDS,5902271773
10.10.2017,CHILDREN'S SERVICES,TOWER BRIDGE PRIMARY SCHOOL,"4,238.00",TOWER BRIDGE JMI,HIGH NEEDS - TOP UP FUNDING,5902271771
10.10.2017,CHILDREN'S SERVICES,TOWER BRIDGE PRIMARY SCHOOL,"95,933.08",TOWER BRIDGE JMI,SCHOOLS CAPITATION,5902271772
10.10.2017,CHILDREN'S SERVICES,TOWNSEND PRIMARY SCHOOL,"8,241.00",TOWNSEND JMI,EARLY YEARS - 3 AND 4 YEAR OLDS,5902271776
10.10.2017,CHILDREN'S SERVICES,TOWNSEND PRIMARY SCHOOL,"7,618.00",TOWNSEND JMI,HIGH NEEDS - TOP UP FUNDING,5902271774
10.10.2017,CHILDREN'S SERVICES,TOWNSEND PRIMARY SCHOOL,"95,569.00",TOWNSEND JMI,SCHOOLS CAPITATION,5902271775
10.10.2017,CHILDREN'S SERVICES,TUKE SCHOOL,"158,114.10",TUKE SCHOOL,HIGH NEEDS - BASE FUNDING,5902271777
10.10.2017,CHILDREN'S SERVICES,REDACTED PERSONAL DATA,300,UNIVERSITY SUPPORT,CLIENT TRANSPORT,2102729910
10.10.2017,CHILDREN'S SERVICES,REDACTED PERSONAL DATA,"2,450.00",UNIVERSITY SUPPORT,OTHER PAYMENTS FOR CLIENTS,2102729911
10.10.2017,CHILDREN'S SERVICES,REDACTED PERSONAL DATA,300,UNIVERSITY SUPPORT,CLIENT TRANSPORT,2102729908
10.10.2017,CHILDREN'S SERVICES,REDACTED PERSONAL DATA,700,UNIVERSITY SUPPORT,OTHER PAYMENTS FOR CLIENTS,2102729909
10.10.2017,CHILDREN'S SERVICES,REDACTED PERSONAL DATA,300,UNIVERSITY SUPPORT,CLIENT TRANSPORT,2102729914
10.10.2017,CHILDREN'S SERVICES,REDACTED PERSONAL DATA,800,UNIVERSITY SUPPORT,OTHER PAYMENTS FOR CLIENTS,2102729915
10.10.2017,CHILDREN'S SERVICES,REDACTED PERSONAL DATA,300,UNIVERSITY SUPPORT,CLIENT TRANSPORT,2102729912
10.10.2017,CHILDREN'S SERVICES,REDACTED PERSONAL DATA,"1,200.00",UNIVERSITY SUPPORT,OTHER PAYMENTS FOR CLIENTS,2102729913
10.10.2017,CHILDREN'S SERVICES,VICTORY SCHOOL,"3,594.00",VICTORY JMI,EARLY YEARS - 3 AND 4 YEAR OLDS,5902271780
10.10.2017,CHILDREN'S SERVICES,VICTORY SCHOOL,"2,119.00",VICTORY JMI,HIGH NEEDS - TOP UP FUNDING,5902271778
10.10.2017,CHILDREN'S SERVICES,VICTORY SCHOOL,"77,614.08",VICTORY JMI,SCHOOLS CAPITATION,5902271779
10.10.2017,CHILDREN'S SERVICES,YOUTH INK AT THE HEART OF THE COMMUNITY,"27,000.00",YOS SUPPORT,EXTERNAL AGENCIES AND BODIES,5902271918
10.10.2017,COMMISSIONING & CENTRAL,ST MUNGOS,"81,057.93",SUPPORTING PEOPLE,EXTERNAL AGENCIES AND BODIES,5902271832
10.10.2017,COMMUNITIES,GLOUCESTER GROVE ESTATE TMO,"172,332.00",GLOUCESTER GROVE ESTATE,M&M ALLOWANCE CO-OPS,5902271845
10.10.2017,COMMUNITIES,REDACTED PERSONAL DATA,"2,428.62",NO RECOURSE TO PUBLIC FUNDS,ACCOMMODATION CHARGES,5902270875
10.10.2017,COMMUNITIES,ALLPAY NET LIMITED,"1,715.20",NO RECOURSE TO PUBLIC FUNDS,PROFESSIONAL FEES,5902271051
10.10.2017,COMMUNITIES,LETTING INTERNATIONAL LTD,"1,470.00",NO RECOURSE TO PUBLIC FUNDS,ACCOMMODATION CHARGES,5902270715
10.10.2017,COMMUNITIES,PURPLE PEBBLES(CHILD CARE) SERVICES,"5,114.29",NO RECOURSE TO PUBLIC FUNDS,ACCOMMODATION CHARGES,5902270895
10.10.2017,COMMUNITIES,SOUTHWARK GROUP OF TENANTS ORGANISATION,"5,000.00",TENANTS FUND,TRAINING,5902271551
10.10.2017,COMMUNITIES,RODNEY ROAD  T&RA,"1,200.00",TENANTS FUND,GRANTS,5902271536
10.10.2017,COMMUNITIES,RODNEY ROAD  T&RA,"1,300.00",TENANTS FUND,GRANTS,5902271538
10.10.2017,COMMUNITIES,EAST DULWICH EST T&RA,"5,043.00",TENANTS FUND,GRANTS,5902271548
10.10.2017,CUSTOMER EXPERIENCE HGF,TFL TELESALES / OYSTER FULFILMENT,520,HOMELESS & HOUSING OPTIONS MGT,PUBLIC TRANSPORT,5902271533
10.10.2017,CUSTOMER EXPERIENCE HGF,LETTING INTERNATIONAL LTD,"2,520.00",NIGHTLY TA (NSC),EXTERNAL AGENCIES AND BODIES,5902270963
10.10.2017,CUSTOMER EXPERIENCE HGF,GOLDSTONE ESTATES LTD,"27,789.30",NIGHTLY TA (NSC),EXTERNAL AGENCIES AND BODIES,5902271888
10.10.2017,ENVIRONMENT AND LEISURE,ARTHUR DEMOWBRAY,"1,150.00",CAPITAL PS (LEISURE),CONST'N MAIN CONTRACT - NON CERTIFICATED,5902271922
10.10.2017,ENVIRONMENT AND LEISURE,LDA DESIGN CONSULTING LTD,"4,824.41",CAPITAL PS (LEISURE),CONSTRUCTION FEES  - EXTERNAL,5902271838
10.10.2017,ENVIRONMENT AND LEISURE,CONWAY AECOM LTD,"1,011.65",CAPITAL PS (LEISURE),CONSTR'N SUB CONTRACT - NON CERTIFICATED,5902271559
10.10.2017,ENVIRONMENT AND LEISURE,CONWAY AECOM LTD,"16,181.92",CAPITAL PS (LEISURE),CONSTRUCTION,2102729937
10.10.2017,ENVIRONMENT AND SOCIAL REGENERATION,CALLOW MASTER LOCKSMITHS,296.75,STORES,CREDITORS -GR/IR CLEARING ACCOUNT,5902271794
10.10.2017,ENVIRONMENT AND SOCIAL REGENERATION,CALLOW MASTER LOCKSMITHS,393.03,STORES,CREDITORS -GR/IR CLEARING ACCOUNT,5902271799
10.10.2017,ENVIRONMENT DIRECTORATE,EQUITA LTD,278,CAR LEASING CTRL A/C,PARKING CHARGES,5902271830
10.10.2017,ENVIRONMENT DIRECTORATE,EDF ENERGY PLC,381.45,COLUMNS - MINOR ROADS,ELECTRICITY,5902271868
10.10.2017,ENVIRONMENT DIRECTORATE,TIPPERHIRE LTD,483,COMMERCIAL VEH CTRL A/C,HIRED VEHICLES,5902271097
10.10.2017,ENVIRONMENT DIRECTORATE,TIPPERHIRE LTD,483,COMMERCIAL VEH CTRL A/C,HIRED VEHICLES,5902271100
10.10.2017,ENVIRONMENT DIRECTORATE,TIPPERHIRE LTD,483,COMMERCIAL VEH CTRL A/C,HIRED VEHICLES,5902271104
10.10.2017,ENVIRONMENT DIRECTORATE,FLEET SOURCE LTD,"1,200.00",COMMERCIAL VEH CTRL A/C,CONSULTANTS SERVICES,5902266619
10.10.2017,ENVIRONMENT DIRECTORATE,FLEET SOURCE LTD,"1,200.00",COMMERCIAL VEH CTRL A/C,CONSULTANTS SERVICES,5902266625
10.10.2017,ENVIRONMENT DIRECTORATE,FLEET SOURCE LTD,"1,200.00",COMMERCIAL VEH CTRL A/C,CONSULTANTS SERVICES,5902266627
10.10.2017,ENVIRONMENT DIRECTORATE,FLEET SOURCE LTD,"1,200.00",COMMERCIAL VEH CTRL A/C,CONSULTANTS SERVICES,5902266629
10.10.2017,ENVIRONMENT DIRECTORATE,FLEET SOURCE LTD,"1,200.00",COMMERCIAL VEH CTRL A/C,CONSULTANTS SERVICES,5902266640
10.10.2017,ENVIRONMENT DIRECTORATE,FLEET SOURCE LTD,"1,200.00",COMMERCIAL VEH CTRL A/C,CONSULTANTS SERVICES,5902267266
10.10.2017,ENVIRONMENT DIRECTORATE,FLEET SOURCE LTD,"1,200.00",COMMERCIAL VEH CTRL A/C,CONSULTANTS SERVICES,5902267268
10.10.2017,ENVIRONMENT DIRECTORATE,FLEET SOURCE LTD,"1,200.00",COMMERCIAL VEH CTRL A/C,CONSULTANTS SERVICES,5902267270
10.10.2017,ENVIRONMENT DIRECTORATE,FLEET SOURCE LTD,"1,200.00",COMMERCIAL VEH CTRL A/C,CONSULTANTS SERVICES,5902267271
10.10.2017,ENVIRONMENT DIRECTORATE,FLEET SOURCE LTD,"1,450.00",COMMERCIAL VEH CTRL A/C,CONSULTANTS SERVICES,5902266622
10.10.2017,ENVIRONMENT DIRECTORATE,FLEET SOURCE LTD,"1,450.00",COMMERCIAL VEH CTRL A/C,CONSULTANTS SERVICES,5902267273
10.10.2017,ENVIRONMENT DIRECTORATE,SOUTH ESSEX STOCKHOLDERS LTD,281.6,ENGINEERING CRAFTS,MATERIALS,5902271908
10.10.2017,ENVIRONMENT DIRECTORATE,SOUTH ESSEX STOCKHOLDERS LTD,403.2,ENGINEERING CRAFTS,MATERIALS,5902271908
10.10.2017,ENVIRONMENT DIRECTORATE,SOUTH ESSEX STOCKHOLDERS LTD,654.36,ENGINEERING CRAFTS,MATERIALS,5902271909
10.10.2017,ENVIRONMENT DIRECTORATE,MILEBAY CONSULTANCY LTD,450,FLEET SERVICES MANAGEMENT,CONSULTANTS SERVICES,5902271530
10.10.2017,ENVIRONMENT DIRECTORATE,SPALDINGS (UK) LTD,299,GROUNDS MAINTENANCE - GENERAL,MATERIALS,5902271527
10.10.2017,ENVIRONMENT DIRECTORATE,MASTERNAUT LTD,"1,480.50",MANAGEMENT TEAM,OTHER VEHICLE RUNNING COSTS,5902271460
10.10.2017,ENVIRONMENT DIRECTORATE,ST MUNGOS,"59,880.00",MH ST. MUNGO'S,GRANTS,5902271836
10.10.2017,ENVIRONMENT DIRECTORATE,EXPERIAN LTD,262.5,RESIDENTIAL SERVICES,PROFESSIONAL FEES,5902270749
10.10.2017,ENVIRONMENT DIRECTORATE,EXPERIAN LTD,262.5,RESIDENTIAL SERVICES,PROFESSIONAL FEES,5902270749
10.10.2017,ENVIRONMENT DIRECTORATE,EXPERIAN LTD,262.5,RESIDENTIAL SERVICES,PROFESSIONAL FEES,5902270749
10.10.2017,ENVIRONMENT DIRECTORATE,EXPERIAN LTD,262.5,RESIDENTIAL SERVICES,PROFESSIONAL FEES,5902270749
10.10.2017,ENVIRONMENT DIRECTORATE,CHUBB FIRE LIMITED,273.73,SANDGATE STREET,FIRE ALARMS & EMERGENCY LIGHTING,5902271859
10.10.2017,ENVIRONMENT DIRECTORATE,GRAFTON MERCHANTING GB LTD,518.51,SIGN SHOP,MATERIALS,5902271827
10.10.2017,ENVIRONMENT DIRECTORATE,NPOWER LTD,388.4,STREET TRADING A/C,ELECTRICITY,5902271535
10.10.2017,ENVIRONMENT DIRECTORATE,THE CAMDEN SOCIETY (CATERING),270.4,STREET WORKS OVERHEADS,BOOKS & PUBLICATIONS,5902271921
10.10.2017,ENVIRONMENT DIRECTORATE,OPUS INTERNATIONAL CONSULTANTS (UK),"4,312.00",TRANSPORT PROJECTS,CONSULTANTS SERVICES,5902271504
10.10.2017,F & C S EXCLUDING CORPORATE BUDGETS,PRINT4UK LTD,515,ADMINISTRATIVE SUPPORT,PRINTING,5902271542
10.10.2017,F & C S EXCLUDING CORPORATE BUDGETS,PRINT4UK LTD,600,ADMINISTRATIVE SUPPORT,PRINTING,5902271537
10.10.2017,F & C S EXCLUDING CORPORATE BUDGETS,CAPITA BUSINESS SERVICES LTD,"8,317.77",CAPITA,OTHER CONTRACTORS,5902271571
10.10.2017,F & C S EXCLUDING CORPORATE BUDGETS,CAPITA BUSINESS SERVICES LTD,"35,247.12",CAPITA,OTHER CONTRACTORS,5902271572
10.10.2017,F & C S EXCLUDING CORPORATE BUDGETS,RTPI CONFERENCES,449,LEGAL SVCES MANAGEMENT,TRAINING,5902271561
10.10.2017,F & C S EXCLUDING CORPORATE BUDGETS,KENNEDY CATER LTD,275,LEGAL SVCES MANAGEMENT,PROFESSIONAL FEES,5902271560
10.10.2017,F & C S EXCLUDING CORPORATE BUDGETS,SOUTH BANK BID LTD,356.38,SOUTH BANK,EXTERNAL AGENCIES AND BODIES,5902270960
10.10.2017,HOUSING,DUCTCLEAN (UK) LTD,"65,705.59",DUCTCLEAN,MANUAL CREDITORS,2102729938
10.10.2017,HOUSING,MEARS LTD,"579,359.60",MEARS,MANUAL CREDITORS,2102729943
10.10.2017,HOUSING HRA,PELLINGS LLP,790,CAPITAL PS (HRA),CONSTRUCTION FEES  - EXTERNAL,5902271879
10.10.2017,HOUSING HRA,CALFORD SEADEN LLP,"2,021.25",CAPITAL PS (HRA),CONSTRUCTION FEES  - EXTERNAL,5902271841
10.10.2017,HOUSING HRA,CALFORD SEADEN LLP,"2,075.00",CAPITAL PS (HRA),CONSTRUCTION FEES  - EXTERNAL,5902271788
10.10.2017,HOUSING HRA,CALFORD SEADEN LLP,"5,154.23",CAPITAL PS (HRA),CONSTRUCTION FEES  - EXTERNAL,5902271556
10.10.2017,HOUSING HRA,KEEPMOAT REGENERATION (APOLLO) LTD,"88,022.14",CAPITAL PS (HRA),CONSTRUCTION MAIN CONTRACT -CERTIFICATED,2102729950
10.10.2017,HOUSING HRA,KEEPMOAT REGENERATION (APOLLO) LTD,"140,491.53",CAPITAL PS (HRA),CONSTRUCTION MAIN CONTRACT -CERTIFICATED,2102729940
10.10.2017,HOUSING HRA,KEEPMOAT REGENERATION (APOLLO) LTD,"173,724.95",CAPITAL PS (HRA),CONSTRUCTION MAIN CONTRACT -CERTIFICATED,2102729941
10.10.2017,HOUSING HRA,KEEPMOAT REGENERATION (APOLLO) LTD,"200,407.01",CAPITAL PS (HRA),CONSTRUCTION MAIN CONTRACT -CERTIFICATED,2102729942
10.10.2017,HOUSING HRA,STANDAGE & CO LTD,"6,552.00",CAPITAL PS (HRA),CONST'N MAIN CONTRACT - NON CERTIFICATED,2102729946
10.10.2017,HOUSING HRA,A & E ELKINS LTD,"70,407.72",CAPITAL PS (HRA),CONSTRUCTION MAIN CONTRACT -CERTIFICATED,2102729932
10.10.2017,HOUSING HRA,A & E ELKINS LTD,"198,381.03",CAPITAL PS (HRA),CONSTRUCTION MAIN CONTRACT -CERTIFICATED,2102729931
10.10.2017,HOUSING HRA,MICHAEL CONSTRUCTION LTD,741.67,CAPITAL PS (HRA),CONST'N MAIN CONTRACT - NON CERTIFICATED,2102729944
10.10.2017,HOUSING HRA,KENT COUNTY COUNCIL - LASER,"3,402.62",RESIDENT SERVICES BUSINESS SUPPORT,ELECTRICITY,DIRECT DEBIT PAYMENT
10.10.2017,LEISURE DIRECTORATE,EIGHT POINT EIGHT LTD T/A STANDARD 8,"1,433.68",ADMINISTRATION,HIRE OF ROOMS/HALLS,5902271885
10.10.2017,LEISURE DIRECTORATE,SUPERGLUE LTD,"3,000.00",ADMINISTRATION,PROFESSIONAL FEES,5902271528
10.10.2017,LEISURE DIRECTORATE,TATE EDUCATION,500,ADMINISTRATION,HIRE OF ROOMS/HALLS,5902271809
10.10.2017,LEISURE DIRECTORATE,FRIENDS OF PASLEY PARK,500,CENTRAL FESTIVAL FUND,OP LEASE/HIRE CHARGES:PLANT/EQUIP/FURNIT,5902271835
10.10.2017,LEISURE DIRECTORATE,GLS EDUCATIONAL SUPPLIES LTD,310.1,CHUMLEIGH GDNS TEAM,BUILDING R&M,5902270947
10.10.2017,LEISURE DIRECTORATE,GLS EDUCATIONAL SUPPLIES LTD,375.68,CHUMLEIGH GDNS TEAM,BUILDING R&M,5902270954
10.10.2017,LEISURE DIRECTORATE,BEDE HOUSE ASSOCIATION,"7,787.50",GRANTS COMMISSIONING,GRANTS,5902271857
10.10.2017,LEISURE DIRECTORATE,BEDE HOUSE ASSOCIATION,"7,787.50",GRANTS COMMISSIONING,GRANTS,5902271858
10.10.2017,LEISURE DIRECTORATE,CASTLE WATER LTD,286.9,KINGSWOOD HOUSE,WATER,5902271819
10.10.2017,LEISURE DIRECTORATE,REVISECATCH LTD,582.93,LIBARIES DEVELOPMENT,DELIVERY CHARGES,5902271543
10.10.2017,LEISURE DIRECTORATE,RESTORE PLC,488.24,LOCAL HISTORY LIBRARY,REMOVAL EXPENSES,5902271865
10.10.2017,LEISURE DIRECTORATE,EDF ENERGY PLC,"1,059.87",SDM BUDGET,ELECTRICITY,5902271565
10.10.2017,LEISURE DIRECTORATE,METER MACS LTD,"5,518.00",SDM BUDGET,SERVICE CHARGES,5902271557
10.10.2017,LEISURE DIRECTORATE,CASTLE WATER LTD,"2,223.56",SDM BUDGET,WATER,5902271787
10.10.2017,MODERNISATION HGF,BUILDING MONITORING SERVICES LTD,"1,363.42",160 TOOLEY ST.,BUILDING R&M,5902271532
10.10.2017,MODERNISATION HGF,CASTLE WATER LTD,"1,241.76",160 TOOLEY ST.,WATER,5902271840
10.10.2017,MODERNISATION HGF,CASTLE WATER LTD,"1,908.76",160 TOOLEY ST.,WATER,5902271840
10.10.2017,MODERNISATION HGF,TABRIS LTD,"2,393.75",ILM COSTS,TRAINING,5902271204
10.10.2017,MODERNISATION HGF,VEOLIA ES (UK)LTD,"3,236.87",REFUSE - VEOLIA,WASTE DISPOSAL CONTRACT,5902271510
10.10.2017,MODERNISATION HGF,VEOLIA ES (UK)LTD,"11,118.62",REFUSE - VEOLIA,WASTE DISPOSAL CONTRACT,5902271501
10.10.2017,MODERNISATION HGF,J2 GLOBAL CANADA,"1,288.92",TECHNOLOGY,DATA COMMUNICATIONS,5902271531
10.10.2017,MODERNISATION HGF,CAPITA SECURE INFORMATION,"495,836.56",TECHNOLOGY,PROFESSIONAL FEES,5902271523
10.10.2017,MODERNISATION HGF,SITEMORSE LTD,"2,592.00",WEBSITE TEAM,PROFESSIONAL FEES,5902271913
10.10.2017,PLANNING AND TRANSPORT,MARSHALL SURVEY ASSOCIATES LTD,"2,520.00",PLANNING POLICY TEAM,CONSULTANTS SERVICES,5902271814
10.10.2017,REGENERATION,ETC VENUES LTD,"1,223.75",SITES - PHASE 1,HIRE OF ROOMS/HALLS,5902271539
10.10.2017,RESIDENT SERVICES,APCOA PARKING (UK) LTD,"11,855.21",PARKING CONTROL,OTHER CONTRACTORS,5902271465
10.10.2017,RESIDENT SERVICES,APCOA PARKING (UK) LTD,"39,552.28",PARKING CONTROL,OTHER CONTRACTORS,5902271464
10.10.2017,RESIDENT SERVICES,PPROPERTYPLACEBOOK LTD,"2,027.00",TA PLACEMENTS,RENTS,5902271570
10.10.2017,SOUTHWARK BUILDING SERVICES,POD POINT LTD,"2,745.00",DEPOT COSTS,OTHER CONTRACTORS,2102729770
10.10.2017,STRATEGIC FINANCING BUDGETS,RED R DESIGN,475,CREDIT UNION A/C FOR 11 YEAR OLDS,MARKETING & PUBLICITY SERVICES,5902270918
11.10.2017,ADULT SOCIAL CARE,LONDON CARE LTD,470.68,LD LTS 18-64,HOMECARE - C&V,2102730825
11.10.2017,ADULT SOCIAL CARE,MIHOMECARE LTD,408.48,LD LTS 18-64,HOMECARE - C&V,2102730858
11.10.2017,ADULT SOCIAL CARE,LONDON CARE LTD,840.92,MEM LTS 18-64,HOMECARE - C&V,2102730678
11.10.2017,ADULT SOCIAL CARE,MIHOMECARE LTD,714.84,MEM LTS 18-64,HOMECARE - C&V,2102731138
11.10.2017,ADULT SOCIAL CARE,LONDON CARE LTD,470.96,MEM LTS 65+,HOMECARE - C&V,2102730620
11.10.2017,ADULT SOCIAL CARE,LONDON CARE LTD,571.84,MEM LTS 65+,HOMECARE - C&V,2102730790
11.10.2017,ADULT SOCIAL CARE,LONDON CARE LTD,"1,227.60",MEM LTS 65+,HOMECARE - C&V,2102730703
11.10.2017,ADULT SOCIAL CARE,LONDON CARE LTD,"1,235.95",MEM LTS 65+,HOMECARE - C&V,2102730676
11.10.2017,ADULT SOCIAL CARE,LONDON CARE LTD,"2,337.42",MEM LTS 65+,HOMECARE - C&V,2102730639
11.10.2017,ADULT SOCIAL CARE,MIHOMECARE LTD,255.32,MEM LTS 65+,HOMECARE - C&V,2102730963
11.10.2017,ADULT SOCIAL CARE,MIHOMECARE LTD,357.44,MEM LTS 65+,HOMECARE - C&V,2102730978
11.10.2017,ADULT SOCIAL CARE,MIHOMECARE LTD,536.13,MEM LTS 65+,HOMECARE - C&V,2102731139
11.10.2017,ADULT SOCIAL CARE,MIHOMECARE LTD,672.29,MEM LTS 65+,HOMECARE - C&V,2102730919
11.10.2017,ADULT SOCIAL CARE,MIHOMECARE LTD,680.8,MEM LTS 65+,HOMECARE - C&V,2102731037
11.10.2017,ADULT SOCIAL CARE,MIHOMECARE LTD,697.84,MEM LTS 65+,HOMECARE - C&V,2102731002
11.10.2017,ADULT SOCIAL CARE,MIHOMECARE LTD,851,MEM LTS 65+,HOMECARE - C&V,2102730856
11.10.2017,ADULT SOCIAL CARE,MIHOMECARE LTD,880.79,MEM LTS 65+,HOMECARE - C&V,2102731202
11.10.2017,ADULT SOCIAL CARE,MIHOMECARE LTD,889.31,MEM LTS 65+,HOMECARE - C&V,2102730862
11.10.2017,ADULT SOCIAL CARE,MIHOMECARE LTD,953.12,MEM LTS 65+,HOMECARE - C&V,2102730924
11.10.2017,ADULT SOCIAL CARE,MIHOMECARE LTD,965.9,MEM LTS 65+,HOMECARE - C&V,2102730903
11.10.2017,ADULT SOCIAL CARE,MIHOMECARE LTD,974.41,MEM LTS 65+,HOMECARE - C&V,2102731180
11.10.2017,ADULT SOCIAL CARE,MIHOMECARE LTD,"1,029.71",MEM LTS 65+,HOMECARE - C&V,2102730868
11.10.2017,ADULT SOCIAL CARE,MIHOMECARE LTD,"1,072.28",MEM LTS 65+,HOMECARE - C&V,2102731044
11.10.2017,ADULT SOCIAL CARE,MIHOMECARE LTD,"1,650.94",MEM LTS 65+,HOMECARE - C&V,2102731001
11.10.2017,ADULT SOCIAL CARE,MIHOMECARE LTD,"2,808.30",MEM LTS 65+,HOMECARE - C&V,2102731142
11.10.2017,ADULT SOCIAL CARE,LONDON CARE LTD,268.96,MH LTS 18-64,HOMECARE - C&V,2102730638
11.10.2017,ADULT SOCIAL CARE,LONDON CARE LTD,521.15,MH LTS 18-64,HOMECARE - C&V,2102730810
11.10.2017,ADULT SOCIAL CARE,MIHOMECARE LTD,323.4,MH LTS 18-64,HOMECARE - C&V,2102731016
11.10.2017,ADULT SOCIAL CARE,LONDON CARE LTD,588.56,MH LTS 65+,HOMECARE - C&V,2102730816
11.10.2017,ADULT SOCIAL CARE,LONDON CARE LTD,941.64,MH LTS 65+,HOMECARE - C&V,2102730727
11.10.2017,ADULT SOCIAL CARE,MIHOMECARE LTD,442.52,MH LTS 65+,HOMECARE - C&V,2102731193
11.10.2017,ADULT SOCIAL CARE,MIHOMECARE LTD,629.74,MH LTS 65+,HOMECARE - C&V,2102730859
11.10.2017,ADULT SOCIAL CARE,MIHOMECARE LTD,931.85,MH LTS 65+,HOMECARE - C&V,2102731031
11.10.2017,ADULT SOCIAL CARE,MIHOMECARE LTD,"1,021.20",MH LTS 65+,HOMECARE - C&V,2102730889
11.10.2017,ADULT SOCIAL CARE,LONDON CARE LTD,260.64,PHY LTS 18-64,HOMECARE - C&V,2102730768
11.10.2017,ADULT SOCIAL CARE,LONDON CARE LTD,302.61,PHY LTS 18-64,HOMECARE - C&V,2102730610
11.10.2017,ADULT SOCIAL CARE,LONDON CARE LTD,315.25,PHY LTS 18-64,HOMECARE - C&V,2102730801
11.10.2017,ADULT SOCIAL CARE,LONDON CARE LTD,361.48,PHY LTS 18-64,HOMECARE - C&V,2102730817
11.10.2017,ADULT SOCIAL CARE,LONDON CARE LTD,403.44,PHY LTS 18-64,HOMECARE - C&V,2102730612
11.10.2017,ADULT SOCIAL CARE,LONDON CARE LTD,487.52,PHY LTS 18-64,HOMECARE - C&V,2102730719
11.10.2017,ADULT SOCIAL CARE,LONDON CARE LTD,512.8,PHY LTS 18-64,HOMECARE - C&V,2102730798
11.10.2017,ADULT SOCIAL CARE,LONDON CARE LTD,521.2,PHY LTS 18-64,HOMECARE - C&V,2102730688
11.10.2017,ADULT SOCIAL CARE,LONDON CARE LTD,537.92,PHY LTS 18-64,HOMECARE - C&V,2102730747
11.10.2017,ADULT SOCIAL CARE,LONDON CARE LTD,554.88,PHY LTS 18-64,HOMECARE - C&V,2102730764
11.10.2017,ADULT SOCIAL CARE,LONDON CARE LTD,575.95,PHY LTS 18-64,HOMECARE - C&V,2102730750
11.10.2017,ADULT SOCIAL CARE,LONDON CARE LTD,596.87,PHY LTS 18-64,HOMECARE - C&V,2102730668
11.10.2017,ADULT SOCIAL CARE,LONDON CARE LTD,601.18,PHY LTS 18-64,HOMECARE - C&V,2102730739
11.10.2017,ADULT SOCIAL CARE,LONDON CARE LTD,613.74,PHY LTS 18-64,HOMECARE - C&V,2102730677
11.10.2017,ADULT SOCIAL CARE,LONDON CARE LTD,655.8,PHY LTS 18-64,HOMECARE - C&V,2102730670
11.10.2017,ADULT SOCIAL CARE,LONDON CARE LTD,689.44,PHY LTS 18-64,HOMECARE - C&V,2102730619
11.10.2017,ADULT SOCIAL CARE,LONDON CARE LTD,706.3,PHY LTS 18-64,HOMECARE - C&V,2102730814
11.10.2017,ADULT SOCIAL CARE,LONDON CARE LTD,718.91,PHY LTS 18-64,HOMECARE - C&V,2102730759
11.10.2017,ADULT SOCIAL CARE,LONDON CARE LTD,731.39,PHY LTS 18-64,HOMECARE - C&V,2102730708
11.10.2017,ADULT SOCIAL CARE,LONDON CARE LTD,874.37,PHY LTS 18-64,HOMECARE - C&V,2102730714
11.10.2017,ADULT SOCIAL CARE,LONDON CARE LTD,895.36,PHY LTS 18-64,HOMECARE - C&V,2102730662
11.10.2017,ADULT SOCIAL CARE,LONDON CARE LTD,899.79,PHY LTS 18-64,HOMECARE - C&V,2102730649
11.10.2017,ADULT SOCIAL CARE,LONDON CARE LTD,924.64,PHY LTS 18-64,HOMECARE - C&V,2102730675
11.10.2017,ADULT SOCIAL CARE,LONDON CARE LTD,924.67,PHY LTS 18-64,HOMECARE - C&V,2102730746
11.10.2017,ADULT SOCIAL CARE,LONDON CARE LTD,941.64,PHY LTS 18-64,HOMECARE - C&V,2102730671
11.10.2017,ADULT SOCIAL CARE,LONDON CARE LTD,958.52,PHY LTS 18-64,HOMECARE - C&V,2102730807
11.10.2017,ADULT SOCIAL CARE,LONDON CARE LTD,991.88,PHY LTS 18-64,HOMECARE - C&V,2102730711
11.10.2017,ADULT SOCIAL CARE,LONDON CARE LTD,"1,021.32",PHY LTS 18-64,HOMECARE - C&V,2102730779
11.10.2017,ADULT SOCIAL CARE,LONDON CARE LTD,"1,050.98",PHY LTS 18-64,HOMECARE - C&V,2102730699
11.10.2017,ADULT SOCIAL CARE,LONDON CARE LTD,"1,471.02",PHY LTS 18-64,HOMECARE - C&V,2102730724
11.10.2017,ADULT SOCIAL CARE,LONDON CARE LTD,"2,181.84",PHY LTS 18-64,HOMECARE - C&V,2102730611
11.10.2017,ADULT SOCIAL CARE,LONDON CARE LTD,"2,824.64",PHY LTS 18-64,HOMECARE - C&V,2102730826
11.10.2017,ADULT SOCIAL CARE,LONDON CARE LTD,655.8,PHY LTS 18-64,HOMECARE - SPOT,2102730606
11.10.2017,ADULT SOCIAL CARE,MIHOMECARE LTD,280.83,PHY LTS 18-64,HOMECARE - C&V,2102731040
11.10.2017,ADULT SOCIAL CARE,MIHOMECARE LTD,323.4,PHY LTS 18-64,HOMECARE - C&V,2102731043
11.10.2017,ADULT SOCIAL CARE,MIHOMECARE LTD,340.4,PHY LTS 18-64,HOMECARE - C&V,2102731092
11.10.2017,ADULT SOCIAL CARE,MIHOMECARE LTD,357.44,PHY LTS 18-64,HOMECARE - C&V,2102731145
11.10.2017,ADULT SOCIAL CARE,MIHOMECARE LTD,382.95,PHY LTS 18-64,HOMECARE - C&V,2102731167
11.10.2017,ADULT SOCIAL CARE,MIHOMECARE LTD,425.52,PHY LTS 18-64,HOMECARE - C&V,2102731018
11.10.2017,ADULT SOCIAL CARE,MIHOMECARE LTD,476.56,PHY LTS 18-64,HOMECARE - C&V,2102731003
11.10.2017,ADULT SOCIAL CARE,MIHOMECARE LTD,476.56,PHY LTS 18-64,HOMECARE - C&V,2102731081
11.10.2017,ADULT SOCIAL CARE,MIHOMECARE LTD,476.56,PHY LTS 18-64,HOMECARE - C&V,2102731108
11.10.2017,ADULT SOCIAL CARE,MIHOMECARE LTD,510.6,PHY LTS 18-64,HOMECARE - C&V,2102730930
11.10.2017,ADULT SOCIAL CARE,MIHOMECARE LTD,527.64,PHY LTS 18-64,HOMECARE - C&V,2102730979
11.10.2017,ADULT SOCIAL CARE,MIHOMECARE LTD,544.64,PHY LTS 18-64,HOMECARE - C&V,2102731112
11.10.2017,ADULT SOCIAL CARE,MIHOMECARE LTD,557.42,PHY LTS 18-64,HOMECARE - C&V,2102730906
11.10.2017,ADULT SOCIAL CARE,MIHOMECARE LTD,561.68,PHY LTS 18-64,HOMECARE - C&V,2102730996
11.10.2017,ADULT SOCIAL CARE,MIHOMECARE LTD,574.43,PHY LTS 18-64,HOMECARE - C&V,2102730908
11.10.2017,ADULT SOCIAL CARE,MIHOMECARE LTD,612.72,PHY LTS 18-64,HOMECARE - C&V,2102730964
11.10.2017,ADULT SOCIAL CARE,MIHOMECARE LTD,697.84,PHY LTS 18-64,HOMECARE - C&V,2102730932
11.10.2017,ADULT SOCIAL CARE,MIHOMECARE LTD,740.38,PHY LTS 18-64,HOMECARE - C&V,2102730984
11.10.2017,ADULT SOCIAL CARE,MIHOMECARE LTD,748.9,PHY LTS 18-64,HOMECARE - C&V,2102731192
11.10.2017,ADULT SOCIAL CARE,MIHOMECARE LTD,770.17,PHY LTS 18-64,HOMECARE - C&V,2102730983
11.10.2017,ADULT SOCIAL CARE,MIHOMECARE LTD,791.45,PHY LTS 18-64,HOMECARE - C&V,2102731178
11.10.2017,ADULT SOCIAL CARE,MIHOMECARE LTD,799.94,PHY LTS 18-64,HOMECARE - C&V,2102730881
11.10.2017,ADULT SOCIAL CARE,MIHOMECARE LTD,799.96,PHY LTS 18-64,HOMECARE - C&V,2102730994
11.10.2017,ADULT SOCIAL CARE,MIHOMECARE LTD,838.24,PHY LTS 18-64,HOMECARE - C&V,2102730921
11.10.2017,ADULT SOCIAL CARE,MIHOMECARE LTD,851,PHY LTS 18-64,HOMECARE - C&V,2102731163
11.10.2017,ADULT SOCIAL CARE,MIHOMECARE LTD,872.29,PHY LTS 18-64,HOMECARE - C&V,2102731211
11.10.2017,ADULT SOCIAL CARE,MIHOMECARE LTD,936.1,PHY LTS 18-64,HOMECARE - C&V,2102730882
11.10.2017,ADULT SOCIAL CARE,MIHOMECARE LTD,"1,093.54",PHY LTS 18-64,HOMECARE - C&V,2102731131
11.10.2017,ADULT SOCIAL CARE,MIHOMECARE LTD,"1,123.32",PHY LTS 18-64,HOMECARE - C&V,2102730991
11.10.2017,ADULT SOCIAL CARE,MIHOMECARE LTD,"1,165.88",PHY LTS 18-64,HOMECARE - C&V,2102731073
11.10.2017,ADULT SOCIAL CARE,MIHOMECARE LTD,"1,191.42",PHY LTS 18-64,HOMECARE - C&V,2102731071
